Report Type,Report Period,Body Name,Service Label,Service Code,Service Divison Label,Service Divison Code,Supplier Name,Expenditure Category,Expenditure Code,Date,Transaction Number,Net Amount,Merchant Category,Merchant Category Code
Expenditure - Over 500,2016 01,Worcestershire County Council,Children's Services,CH-PROFIT,Early Years - Other Providers,E21205,ABACUS NURSERY SCHOOL,Third Party Pymts 4Yr Old Nursery Education Grant,53657,11/04/2016,7200025190,19377.54,,
Expenditure - Over 500,2016 01,Worcestershire County Council,Adult Services & Health,AC-PROFIT,Domiciliary Spot - OP,S33414,A & M BEWDLEY CARE SERVICES LTD,Third Party Payments Dom Care Frm Independent Prov,53669,28/04/2016,7320484821,563.6,,
Expenditure - Over 500,2016 01,Worcestershire County Council,Adult Services & Health,AC-PROFIT,Domiciliary Spot - OP,S33414,A & M BEWDLEY CARE SERVICES LTD,Third Party Payments Dom Care Frm Independent Prov,53669,28/04/2016,7320484812,582.8,,
Expenditure - Over 500,2016 01,Worcestershire County Council,Adult Services & Health,AC-PROFIT,Domiciliary Spot - OP,S33414,A & M BEWDLEY CARE SERVICES LTD,Third Party Payments Dom Care Frm Independent Prov,53669,21/04/2016,7320482459,563.6,,
Expenditure - Over 500,2016 01,Worcestershire County Council,Adult Services & Health,AC-PROFIT,Domiciliary Spot - OP,S33414,A & M BEWDLEY CARE SERVICES LTD,Third Party Payments Dom Care Frm Independent Prov,53669,21/04/2016,7320482450,547.4,,
Expenditure - Over 500,2016 01,Worcestershire County Council,Adult Services & Health,AC-PROFIT,Domiciliary Spot - OP,S33414,A & M BEWDLEY CARE SERVICES LTD,Third Party Payments Dom Care Frm Independent Prov,53669,18/04/2016,7320481175,625.61,,
Expenditure - Over 500,2016 01,Worcestershire County Council,Adult Services & Health,AC-PROFIT,Domiciliary Spot - OP,S33414,A & M BEWDLEY CARE SERVICES LTD,Third Party Payments Dom Care Frm Independent Prov,53669,04/04/2016,7320477774,563.6,,
Expenditure - Over 500,2016 01,Worcestershire County Council,Adult Services & Health,AC-PROFIT,Domiciliary Spot - OP,S33414,A & M BEWDLEY CARE SERVICES LTD,Third Party Payments Dom Care Frm Independent Prov,53669,25/04/2016,7320482646,641.81,,
Expenditure - Over 500,2016 01,Worcestershire County Council,Adult Services & Health,AC-PROFIT,Domiciliary Spot - OP,S33414,A & M BEWDLEY CARE SERVICES LTD,Third Party Payments Dom Care Frm Independent Prov,53669,25/04/2016,7320482626,625.61,,
Expenditure - Over 500,2016 01,Worcestershire County Council,Adult Services & Health,AC-PROFIT,Domiciliary Spot - OP,S33414,A & M BEWDLEY CARE SERVICES LTD,Third Party Payments Dom Care Frm Independent Prov,53669,18/04/2016,7320481182,641.81,,
Expenditure - Over 500,2016 01,Worcestershire County Council,Children's Services,CH-PROFIT,Early Years - Other Providers,E21205,ABBERLEY HALL PRE-PREP AND NURSERY,Third Party Pymts 4Yr Old Nursery Education Grant,53657,29/04/2016,3310035541,10306.93,,
Expenditure - Over 500,2016 01,Worcestershire County Council,Children's Services,CH-PROFIT,Early Years - Other Providers,E21205,ABBERLEY PRESCHOOL,Third Party Pymts 4Yr Old Nursery Education Grant,53657,11/04/2016,7200025192,4401.85,,
Expenditure - Over 500,2016 01,Worcestershire County Council,Adult Services & Health,AC-PROFIT,Health Checks,S42005,ABBEY MEDICAL PRACTICE,Third Party Payments,53006,28/04/2016,4101543776,3129,,
Expenditure - Over 500,2016 01,Worcestershire County Council,Adult Services & Health,AC-PROFIT,PH Digital Inclusion,S42050,ABBOTTSWOOD MEDICAL CENTRE,Equipment & Furniture,49001,14/04/2016,4101543946,726.92,,
Expenditure - Over 500,2016 01,Worcestershire County Council,Non Directorate Specific,LA01,ICT - Telephony,CA87592,INSIGHT DIRECT (UK) LTD,CAPEX IT Equipment,65202,04/04/2016,4101541938,5100,,
Expenditure - Over 500,2016 01,Worcestershire County Council,Non Directorate Specific,LA01,ICT - Telephony,CA87592,INSIGHT DIRECT (UK) LTD,CAPEX IT Equipment,65202,11/04/2016,4101543304,829.92,,
Expenditure - Over 500,2016 01,Worcestershire County Council,Adult Services & Health,AC-PROFIT,LT Residential - OP,S35341,ALBION LODGE RESIDENTIAL HOME,Receipts Sales Long Term Residents,67047,18/04/2016,7310399104,1139.08,,
Expenditure - Over 500,2016 01,Worcestershire County Council,Adult Services & Health,AC-PROFIT,Property Charge Temporary Code,S35398,ALBION LODGE RESIDENTIAL HOME,Receipts Sales Long Term Residents,67047,18/04/2016,7310399136,1526.54,,
Expenditure - Over 500,2016 01,Worcestershire County Council,Non Directorate Specific,LA01,ICT - Telephony,CA87592,INSIGHT DIRECT (UK) LTD,CAPEX IT Equipment,65202,25/04/2016,4101547071,3060,,
Expenditure - Over 500,2016 01,Worcestershire County Council,Children's Services,CH-DIR,Adoption Support Fund,E37711,ADOPTION UK,Professional Fees,50031,07/04/2016,4101542857,1750,,
Expenditure - Over 500,2016 01,Worcestershire County Council,Adult Services & Health,AC-PROFIT,Houisng Adaptations/Repairs,S42090,AGE UK HRFDS & WORCS,Third Party Payments External Provider,54044,19/04/2016,4101545220,24500,,
Expenditure - Over 500,2016 01,Worcestershire County Council,Adult Services & Health,AC-PROFIT,Equipment - Pooled Budgets,S31526,AIDSERVICE LTD,Equipment Adults SDD,49084,05/04/2016,4101542060,1770,,
Expenditure - Over 500,2016 01,Worcestershire County Council,Adult Services & Health,AC-PROFIT,Health Checks,S42005,ABBOTTSWOOD MEDICAL CENTRE,Third Party Payments,53006,28/04/2016,4101543658,7967,,
Expenditure - Over 500,2016 01,Worcestershire County Council,Adult Services & Health,AC-DIR,"Ensembles,Trips & Courses",S10041,ACTION CENTRES UK LIMITED,Expenses Educational Visits,51668,05/04/2016,4101542388,2666.67,,
Expenditure - Over 500,2016 01,Worcestershire County Council,Children's Services,CH-PROFIT,Short Breaks on framework,E31529,AIRSHUTTLE COACHES,PTG - Transport Tendered / Cont. Services,46021,14/04/2016,7190129773,3501,,
Expenditure - Over 500,2016 01,Worcestershire County Council,Adult Services & Health,AC-PROFIT,South Worcester Residential LD,S35551,ALPHAGRANGE LTD,Third Party Payments Purchase of Long Term Care,53667,18/04/2016,7310398284,2311.9,,
Expenditure - Over 500,2016 01,Worcestershire County Council,Adult Services & Health,AC-PROFIT,LT Residential - OP,S35341,ANCHOR,Third Party Payments Purchase of Long Term Care,53667,18/04/2016,7310399470,1343.64,,
Expenditure - Over 500,2016 01,Worcestershire County Council,Adult Services & Health,AC-PROFIT,North Supported Living Scheme,S31367,ADVANCE HOUSING AND SUPPORT LTD,Third Party Payments Purchase of Long Term Care,53667,18/04/2016,7310398998,3022.72,,
Expenditure - Over 500,2016 01,Worcestershire County Council,Adult Services & Health,AC-PROFIT,North Supported Living Scheme,S31367,ADVANCE HOUSING AND SUPPORT LTD,Third Party Payments Purchase of Long Term Care,53667,18/04/2016,7310399002,3022.72,,
Expenditure - Over 500,2016 01,Worcestershire County Council,Adult Services & Health,AC-PROFIT,North Supported Living Scheme,S31367,ADVANCE HOUSING AND SUPPORT LTD,Third Party Payments Purchase of Long Term Care,53667,18/04/2016,7310399006,3022.72,,
Expenditure - Over 500,2016 01,Worcestershire County Council,Adult Services & Health,AC-PROFIT,PH Digital Inclusion,S42050,AGE UK HRFDS & WORCS,Third Party Payments,53006,07/04/2016,4101542665,1500,,
Expenditure - Over 500,2016 01,Worcestershire County Council,Adult Services & Health,AC-PROFIT,South Worcester Residential LD,S35551,ALPHAGRANGE LTD,Receipts Sales Long Term Residents,67047,18/04/2016,7310398280,1910.74,,
Expenditure - Over 500,2016 01,Worcestershire County Council,Adult Services & Health,AC-PROFIT,South Worcester Residential LD,S35551,ALPHAGRANGE LTD,Third Party Payments Purchase of Long Term Care,53667,18/04/2016,7310398282,2311.9,,
Expenditure - Over 500,2016 01,Worcestershire County Council,Non Directorate Specific,LA01,"Oldbury Primary Sch, Asbestos Pre Work",CA38325,ANDY LOOS LTD,CAPEX Construction Costs Main Contractor,64951,07/04/2016,7140092577,1630,,
Expenditure - Over 500,2016 01,Worcestershire County Council,Non Directorate Specific,LA01,"Oldbury Primary Sch, Asbestos Pre Work",CA38325,ANDY LOOS LTD,CAPEX Construction Costs Main Contractor,64951,25/04/2016,7140092691,2070,,
Expenditure - Procurement Card,2016 01,Worcestershire County Council,Children's Services,CH-PROFIT,Supported Living Outreach,E31769,ARGOS LTD,Equipment & Furniture,49001,02/04/2016,4600116960,6.5,DISCOUNT STORES,5310
Expenditure - Over 500,2016 01,Worcestershire County Council,Children's Services,CH-PROFIT,Secondary Home/School Transport,E10707,ASTONS COACHES LTD,PTG - Transport Tendered / Cont. Services,46021,04/04/2016,7190129337,2163.79,,
Expenditure - Over 500,2016 01,Worcestershire County Council,Children's Services,CH-PROFIT,Trans't to Non WCC Primary Schools,E10027,ASTONS COACHES LTD,PTG - Transport Tendered / Cont. Services,46021,04/04/2016,7190129338,2163.79,,
Expenditure - Over 500,2016 01,Worcestershire County Council,Children's Services,CH-PROFIT,Secondary Home/School Transport,E10707,ASTONS COACHES LTD,PTG - Transport Tendered / Cont. Services,46021,04/04/2016,7190129345,10229.19,,
Expenditure - Over 500,2016 01,Worcestershire County Council,Children's Services,CH-PROFIT,Secondary Home/School Transport,E10707,ASTONS COACHES LTD,PTG - Transport Tendered / Cont. Services,46021,04/04/2016,7190129346,4567.74,,
Expenditure - Over 500,2016 01,Worcestershire County Council,Children's Services,CH-PROFIT,Secondary Home/School Transport,E10707,ASTONS COACHES LTD,PTG - Transport Tendered / Cont. Services,46021,04/04/2016,7190129347,3216.72,,
Expenditure - Over 500,2016 01,Worcestershire County Council,Children's Services,CH-PROFIT,Secondary Home/School Transport,E10707,ASTONS COACHES LTD,PTG - Transport Tendered / Cont. Services,46021,04/04/2016,7190129348,3474.05,,
Expenditure - Over 500,2016 01,Worcestershire County Council,Children's Services,CH-PROFIT,Secondary Home/School Transport,E10707,ASTONS COACHES LTD,PTG - Transport Tendered / Cont. Services,46021,04/04/2016,7190129349,3216.72,,
Expenditure - Over 500,2016 01,Worcestershire County Council,Children's Services,CH-PROFIT,Secondary Home/School Transport,E10707,ASTONS COACHES LTD,PTG - Transport Tendered / Cont. Services,46021,04/04/2016,7190129350,3731.4,,
Expenditure - Over 500,2016 01,Worcestershire County Council,Children's Services,CH-PROFIT,Secondary Home/School Transport,E10707,ASTONS COACHES LTD,PTG - Transport Tendered / Cont. Services,46021,04/04/2016,7190129351,3731.4,,
Expenditure - Over 500,2016 01,Worcestershire County Council,Children's Services,CH-PROFIT,Secondary Home/School Transport,E10707,ASTONS COACHES LTD,PTG - Transport Tendered / Cont. Services,46021,04/04/2016,7190129352,4454.06,,
Expenditure - Over 500,2016 01,Worcestershire County Council,Children's Services,CH-PROFIT,Secondary Home/School Transport,E10707,ASTONS COACHES LTD,PTG - Transport Tendered / Cont. Services,46021,04/04/2016,7190129353,2941.37,,
Expenditure - Over 500,2016 01,Worcestershire County Council,Children's Services,CH-PROFIT,Secondary Home/School Transport,E10707,ASTONS COACHES LTD,PTG - Transport Tendered / Cont. Services,46021,04/04/2016,7190129354,2941.37,,
Expenditure - Over 500,2016 01,Worcestershire County Council,Children's Services,CH-PROFIT,Secondary Home/School Transport,E10707,ASTONS COACHES LTD,PTG - Transport Tendered / Cont. Services,46021,04/04/2016,7190129355,2773.29,,
Expenditure - Over 500,2016 01,Worcestershire County Council,Children's Services,CH-PROFIT,Secondary Home/School Transport,E10707,ASTONS COACHES LTD,PTG - Transport Tendered / Cont. Services,46021,04/04/2016,7190129356,1644.86,,
Expenditure - Over 500,2016 01,Worcestershire County Council,Children's Services,CH-PROFIT,Secondary Home/School Transport,E10707,ASTONS COACHES LTD,PTG - Transport Tendered / Cont. Services,46021,04/04/2016,7190129357,1644.86,,
Expenditure - Over 500,2016 01,Worcestershire County Council,Children's Services,CH-PROFIT,FE Home/College Transport,E20227,ASTONS COACHES LTD,PTG - Public Transport Bus,47514,07/04/2016,7190129364,2494,,
Expenditure - Over 500,2016 01,Worcestershire County Council,"Business, Environment & Community",EN-DIR,Concessionary Fares Administration,V21015,ASTONS COACHES LTD,Third Party Pymnts Public Transport Operators,54005,14/04/2016,7190129573,1326.62,,
Expenditure - Over 500,2016 01,Worcestershire County Council,Children's Services,CH-PROFIT,Primary Home/School Transport,E10037,ASTONS COACHES LTD,PTG - Transport Tendered / Cont. Services,46021,14/04/2016,7190129812,2650.32,,
Expenditure - Over 500,2016 01,Worcestershire County Council,Children's Services,CH-PROFIT,Secondary Home/School Transport,E10707,ASTONS COACHES LTD,PTG - Transport Tendered / Cont. Services,46021,14/04/2016,7190129816,5184.72,,
Expenditure - Over 500,2016 01,Worcestershire County Council,Children's Services,CH-PROFIT,Primary Home/School Transport,E10037,ASTONS COACHES LTD,PTG - Transport Tendered / Cont. Services,46021,14/04/2016,7190129823,2675.7,,
Expenditure - Over 500,2016 01,Worcestershire County Council,Children's Services,CH-PROFIT,Primary Home/School Transport,E10037,ASTONS COACHES LTD,PTG - Transport Tendered / Cont. Services,46021,14/04/2016,7190129824,3400.38,,
Expenditure - Procurement Card,2016 01,Worcestershire County Council,Adult Services & Health,AC-PROFIT,Howbury Pickersleigh Rd Malvern,S31764,ARGOS,Equipment & Furniture,49001,05/04/2016,4600117058,21.65,DISCOUNT STORES,5310
Expenditure - Procurement Card,2016 01,Worcestershire County Council,Adult Services & Health,AC-PROFIT,Howbury Pickersleigh Rd Malvern,S31764,ARGOS,Bedding & Linen,49506,05/04/2016,4600117057,-24.98,DISCOUNT STORES,5310
Expenditure - Procurement Card,2016 01,Worcestershire County Council,Children's Services,CH-PROFIT,Old Hollow Malvern,E31766,ARGOS,Equipment,48601,05/04/2016,4600117048,23.33,DISCOUNT STORES,5310
Expenditure - Procurement Card,2016 01,Worcestershire County Council,Children's Services,CH-PROFIT,"S20 Rest of Worcester, Upton, Kempsey",E35515,ARGOS LTD,Services Personal Needs,50062,06/04/2016,4600117097,84.45,DISCOUNT STORES,5310
Expenditure - Procurement Card,2016 01,Worcestershire County Council,Children's Services,CH-PROFIT,S17 Care Leavers Team,E36604,ARGOS RETAIL GROUP,Care Grants,51006,07/04/2016,4600117287,141.65,DISCOUNT STORES,5310
Expenditure - Procurement Card,2016 01,Worcestershire County Council,Children's Services,CH-PROFIT,S17 Care Leavers Team,E36604,ARGOS RETAIL GROUP,Care Grants,51006,07/04/2016,4600117288,58.33,DISCOUNT STORES,5310
Expenditure - Procurement Card,2016 01,Worcestershire County Council,Children's Services,CH-PROFIT,S17 Care Leavers Team,E36604,ARGOS RETAIL GROUP,Care Grants,51006,07/04/2016,4600117309,299.12,DISCOUNT STORES,5310
Expenditure - Procurement Card,2016 01,Worcestershire County Council,Children's Services,CH-PROFIT,126 Barnards Green Road,E31760,ARGOS LTD,Equipment & Furniture,49001,08/04/2016,4600117321,10.83,DISCOUNT STORES,5310
Expenditure - Over 500,2016 01,Worcestershire County Council,Children's Services,CH-PROFIT,Primary Home/School Transport,E10037,ASTONS COACHES LTD,PTG - Transport Tendered / Cont. Services,46021,04/04/2016,7190129251,2001.73,,
Expenditure - Over 500,2016 01,Worcestershire County Council,Children's Services,CH-PROFIT,Primary Home/School Transport,E10037,ASTONS COACHES LTD,PTG - Transport Tendered / Cont. Services,46021,04/04/2016,7190129252,3297.17,,
Expenditure - Procurement Card,2016 01,Worcestershire County Council,Children's Services,CH-PROFIT,126 Barnards Green Road,E31760,ARGOS,Equipment,48601,09/04/2016,4600117387,11.65,DISCOUNT STORES,5310
Expenditure - Procurement Card,2016 01,Worcestershire County Council,Children's Services,CH-PROFIT,S17 Care Leavers Team,E36604,ARGOS RETAIL GROUP,Care Grants,51006,11/04/2016,4600117417,9.95,DISCOUNT STORES,5310
Expenditure - Procurement Card,2016 01,Worcestershire County Council,Adult Services & Health,AC-LDDAYC,Wyre Forest Resource Centre,S31693,ARGOS RETAIL GROUP,Equipment & Furniture,49001,11/04/2016,4600117471,20.83,DISCOUNT STORES,5310
Expenditure - Procurement Card,2016 01,Worcestershire County Council,Adult Services & Health,AC-LDDAYC,Wyre Forest Resource Centre,S31693,ARGOS LTD,Equipment Equipment Repair & Maintenance,49004,12/04/2016,4600117459,24.15,DISCOUNT STORES,5310
Expenditure - Procurement Card,2016 01,Worcestershire County Council,Adult Services & Health,AC-LDDAYC,Wyre Forest Resource Centre,S31693,ARGOS LTD,Equipment & Furniture,49001,12/04/2016,4600117469,6.66,DISCOUNT STORES,5310
Expenditure - Procurement Card,2016 01,Worcestershire County Council,Children's Services,CH-PROFIT,Orchardene Residential Unit,E31764,ARGOS LTD,Equipment,48601,12/04/2016,4600117437,14.99,DISCOUNT STORES,5310
Expenditure - Procurement Card,2016 01,Worcestershire County Council,Adult Services & Health,AC-LDDAYC,Malvern S.E.C,S31770,ARGOS,Repairs & Maintenance Grounds  Improvements,42024,28/04/2016,4600119092,62.48,DISCOUNT STORES,5310
Expenditure - Procurement Card,2016 01,Worcestershire County Council,Adult Services & Health,AC-PROFIT,Alvechurch Library,S80423,ARGOS RETAIL GROUP,Equipment & Furniture,49001,12/04/2016,4600117578,23.94,DISCOUNT STORES,5310
Expenditure - Over 500,2016 01,Worcestershire County Council,Children's Services,CH-PROFIT,Secondary Home/School Transport,E10707,ASTONS COACHES LTD,PTG - Transport Tendered / Cont. Services,46021,04/04/2016,7190129315,2038.18,,
Expenditure - Over 500,2016 01,Worcestershire County Council,Children's Services,CH-PROFIT,Secondary Home/School Transport,E10707,ASTONS COACHES LTD,PTG - Transport Tendered / Cont. Services,46021,04/04/2016,7190129316,1891.36,,
Expenditure - Over 500,2016 01,Worcestershire County Council,Children's Services,CH-PROFIT,Secondary Home/School Transport,E10707,ASTONS COACHES LTD,PTG - Transport Tendered / Cont. Services,46021,04/04/2016,7190129317,1891.37,,
Expenditure - Procurement Card,2016 01,Worcestershire County Council,Children's Services,CH-PROFIT,126 Barnards Green Road,E31760,ARGOS,Equipment,48601,13/04/2016,4600117503,24.14,DISCOUNT STORES,5310
Expenditure - Procurement Card,2016 01,Worcestershire County Council,Children's Services,CH-PROFIT,Adoption,E37705,ARGOS LTD,Computing Hardware,50307,28/04/2016,4600119074,261.66,DISCOUNT STORES,5310
Expenditure - Procurement Card,2016 01,Worcestershire County Council,Adult Services & Health,AC-PROFIT,Howbury Pickersleigh Rd Malvern,S31764,ARGOS,Equipment & Furniture,49001,14/04/2016,4600117628,21.65,DISCOUNT STORES,5310
Expenditure - Over 500,2016 01,Worcestershire County Council,Children's Services,CH-PROFIT,Primary Home/School Transport,E10037,ASTONS COACHES LTD,PTG - Transport Tendered / Cont. Services,46021,04/04/2016,7190129327,4425.44,,
Expenditure - Over 500,2016 01,Worcestershire County Council,Children's Services,CH-PROFIT,Secondary Home/School Transport,E10707,ASTONS COACHES LTD,PTG - Transport Tendered / Cont. Services,46021,04/04/2016,7190129257,3600,,
Expenditure - Procurement Card,2016 01,Worcestershire County Council,Children's Services,CH-PROFIT,S17 Care Leavers Team,E36604,ARGOS LTD,Care Grants,51006,15/04/2016,4600117652,15.83,DISCOUNT STORES,5310
Expenditure - Procurement Card,2016 01,Worcestershire County Council,Children's Services,CH-PROFIT,126 Barnards Green Road,E31760,ARGOS,Equipment,48601,15/04/2016,4600117673,12.49,DISCOUNT STORES,5310
Expenditure - Procurement Card,2016 01,Worcestershire County Council,Adult Services & Health,AC-LDDAYC,Bromsgrove Resource Centre,S31691,ARGOS RETAIL GROUP,Catering Supplies/Provisions,49251,28/04/2016,4600119249,49.99,DISCOUNT STORES,5310
Expenditure - Procurement Card,2016 01,Worcestershire County Council,Children's Services,CH-PROFIT,S17 Care Leavers Team,E36604,ARGOS LTD,Care Grants,51006,29/04/2016,4600119301,-35.97,DISCOUNT STORES,5310
Expenditure - Procurement Card,2016 01,Worcestershire County Council,Children's Services,CH-PROFIT,126 Barnards Green Road,E31760,ARGOS,Services Personal Needs,50062,15/04/2016,4600117644,17.48,DISCOUNT STORES,5310
Expenditure - Procurement Card,2016 01,Worcestershire County Council,Children's Services,CH-PROFIT,S17 Care Leavers Team,E36604,ARGOS LTD,Care Grants,51006,15/04/2016,4600117736,149.12,DISCOUNT STORES,5310
Expenditure - Procurement Card,2016 01,Worcestershire County Council,Children's Services,CH-PROFIT,Green Hill Lodge,E31761,ARGOS LTD,Equipment & Furniture,49001,16/04/2016,4600117790,31.66,DISCOUNT STORES,5310
Expenditure - Over 500,2016 01,Worcestershire County Council,Children's Services,CH-PROFIT,Secondary Home/School Transport,E10707,ASTONS COACHES LTD,PTG - Transport Tendered / Cont. Services,46021,04/04/2016,7190129314,2038.18,,
Expenditure - Over 500,2016 01,Worcestershire County Council,Adult Services & Health,AC-PROFIT,South Worcester Residential LD,S35551,ARDEN HOUSE,Receipts Sales Long Term Residents,67047,18/04/2016,7310398258,1582.76,,
Expenditure - Over 500,2016 01,Worcestershire County Council,Adult Services & Health,AC-PROFIT,North Worcs Residential LD (Wyre Forest),S35511,ARDEN HOUSE,Third Party Payments Purchase of Long Term Care,53667,18/04/2016,7310398266,1929.8,,
Expenditure - Over 500,2016 01,Worcestershire County Council,Adult Services & Health,AC-PROFIT,LT Residential - PD,S35441,ARDEN HOUSE,Third Party Payments Purchase of Long Term Care,53667,18/04/2016,7310398314,4085.52,,
Expenditure - Over 500,2016 01,Worcestershire County Council,Adult Services & Health,AC-PROFIT,North Worcs Residential LD (Wyre Forest),S35511,ARDEN HOUSE,Receipts Sales Long Term Residents,67047,18/04/2016,7310398386,2131.12,,
Expenditure - Over 500,2016 01,Worcestershire County Council,Adult Services & Health,AC-PROFIT,North Worcs Residential LD (Wyre Forest),S35511,ARDEN HOUSE,Receipts Sales Long Term Residents,67047,18/04/2016,7310398388,2131.12,,
Expenditure - Procurement Card,2016 01,Worcestershire County Council,Adult Services & Health,AC-LDDAYC,Evesham Day Centre,S31670,ARGOS LTD,Equipment & Furniture,49001,19/04/2016,4600117877,11.17,DISCOUNT STORES,5310
Expenditure - Over 500,2016 01,Worcestershire County Council,Adult Services & Health,AC-PROFIT,North Worcs Residential LD (Wyre Forest),S35511,ARDEN HOUSE,Third Party Payments Purchase of Long Term Care,53667,18/04/2016,7310398442,2495.02,,
Expenditure - Over 500,2016 01,Worcestershire County Council,Adult Services & Health,AC-PROFIT,LT Residential - OP,S35341,ARDEN HOUSE,Receipts Sales Long Term Residents,67047,18/04/2016,7310398566,-518.92,,
Expenditure - Over 500,2016 01,Worcestershire County Council,Adult Services & Health,AC-PROFIT,South Worcester Residential LD,S35551,ARDEN HOUSE,Third Party Payments Purchase of Long Term Care,53667,18/04/2016,7310398578,3851.44,,
Expenditure - Over 500,2016 01,Worcestershire County Council,Children's Services,CH-PROFIT,Primary Home/School Transport,E10037,ASTONS COACHES LTD,PTG - Transport Tendered / Cont. Services,46021,04/04/2016,7190129328,1872.3,,
Expenditure - Procurement Card,2016 01,Worcestershire County Council,Children's Services,CH-PROFIT,Green Hill Lodge,E31761,ARGOS LTD,Equipment,48601,01/04/2016,4600116898,129.99,DISCOUNT STORES,5310
Expenditure - Procurement Card,2016 01,Worcestershire County Council,Children's Services,CH-PROFIT,S17 Care Leavers Team,E36604,ARGOS LTD,Care Grants,51006,29/04/2016,4600119206,166.56,DISCOUNT STORES,5310
Expenditure - Procurement Card,2016 01,Worcestershire County Council,Children's Services,CH-PROFIT,S17 Care Leavers Team,E36604,ARGOS LTD,Care Grants,51006,29/04/2016,4600119207,154.53,DISCOUNT STORES,5310
Expenditure - Procurement Card,2016 01,Worcestershire County Council,Adult Services & Health,AC-LDDAYC,Wyre Forest Resource Centre,S31693,ARGOS LTD,Equipment & Furniture,49001,19/04/2016,4600117984,16.65,DISCOUNT STORES,5310
Expenditure - Procurement Card,2016 01,Worcestershire County Council,Children's Services,CH-PROFIT,Fostering Panel Staff,E34925,ARGOS LTD,Equipment,48601,19/04/2016,4600117864,40,DISCOUNT STORES,5310
Expenditure - Procurement Card,2016 01,Worcestershire County Council,Children's Services,CH-PROFIT,S17 Care Leavers Team,E36604,ARGOS LTD,Care Grants,51006,19/04/2016,4600117873,111.62,DISCOUNT STORES,5310
Expenditure - Procurement Card,2016 01,Worcestershire County Council,Children's Services,CH-PROFIT,Wyre Forest Respite,E31182,ARGOS RETAIL GROUP,Equipment & Furniture,49001,19/04/2016,4600118177,198.98,DISCOUNT STORES,5310
Expenditure - Procurement Card,2016 01,Worcestershire County Council,Adult Services & Health,AC-PROFIT,PD CONNECT WORCESTER,S31574,ARGOS LTD,Catering Supplies/Provisions,49251,20/04/2016,4600118279,58.33,DISCOUNT STORES,5310
Expenditure - Procurement Card,2016 01,Worcestershire County Council,Children's Services,CH-PROFIT,126 Barnards Green Road,E31760,ARGOS,Services Personal Needs,50062,20/04/2016,4600118154,26.62,DISCOUNT STORES,5310
Expenditure - Procurement Card,2016 01,Worcestershire County Council,"Business, Environment & Community",EN-PROFIT,"Management, Admin, Prof & Eng",V78900,ARGOS,Misc Other Expenses,51619,20/04/2016,4600118245,41.66,DISCOUNT STORES,5310
Expenditure - Procurement Card,2016 01,Worcestershire County Council,"Business, Environment & Community",EN-PROFIT,TMA Permit Scheme,V17204,ARGOS LTD,Equipment,48601,21/04/2016,4600118313,66.65,DISCOUNT STORES,5310
Expenditure - Procurement Card,2016 01,Worcestershire County Council,Children's Services,CH-PROFIT,S17 Care Leavers Team,E36604,ARGOS RETAIL GROUP,Care Grants,51006,29/04/2016,4600119328,132.45,DISCOUNT STORES,5310
Expenditure - Procurement Card,2016 01,Worcestershire County Council,Adult Services & Health,AC-PROFIT,Emergency Planning,S42054,ARGOS LTD,Conference Exps,50603,21/04/2016,4600118384,32.47,DISCOUNT STORES,5310
Expenditure - Procurement Card,2016 01,Worcestershire County Council,Children's Services,CH-PROFIT,126 Barnards Green Road,E31760,ARGOS LTD,Equipment,48601,21/04/2016,4600118404,95.82,DISCOUNT STORES,5310
Expenditure - Procurement Card,2016 01,Worcestershire County Council,Children's Services,CH-PROFIT,Supported Living Outreach,E31769,ARGOS LTD,Equipment & Furniture,49001,21/04/2016,4600118381,7.99,DISCOUNT STORES,5310
Expenditure - Procurement Card,2016 01,Worcestershire County Council,Children's Services,CH-PROFIT,Supported Living Outreach,E31769,ARGOS LTD,Equipment & Furniture,49001,21/04/2016,4600118382,13.98,DISCOUNT STORES,5310
Expenditure - Procurement Card,2016 01,Worcestershire County Council,Children's Services,CH-PROFIT,S17 Care Leavers Team,E36604,ARGOS RETAIL GROUP,Care Grants,51006,22/04/2016,4600118676,178.53,DISCOUNT STORES,5310
Expenditure - Procurement Card,2016 01,Worcestershire County Council,Children's Services,CH-PROFIT,S17 Care Leavers Team,E36604,ARGOS RETAIL GROUP,Care Grants,51006,22/04/2016,4600118677,349.11,DISCOUNT STORES,5310
Expenditure - Procurement Card,2016 01,Worcestershire County Council,Children's Services,CH-PROFIT,126 Barnards Green Road,E31760,ARGOS,Equipment & Furniture,49001,23/04/2016,4600118631,49.98,DISCOUNT STORES,5310
Expenditure - Procurement Card,2016 01,Worcestershire County Council,Children's Services,CH-PROFIT,S17 Care Leavers Team,E36604,ARGOS LTD,Care Grants,51006,23/04/2016,4600118609,35.97,DISCOUNT STORES,5310
Expenditure - Procurement Card,2016 01,Worcestershire County Council,Children's Services,CH-PROFIT,126 Barnards Green Road,E31760,ARGOS,Stationery,49754,23/04/2016,4600118632,9.16,DISCOUNT STORES,5310
Expenditure - Procurement Card,2016 01,Worcestershire County Council,Children's Services,CH-PROFIT,S17 Care Leavers Team,E36604,ARGOS LTD,Care Grants,51006,23/04/2016,4600118683,336.41,DISCOUNT STORES,5310
Expenditure - Procurement Card,2016 01,Worcestershire County Council,Children's Services,CH-PROFIT,S17 Care Leavers Team,E36604,ARGOS RETAIL GROUP,Care Grants,51006,25/04/2016,4600118746,182.06,DISCOUNT STORES,5310
Expenditure - Procurement Card,2016 01,Worcestershire County Council,Adult Services & Health,AC-LDDAYC,Wyre Forest Resource Centre,S31693,ARGOS RETAIL GROUP,Equipment & Furniture,49001,25/04/2016,4600118917,16.65,DISCOUNT STORES,5310
Expenditure - Procurement Card,2016 01,Worcestershire County Council,Adult Services & Health,AC-LDDAYC,Wyre Forest Resource Centre,S31693,ARGOS RETAIL GROUP,Other Materials,49031,25/04/2016,4600118918,74.97,DISCOUNT STORES,5310
Expenditure - Procurement Card,2016 01,Worcestershire County Council,Children's Services,CH-PROFIT,S20 Floating Team,E35506,ARGOS RETAIL GROUP,Care Grants,51006,25/04/2016,4600118936,332.43,DISCOUNT STORES,5310
Expenditure - Procurement Card,2016 01,Worcestershire County Council,Children's Services,CH-PROFIT,Team 12,E37512,ARGOS,Equipment & Furniture,49001,26/04/2016,4600118877,38.97,DISCOUNT STORES,5310
Expenditure - Procurement Card,2016 01,Worcestershire County Council,Children's Services,CH-PROFIT,Team 12,E37512,ARGOS LTD,Equipment & Furniture,49001,26/04/2016,4600118878,32.88,DISCOUNT STORES,5310
Expenditure - Procurement Card,2016 01,Worcestershire County Council,Children's Services,CH-PROFIT,S20 LAC Permanancy North West,E35602,ARGOS LTD,Misc Other Expenses,51619,26/04/2016,4600118800,16.66,DISCOUNT STORES,5310
Expenditure - Procurement Card,2016 01,Worcestershire County Council,Adult Services & Health,AC-LDDAYC,Wyre Forest Resource Centre,S31693,ARGOS LTD,Equipment & Furniture,49001,26/04/2016,4600118899,8.49,DISCOUNT STORES,5310
Expenditure - Procurement Card,2016 01,Worcestershire County Council,Children's Services,CH-PROFIT,S17 Care Leavers Team,E36604,ARGOS LTD,Care Grants,51006,26/04/2016,4600118742,30.79,DISCOUNT STORES,5310
Expenditure - Procurement Card,2016 01,Worcestershire County Council,Children's Services,CH-PROFIT,Outreach support service,E31763,ARGOS LTD,Care Grants,51006,26/04/2016,4600118920,17.99,DISCOUNT STORES,5310
Expenditure - Procurement Card,2016 01,Worcestershire County Council,Adult Services & Health,AC-LDDAYC,Evesham Day Centre,S31670,ARGOS LTD,Equipment & Furniture,49001,01/04/2016,4600116887,58.33,DISCOUNT STORES,5310
Expenditure - Procurement Card,2016 01,Worcestershire County Council,Children's Services,CH-PROFIT,Orchardene Residential Unit,E31764,ARGOS LTD,Equipment,48601,01/04/2016,4600116748,18.3,DISCOUNT STORES,5310
Expenditure - Procurement Card,2016 01,Worcestershire County Council,Children's Services,CH-PROFIT,"S17 Hollywood, Rubery, Alvechurch",E36511,ARGOS RETAIL GROUP,Subsistence,50601,01/04/2016,4600116982,48.94,DISCOUNT STORES,5310
Expenditure - Procurement Card,2016 01,Worcestershire County Council,Children's Services,CH-PROFIT,"S17 Hollywood, Rubery, Alvechurch",E36511,ARGOS RETAIL GROUP,Subsistence,50601,01/04/2016,4600116985,132.43,DISCOUNT STORES,5310
Expenditure - Procurement Card,2016 01,Worcestershire County Council,Children's Services,CH-PROFIT,"S17 Hollywood, Rubery, Alvechurch",E36511,ARGOS RETAIL GROUP,Subsistence,50601,01/04/2016,4600116988,-39.99,DISCOUNT STORES,5310
Expenditure - Procurement Card,2016 01,Worcestershire County Council,Children's Services,CH-PROFIT,"S17 Redditch (Matchb'gh, Winyates,&Churc",E36509,ARGOS RETAIL GROUP,Subsistence,50601,01/04/2016,4600116990,94.97,DISCOUNT STORES,5310
Expenditure - Over 500,2016 01,Worcestershire County Council,Adult Services & Health,AC-PROFIT,Residential - MH,S35641,ASTON HOUSE,Third Party Payments Purchase of Long Term Care,53667,18/04/2016,7310398720,3051.44,,
Expenditure - Over 500,2016 01,Worcestershire County Council,Adult Services & Health,AC-PROFIT,Residential - MH,S35641,ASTON HOUSE,Third Party Payments Purchase of Long Term Care,53667,18/04/2016,7310398738,1265.2,,
Expenditure - Over 500,2016 01,Worcestershire County Council,Adult Services & Health,AC-PROFIT,Timberdine Nursing & Rehab Unit,S31562,ARJOHUNTLEIGH UK,Equipment Tools,49005,04/04/2016,4101527985,2090.89,,
Expenditure - Over 500,2016 01,Worcestershire County Council,Adult Services & Health,AC-PROFIT,Home Care Improvement Project,S31521,ARJOHUNTLEIGH UK,Equipment Adults Special SSD,49086,07/04/2016,4101541930,1800,,
Expenditure - Over 500,2016 01,Worcestershire County Council,Children's Services,CH-PROFIT,Short Breaks on framework,E31529,ARMCHAIR MINIBUSES,PTG - Transport Tendered / Cont. Services,46021,04/04/2016,7190129103,2106,,
Expenditure - Over 500,2016 01,Worcestershire County Council,Adult Services & Health,AC-PROFIT,LD Transport (PTG) North,S34844,ARMCHAIR MINIBUSES,PTG - Transport Tendered / Cont. Services,46021,04/04/2016,7190129104,2242,,
Expenditure - Over 500,2016 01,Worcestershire County Council,Children's Services,CH-PROFIT,Short Breaks on framework,E31529,ARMCHAIR MINIBUSES,PTG - Transport Tendered / Cont. Services,46021,04/04/2016,7190129105,3636,,
Expenditure - Over 500,2016 01,Worcestershire County Council,Children's Services,CH-PROFIT,Short Breaks on framework,E31529,ARMCHAIR MINIBUSES,PTG - Transport Tendered / Cont. Services,46021,04/04/2016,7190129106,3597,,
Expenditure - Over 500,2016 01,Worcestershire County Council,"Business, Environment & Community",EN-DIR,Local Bus WCC Services,V21020,ASTONS COACHES LTD,Third Party Pymnts Other Hired & Contracted Servs,53986,25/04/2016,7190130018,14113,,
Expenditure - Over 500,2016 01,Worcestershire County Council,"Business, Environment & Community",EN-DIR,Local Bus WCC Services,V21020,ASTONS COACHES LTD,Third Party Pymnts Other Hired & Contracted Servs,53986,25/04/2016,7190130019,22793,,
Expenditure - Over 500,2016 01,Worcestershire County Council,"Business, Environment & Community",EN-DIR,Local Bus WCC Services,V21020,ASTONS COACHES LTD,Third Party Pymnts Other Hired & Contracted Servs,53986,25/04/2016,7190130023,17627.9,,
Expenditure - Over 500,2016 01,Worcestershire County Council,Children's Services,CH-PROFIT,FE Home/College Transport,E20227,ASTONS COACHES LTD,PTG - Public Transport Bus,47514,28/04/2016,7190130070,2488,,
Expenditure - Over 500,2016 01,Worcestershire County Council,Children's Services,CH-PROFIT,Early Years - Other Providers,E21205,ASTWOOD BANK PRE- SCHOOL,Third Party Pymts 4Yr Old Nursery Education Grant,53657,11/04/2016,7200025205,24843,,
Expenditure - Over 500,2016 01,Worcestershire County Council,"Business, Environment & Community",EN-DIR,Bus Company Contracts,V20900,JOBTOGS,Protective Clothing,49502,11/04/2016,4101543162,428.4,,
Expenditure - Over 500,2016 01,Worcestershire County Council,"Business, Environment & Community",EN-DIR,Bus Company Contracts,V20900,JOBTOGS,Protective Clothing,49502,11/04/2016,4101543163,764.55,,
Expenditure - Over 500,2016 01,Worcestershire County Council,Children's Services,CH-PROFIT,Early Help Wyre Forest District,E21509,BARNARDO SERVICES LTD,Third Party Payments New Arrangements,53663,05/04/2016,4101542453,106853.67,,
Expenditure - Over 500,2016 01,Worcestershire County Council,Children's Services,CH-PROFIT,Low Level Mental Health,E36015,BARNARDO SERVICES LTD,Third Party Payments New Arrangements,53663,25/04/2016,4101542926,8667,,
Expenditure - Over 500,2016 01,Worcestershire County Council,Children's Services,CH-PROFIT,Low Level Mental Health,E36015,BARNARDO SERVICES LTD,Third Party Payments New Arrangements,53663,25/04/2016,4101542927,6500,,
Expenditure - Over 500,2016 01,Worcestershire County Council,Children's Services,CH-PROFIT,Section 17 Team 20,E32015,BARNARDO'S MIDLANDS,Third Party Pymts Indepentent Fostering Agency,54059,04/04/2016,7220017620,4256.78,,
Expenditure - Over 500,2016 01,Worcestershire County Council,Children's Services,CH-PROFIT,External Placements Team 14,E38514,BARNARDO'S MIDLANDS,Third Party Pymts Indepentent Fostering Agency,54059,04/04/2016,7220017708,2972.14,,
Expenditure - Over 500,2016 01,Worcestershire County Council,Children's Services,CH-PROFIT,Short Breaks on Framework,E31531,BARNARDO'S MIDLANDS,Third Party Pymts Voluntary Associations-General,53656,07/04/2016,4101542883,18866.45,,
Expenditure - Over 500,2016 01,Worcestershire County Council,Children's Services,CH-PROFIT,Section 17 Team 20,E32015,BARNARDO'S MIDLANDS,Third Party Pymts Indepentent Fostering Agency,54059,28/04/2016,7220017856,3973,,
Expenditure - Over 500,2016 01,Worcestershire County Council,Children's Services,CH-PROFIT,External Placements Team 14,E38514,BARNARDO'S MIDLANDS,Third Party Pymts Indepentent Fostering Agency,54059,28/04/2016,7220017940,2774,,
Expenditure - Over 500,2016 01,Worcestershire County Council,Adult Services & Health,AC-PROFIT,Smoking - Stop Smoking Service,S42004,BARNT GREEN SURGERY,Third Party Payments,53006,07/04/2016,4101538859,682,,
Expenditure - Over 500,2016 01,Worcestershire County Council,Adult Services & Health,AC-PROFIT,Health Checks,S42005,BARNT GREEN SURGERY,Third Party Payments,53006,07/04/2016,4101538861,4165,,
Expenditure - Over 500,2016 01,Worcestershire County Council,Adult Services & Health,AC-PROFIT,Health Checks,S42005,BARNT GREEN SURGERY,Third Party Payments,53006,28/04/2016,4101543688,3869,,
Expenditure - Over 500,2016 01,Worcestershire County Council,Adult Services & Health,AC-PROFIT,Timberdine Nursing & Rehab Unit,S31562,BARONS LTD,Equipment & Furniture,49001,11/04/2016,4101543505,9128,,
Expenditure - Over 500,2016 01,Worcestershire County Council,Children's Services,CH-PROFIT,Early Years - Other Providers,E21205,BREDON PLAYGROUP,Third Party Pymts 4Yr Old Nursery Education Grant,53657,11/04/2016,7200025236,11843.83,,
Expenditure - Over 500,2016 01,Worcestershire County Council,Children's Services,CH-PROFIT,Early Years - Other Providers,E21205,BENGEWORTH PRE-SCHOOL,Third Party Pymts 4Yr Old Nursery Education Grant,53657,11/04/2016,7200025222,19079.42,,
Expenditure - Over 500,2016 01,Worcestershire County Council,Children's Services,CH-PROFIT,Early Years - Other Providers,E21205,BRETFORTON PRESCHOOL PLAYGROUP,Third Party Pymts 4Yr Old Nursery Education Grant,53657,11/04/2016,7200025237,9817.08,,
Expenditure - Over 500,2016 01,Worcestershire County Council,Adult Services & Health,AC-PROFIT,LT Residential - OP,S35341,BOURNVILLE VILLAGE TRUST,Third Party Payments Purchase of Long Term Care,53667,18/04/2016,7310399324,980.56,,
Expenditure - Over 500,2016 01,Worcestershire County Council,Adult Services & Health,AC-PROFIT,Lock Close Short Term,S33831,BOURNVILLE VILLAGE TRUST,Rents Payable,43401,11/04/2016,4101543519,32201,,
Expenditure - Over 500,2016 01,Worcestershire County Council,Adult Services & Health,AC-PROFIT,LT Residential - PD,S35441,BIRMINGHAM FOCUS,Third Party Payments Purchase of Long Term Care,53667,18/04/2016,7310399278,4304.46,,
Expenditure - Over 500,2016 01,Worcestershire County Council,Adult Services & Health,AC-PROFIT,Residential - MH,S35641,BIRMINGHAM INSTITUTE FOR THE DEAF,Third Party Payments Purchase of Long Term Care,53667,18/04/2016,7310399276,5013.96,,
Expenditure - Over 500,2016 01,Worcestershire County Council,"Business, Environment & Community",EN-PROFIT,Parish Lengthsman Scheme,V16101,BEWDLEY TOWN COUNCIL,Third Party Payments Private Contractors,53974,21/04/2016,4101545692,584.41,,
Expenditure - Over 500,2016 01,Worcestershire County Council,Adult Services & Health,AC-PROFIT,Primary Care - LARC Sex.Hlth/Contracept,S42033,BEWDLEY MEDICAL CENTRE (WFHP),Third Party Payments,53006,07/04/2016,4101534889,1394.92,,
Expenditure - Over 500,2016 01,Worcestershire County Council,Adult Services & Health,AC-PROFIT,LT Residential - OP,S35341,BEDWARDINE HOUSE RESIDENTIAL CARE H,Receipts Sales Long Term Residents,67047,18/04/2016,7310398586,1573.36,,
Expenditure - Over 500,2016 01,Worcestershire County Council,Adult Services & Health,AC-PROFIT,LT Residential - OP,S35341,BEDWARDINE HOUSE RESIDENTIAL CARE H,Receipts Sales Long Term Residents,67047,18/04/2016,7310398570,1499.12,,
Expenditure - Over 500,2016 01,Worcestershire County Council,Adult Services & Health,AC-PROFIT,LT Residential - OP,S35341,BEDWARDINE HOUSE RESIDENTIAL CARE H,Receipts Sales Long Term Residents,67047,18/04/2016,7310398490,1225.06,,
Expenditure - Over 500,2016 01,Worcestershire County Council,Adult Services & Health,AC-PROFIT,LT Residential - OP,S35341,BEDWARDINE HOUSE RESIDENTIAL CARE H,Receipts Sales Long Term Residents,67047,18/04/2016,7310398480,1104.22,,
Expenditure - Over 500,2016 01,Worcestershire County Council,Children's Services,CH-PROFIT,Early Years - Other Providers,E21205,BROADWAS BUMBLEBEES PLAYGROUP,Third Party Pymts 4Yr Old Nursery Education Grant,53657,11/04/2016,7200025235,7647.82,,
Expenditure - Over 500,2016 01,Worcestershire County Council,"Business, Environment & Community",EN-PROFIT,Parish Lengthsman Scheme,V16101,BROADWAY PARISH COUNCIL,Third Party Payments Private Contractors,53974,04/04/2016,4101541563,505,,
Expenditure - Over 500,2016 01,Worcestershire County Council,Children's Services,CH-PROFIT,Short Breaks on framework,E31529,BROMSGROVE BUS & COACH CO LTD,PTG - Transport Tendered / Cont. Services,46021,04/04/2016,7190129188,2250,,
Expenditure - Over 500,2016 01,Worcestershire County Council,Children's Services,CH-PROFIT,Special Home/School Transport,E10877,BROMSGROVE BUS & COACH CO LTD,PTG - Transport Tendered / Cont. Services,46021,04/04/2016,7190129189,1962,,
Expenditure - Over 500,2016 01,Worcestershire County Council,Children's Services,CH-PROFIT,Special Home/School Transport,E10877,BROMSGROVE BUS & COACH CO LTD,PTG - Transport Tendered / Cont. Services,46021,04/04/2016,7190129190,2169,,
Expenditure - Over 500,2016 01,Worcestershire County Council,Children's Services,CH-PROFIT,Section 17 Team 20,E32015,BROMSGROVE BUS & COACH CO LTD,PTG - Transport Tendered / Cont. Services,46021,04/04/2016,7190129194,2034,,
Expenditure - Over 500,2016 01,Worcestershire County Council,Children's Services,CH-PROFIT,Primary Home/School Transport,E10037,BROMSGROVE BUS & COACH CO LTD,PTG - Transport Tendered / Cont. Services,46021,04/04/2016,7190129304,1606.36,,
Expenditure - Over 500,2016 01,Worcestershire County Council,Children's Services,CH-PROFIT,Secondary Home/School Transport,E10707,BROMSGROVE BUS & COACH CO LTD,PTG - Transport Tendered / Cont. Services,46021,04/04/2016,7190129307,1395,,
Expenditure - Over 500,2016 01,Worcestershire County Council,Children's Services,CH-PROFIT,Secondary Home/School Transport,E10707,BROMSGROVE BUS & COACH CO LTD,PTG - Transport Tendered / Cont. Services,46021,04/04/2016,7190129311,1949.99,,
Expenditure - Over 500,2016 01,Worcestershire County Council,Children's Services,CH-PROFIT,Secondary Home/School Transport,E10707,BROMSGROVE BUS & COACH CO LTD,PTG - Transport Tendered / Cont. Services,46021,04/04/2016,7190129318,1692.73,,
Expenditure - Over 500,2016 01,Worcestershire County Council,Children's Services,CH-PROFIT,Early Years - Other Providers,E21205,BROMSGROVE PRE-PREP SCHOOL,Third Party Pymts 4Yr Old Nursery Education Grant,53657,11/04/2016,7200025245,28322.91,,
Expenditure - Over 500,2016 01,Worcestershire County Council,Children's Services,CH-PROFIT,Early Years - Other Providers,E21205,BROMSGROVE PRE-PREP SCHOOL,Third Party Pymts 4Yr Old Nursery Education Grant,53657,11/04/2016,7200025246,6086.85,,
Expenditure - Over 500,2016 01,Worcestershire County Council,Children's Services,CH-PROFIT,Primary Home/School Transport,E10037,BROOKSIDE TAXIS NO2 CLIENTS A/C,PTG - Transport Tendered / Cont. Services,46021,04/04/2016,7190129284,1455,,
Expenditure - Over 500,2016 01,Worcestershire County Council,Children's Services,CH-PROFIT,Special Home/School Transport,E10877,BROOKSIDE TAXIS NO2 CLIENTS A/C,PTG - Transport Tendered / Cont. Services,46021,07/04/2016,7190129470,1332,,
Expenditure - Over 500,2016 01,Worcestershire County Council,Children's Services,CH-PROFIT,Post 16 - SEN H/S Transport,E20803,BROOKSIDE TAXIS NO2 CLIENTS A/C,PTG - Transport Tendered / Cont. Services,46021,07/04/2016,7190129476,1020,,
Expenditure - Over 500,2016 01,Worcestershire County Council,Children's Services,CH-PROFIT,Trans't to Non WCC Special Schools,E20347,BROOKSIDE TAXIS NO2 CLIENTS A/C,PTG - Transport Tendered / Cont. Services,46021,07/04/2016,7190129477,780,,
Expenditure - Over 500,2016 01,Worcestershire County Council,Children's Services,CH-PROFIT,Short Breaks on framework,E31529,BROOKSIDE TAXIS NO2 CLIENTS A/C,PTG - Transport Tendered / Cont. Services,46021,07/04/2016,7190129486,2609.82,,
Expenditure - Over 500,2016 01,Worcestershire County Council,Resources,FS-PROFIT,Insurance - Central Funds (WCC),F40475,BROWNE JACOBSON LLP,Expenses Insurances Claims - Other,51636,11/04/2016,3300650375,873.5,,
Expenditure - Over 500,2016 01,Worcestershire County Council,Resources,CS-PROFIT,Corporate Subscriptions,C40234,THE BRITISH STANDARDS INSTITUTION,Subscriptions British Standards Institute,51013,21/04/2016,4101545706,3508,,
Expenditure - Over 500,2016 01,Worcestershire County Council,Non Directorate Specific,LA01,IBS - Servers,CA87506,BYTES SOFTWARE SERVICES LTD,CAPEX IT Equipment,65202,14/04/2016,4101542846,43265.64,,
Expenditure - Over 500,2016 01,Worcestershire County Council,Non Directorate Specific,LA01,IBS - Servers,CA87506,BYTES SOFTWARE SERVICES LTD,CAPEX IT Equipment,65202,14/04/2016,4101543684,40961.63,,
Expenditure - Over 500,2016 01,Worcestershire County Council,Resources,CS-PROFIT,ICT - Applications Directorate based,C40172,BYTES SOFTWARE SERVICES LTD,Computing Software,50319,14/04/2016,4101543693,102377.76,,
Expenditure - Over 500,2016 01,Worcestershire County Council,Resources,CS-PROFIT,ICT - Applications Directorate based,C40172,BYTES SOFTWARE SERVICES LTD,Computing Software,50319,19/04/2016,4101542847,269175.84,,
Expenditure - Over 500,2016 01,Worcestershire County Council,"Business, Environment & Community",EN-PROFIT,"Management, Admin, Professional & E",V18100,BYTES SOFTWARE SERVICES LTD,Computing Software,50319,19/04/2016,4101544857,1659.78,,
Expenditure - Over 500,2016 01,Worcestershire County Council,Adult Services & Health,AC-PROFIT,Smoking - NRT,S42068,BOOTS UK,Third Party Payments,53006,21/04/2016,7580000929,480.66,,
Expenditure - Over 500,2016 01,Worcestershire County Council,Adult Services & Health,AC-PROFIT,Smoking - NRT,S42068,BOOTS UK,Third Party Payments,53006,21/04/2016,7580000926,526.93,,
Expenditure - Over 500,2016 01,Worcestershire County Council,Adult Services & Health,AC-PROFIT,Pharmacy - EHC (Sex Hlth/Contraception),S42034,BOOTS UK,Third Party Payments,53006,21/04/2016,7580000923,837,,
Expenditure - Over 500,2016 01,Worcestershire County Council,Adult Services & Health,AC-PROFIT,Smoking - NRT,S42068,BOOTS UK,Third Party Payments,53006,21/04/2016,7580000921,722.49,,
Expenditure - Over 500,2016 01,Worcestershire County Council,Adult Services & Health,AC-PROFIT,Smoking - NRT,S42068,BOOTS UK,Third Party Payments,53006,21/04/2016,7580000920,898.47,,
Expenditure - Over 500,2016 01,Worcestershire County Council,Children's Services,CH-PROFIT,Early Years - Other Providers,E21205,BOWBROOK HOUSE SCHOOL LTD,Third Party Pymts 4Yr Old Nursery Education Grant,53657,11/04/2016,7200025232,846.3,,
Expenditure - Over 500,2016 01,Worcestershire County Council,Children's Services,CH-PROFIT,Early Years - Other Providers,E21205,BOWBROOK HOUSE SCHOOL LTD,Third Party Pymts 4Yr Old Nursery Education Grant,53657,11/04/2016,7200025231,4995.9,,
Expenditure - Over 500,2016 01,Worcestershire County Council,Children's Services,CH-PROFIT,DSG - Pupil Premium Grant,E23039,BOWBROOK HOUSE SCHOOL LTD,Grants To Outside Bodies,51016,04/04/2016,3310035151,935,,
Expenditure - Over 500,2016 01,Worcestershire County Council,Children's Services,CH-PROFIT,Early Years - Other Providers,E21205,BROADWAY PLAYGROUP,Third Party Pymts 4Yr Old Nursery Education Grant,53657,11/04/2016,7200025243,11305.48,,
Expenditure - Over 500,2016 01,Worcestershire County Council,Children's Services,CH-PROFIT,S20 Kidderminster West,E35502,BIRMINGHAM CHILDREN'S HOSPITAL NHSF,Legal Fees,50024,19/04/2016,4101542598,643.19,,
Expenditure - Over 500,2016 01,Worcestershire County Council,Non Directorate Specific,LA01,PROW Capital Programme,CA76607,BROMYARD TIMBER & FENCING LTD,CAPEX Construction Costs Main Contractor,64951,04/04/2016,4101534532,1397,,
Expenditure - Over 500,2016 01,Worcestershire County Council,"Business, Environment & Community",EN-PROFIT,Material Stock,V82822,BROMYARD TIMBER & FENCING LTD,Other Materials,49031,07/04/2016,4101542628,1020,,
Expenditure - Over 500,2016 01,Worcestershire County Council,"Business, Environment & Community",EN-PROFIT,Material Stock,V82822,CAPITA BUSINESS SERVICES LTD,Other Materials,49031,26/04/2016,4101545474,8374,,
Expenditure - Over 500,2016 01,Worcestershire County Council,Adult Services & Health,AC-PROFIT,South Worcester Residential LD,S35551,CAMPHILL DEVON COMMUNITY LTD,Receipts Sales Long Term Residents,67047,18/04/2016,7310398732,1360,,
Expenditure - Over 500,2016 01,Worcestershire County Council,Adult Services & Health,AC-PROFIT,LT Residential - PD,S35441,CAMPHILL DEVON COMMUNITY LTD,Receipts Sales Long Term Residents,67047,18/04/2016,7310398970,2607.3,,
Expenditure - Over 500,2016 01,Worcestershire County Council,Children's Services,CH-PROFIT,Bromsgrove Respite Home,E31278,CANNON HYGIENE,Premises Waste Refuse Collection,45801,21/04/2016,4101545536,563.64,,
Expenditure - Over 500,2016 01,Worcestershire County Council,Adult Services & Health,AC-PROFIT,Howbury Pickersleigh Rd Malvern,S31764,CANNON HYGIENE,Premises Waste Refuse Collection,45801,25/04/2016,4101545022,1907.48,,
Expenditure - Over 500,2016 01,Worcestershire County Council,Adult Services & Health,AC-PROFIT,The Grange Kidderminster,S31164,CANNON HYGIENE,Health & Safety,44609,26/04/2016,4101547902,1540.2,,
Expenditure - Over 500,2016 01,Worcestershire County Council,Resources,CS-PROFIT,Broadband - 1516 Expenditure,C40087,CAPITA BUSINESS SERVICES LTD,Services Other Fees,50035,04/04/2016,4101541975,10157.67,,
Expenditure - Over 500,2016 01,Worcestershire County Council,Children's Services,CH-PROFIT,Policy Development,E10017,CAPITA BUSINESS SERVICES LTD,Services Other Fees,50035,07/04/2016,4101542718,990,,
Expenditure - Over 500,2016 01,Worcestershire County Council,Adult Services & Health,AC-PROFIT,LD Day Care External North,S35555,CAMPHILL VILLAGE TRUST,Third Party Payments Day Care Frm Independent Prov,53668,29/04/2016,7320485130,581.67,,
Expenditure - Over 500,2016 01,Worcestershire County Council,Children's Services,CH-PROFIT,Policy Development,E10017,CAPITA BUSINESS SERVICES LTD,Services Other Fees,50035,29/04/2016,4101549954,3074.65,,
Expenditure - Over 500,2016 01,Worcestershire County Council,Children's Services,CH-PROFIT,Policy Development,E10017,CAPITA BUSINESS SERVICES LTD,Computing Licenses,50306,29/04/2016,4101549804,192360.17,,
Expenditure - Over 500,2016 01,Worcestershire County Council,Children's Services,CH-PROFIT,Policy Development,E10017,CAPITA BUSINESS SERVICES LTD,Services Other Fees,50035,29/04/2016,4101549956,832.14,,
Expenditure - Over 500,2016 01,Worcestershire County Council,Adult Services & Health,AC-PROFIT,Coroners Service,S80230,CARDIFF UNIVERSITY,Expenses PM Examinations Medical Fees,51651,29/04/2016,3300650569,500,,
Expenditure - Over 500,2016 01,Worcestershire County Council,Adult Services & Health,AC-PROFIT,Domiciliary Spot - PD,S33412,CARE FORCE,Third Party Payments Dom Care Frm Independent Prov,53669,11/04/2016,7320480139,596.63,,
Expenditure - Over 500,2016 01,Worcestershire County Council,Adult Services & Health,AC-PROFIT,LT Nursing - OP,S35342,BUPA CARE SERVICES,Third Party Payments Purchase of Long Term Care,53667,18/04/2016,7310396789,1477.28,,
Expenditure - Over 500,2016 01,Worcestershire County Council,Adult Services & Health,AC-PROFIT,LT Nursing - OP,S35342,BUPA CARE SERVICES,Third Party Payments Purchase of Long Term Care,53667,18/04/2016,7310396817,1420.3,,
Expenditure - Over 500,2016 01,Worcestershire County Council,Adult Services & Health,AC-PROFIT,South Worcester Nursing LD,S35552,BUPA CARE SERVICES,Third Party Payments Purchase of Long Term Care,53667,18/04/2016,7310396823,2892.9,,
Expenditure - Over 500,2016 01,Worcestershire County Council,Adult Services & Health,AC-PROFIT,LT Nursing - OP,S35342,BUPA CARE SERVICES,Receipts Sales Long Term Residents,67047,18/04/2016,7310396827,1628.82,,
Expenditure - Over 500,2016 01,Worcestershire County Council,Adult Services & Health,AC-PROFIT,LT Nursing - OP,S35342,BUPA CARE SERVICES,Receipts Sales Long Term Residents,67047,18/04/2016,7310396849,1807.7,,
Expenditure - Over 500,2016 01,Worcestershire County Council,Adult Services & Health,AC-PROFIT,LT Nursing - OP,S35342,BUPA CARE SERVICES,Receipts Sales Long Term Residents,67047,18/04/2016,7310396875,725.44,,
Expenditure - Over 500,2016 01,Worcestershire County Council,Adult Services & Health,AC-PROFIT,LT Nursing - OP,S35342,BUPA CARE SERVICES,Receipts Sales Long Term Residents,67047,18/04/2016,7310396889,1131.04,,
Expenditure - Over 500,2016 01,Worcestershire County Council,Adult Services & Health,AC-PROFIT,LT Nursing - OP,S35342,BUPA CARE SERVICES,Receipts Sales Long Term Residents,67047,18/04/2016,7310396903,1658.76,,
Expenditure - Over 500,2016 01,Worcestershire County Council,Adult Services & Health,AC-PROFIT,LT Nursing - OP,S35342,BUPA CARE SERVICES,Third Party Payments Purchase of Long Term Care,53667,18/04/2016,7310396917,2188,,
Expenditure - Over 500,2016 01,Worcestershire County Council,Adult Services & Health,AC-PROFIT,LT Nursing - OP,S35342,BUPA CARE SERVICES,Third Party Payments Purchase of Long Term Care,53667,18/04/2016,7310396919,1678.82,,
Expenditure - Over 500,2016 01,Worcestershire County Council,Adult Services & Health,AC-PROFIT,Property Charge Temporary Code,S35398,BUPA CARE SERVICES,Third Party Payments Purchase of Long Term Care,53667,18/04/2016,7310396923,844.88,,
Expenditure - Over 500,2016 01,Worcestershire County Council,Adult Services & Health,AC-PROFIT,LT Nursing - OP,S35342,BUPA CARE SERVICES,Third Party Payments Purchase of Long Term Care,53667,18/04/2016,7310396929,1448.8,,
Expenditure - Over 500,2016 01,Worcestershire County Council,Adult Services & Health,AC-PROFIT,COP Property Temporary Code,S35397,BUPA CARE SERVICES,Third Party Payments Purchase of Long Term Care,53667,18/04/2016,7310396941,3677.56,,
Expenditure - Over 500,2016 01,Worcestershire County Council,Adult Services & Health,AC-PROFIT,LT Nursing - OP,S35342,BUPA CARE SERVICES,Receipts Sales Long Term Residents,67047,18/04/2016,7310396967,1860.22,,
Expenditure - Over 500,2016 01,Worcestershire County Council,Adult Services & Health,AC-PROFIT,LT Nursing - OP,S35342,BUPA CARE SERVICES,Third Party Payments Purchase of Long Term Care,53667,18/04/2016,7310396971,1018.02,,
Expenditure - Over 500,2016 01,Worcestershire County Council,Adult Services & Health,AC-PROFIT,Domiciliary Spot - OP,S33414,CARE FORCE,Third Party Payments Dom Care Frm Independent Prov,53669,11/04/2016,7320480322,522.96,,
Expenditure - Over 500,2016 01,Worcestershire County Council,Adult Services & Health,AC-PROFIT,ST Nursing - OP,S35344,BUPA CARE SERVICES,TPP Purchase of Planned Replacement Care,53666,18/04/2016,7310397143,1310.21,,
Expenditure - Over 500,2016 01,Worcestershire County Council,Adult Services & Health,AC-PROFIT,LT Nursing - OP,S35342,BUPA CARE SERVICES,Third Party Payments Purchase of Long Term Care,53667,18/04/2016,7310397157,3200,,
Expenditure - Over 500,2016 01,Worcestershire County Council,Adult Services & Health,AC-PROFIT,South Worcester Nursing LD,S35552,BUPA CARE SERVICES,Receipts Sales Long Term Residents,67047,18/04/2016,7310397219,-2635.81,,
Expenditure - Over 500,2016 01,Worcestershire County Council,Adult Services & Health,AC-PROFIT,ST Nursing - OP,S35344,BUPA CARE SERVICES,TPP Purchase of Planned Replacement Care,53666,18/04/2016,7310397221,2188,,
Expenditure - Over 500,2016 01,Worcestershire County Council,Adult Services & Health,AC-PROFIT,Domiciliary Spot - OP,S33414,CARE FORCE,Third Party Payments Dom Care Frm Independent Prov,53669,25/04/2016,7320483605,529.05,,
Expenditure - Over 500,2016 01,Worcestershire County Council,Adult Services & Health,AC-PROFIT,Domiciliary Spot - PD,S33412,CARE FORCE,Third Party Payments Dom Care Frm Independent Prov,53669,25/04/2016,7320483448,529.91,,
Expenditure - Over 500,2016 01,Worcestershire County Council,Adult Services & Health,AC-PROFIT,Property Charge Temporary Code,S35398,BUPA CARE SERVICES,Receipts Sales Long Term Residents,67047,18/04/2016,7310396985,1458.92,,
Expenditure - Over 500,2016 01,Worcestershire County Council,Adult Services & Health,AC-PROFIT,LT Nursing - OP,S35342,BUPA CARE SERVICES,Receipts Sales Long Term Residents,67047,18/04/2016,7310397009,763.18,,
Expenditure - Over 500,2016 01,Worcestershire County Council,Adult Services & Health,AC-PROFIT,LT Nursing - PD,S35442,BUPA CARE SERVICES,Third Party Payments Purchase of Long Term Care,53667,18/04/2016,7310397047,2606.4,,
Expenditure - Over 500,2016 01,Worcestershire County Council,Adult Services & Health,AC-PROFIT,LT Nursing - OP,S35342,BUPA CARE SERVICES,Receipts Sales Long Term Residents,67047,18/04/2016,7310397057,-1886.12,,
Expenditure - Over 500,2016 01,Worcestershire County Council,Adult Services & Health,AC-PROFIT,LT Nursing - OP,S35342,BUPA CARE SERVICES,Receipts Sales Long Term Residents,67047,18/04/2016,7310397063,-674.8,,
Expenditure - Over 500,2016 01,Worcestershire County Council,Adult Services & Health,AC-PROFIT,LT Nursing - PD,S35442,BUPA CARE SERVICES,Receipts Sales Long Term Residents,67047,18/04/2016,7310397073,-935.04,,
Expenditure - Over 500,2016 01,Worcestershire County Council,Adult Services & Health,AC-PROFIT,South Worcester Nursing LD,S35552,BUPA CARE SERVICES,Receipts Sales Long Term Residents,67047,18/04/2016,7310397083,2620.38,,
Expenditure - Over 500,2016 01,Worcestershire County Council,Adult Services & Health,AC-PROFIT,South Worcester Nursing LD,S35552,BUPA CARE SERVICES,Receipts Sales Long Term Residents,67047,18/04/2016,7310397121,2448.02,,
Expenditure - Over 500,2016 01,Worcestershire County Council,Adult Services & Health,AC-PROFIT,ST Residential - PD,S35443,BUPA CARE SERVICES,TPP Purchase of Planned Replacement Care,53666,18/04/2016,7310397225,1254,,
Expenditure - Over 500,2016 01,Worcestershire County Council,Adult Services & Health,AC-PROFIT,Domiciliary Spot - PD,S33412,CARE FORCE,Third Party Payments Dom Care Frm Independent Prov,53669,25/04/2016,7320483447,596.63,,
Expenditure - Over 500,2016 01,Worcestershire County Council,Adult Services & Health,AC-ERROR,Adults & Community Servs Error Suspense,ACSSER001,BUPA CARE SERVICES,Adult & Community Servs - Other,98254,18/04/2016,7310397241,736,,
Expenditure - Over 500,2016 01,Worcestershire County Council,Adult Services & Health,AC-PROFIT,12-Week Disregard,S35308,BUPA CARE SERVICES,Third Party Payments Purchase of Long Term Care,53667,18/04/2016,7310397247,3907.14,,
Expenditure - Over 500,2016 01,Worcestershire County Council,Adult Services & Health,AC-PROFIT,Step Down Beds,S35724,BUPA CARE SERVICES,TPP Purchase of Planned Replacement Care,53666,18/04/2016,7310397249,3447,,
Expenditure - Over 500,2016 01,Worcestershire County Council,Adult Services & Health,AC-PROFIT,ST Nursing - OP,S35344,BUPA CARE SERVICES,TPP Purchase of Planned Replacement Care,53666,18/04/2016,7310397263,1094,,
Expenditure - Over 500,2016 01,Worcestershire County Council,Adult Services & Health,AC-PROFIT,ST Residential - PD,S35443,BUPA CARE SERVICES,TPP Purchase of Planned Replacement Care,53666,18/04/2016,7310397265,627,,
Expenditure - Over 500,2016 01,Worcestershire County Council,Adult Services & Health,AC-PROFIT,ST Residential - OP,S35343,BUPA CARE SERVICES,TPP Purchase of Planned Replacement Care,53666,18/04/2016,7310397279,627,,
Expenditure - Over 500,2016 01,Worcestershire County Council,Adult Services & Health,AC-PROFIT,ST Residential - OP,S35343,BUPA CARE SERVICES,TPP Purchase of Planned Replacement Care,53666,18/04/2016,7310397283,629.14,,
Expenditure - Over 500,2016 01,Worcestershire County Council,Adult Services & Health,AC-PROFIT,Domiciliary Spot - PD,S33412,CARE FORCE,Third Party Payments Dom Care Frm Independent Prov,53669,04/04/2016,7320478129,535.67,,
Expenditure - Over 500,2016 01,Worcestershire County Council,Adult Services & Health,AC-PROFIT,North Worcs Residential LD (Wyre Forest),S35511,CASA MIA,Receipts Sales Long Term Residents,67047,18/04/2016,7310396808,2165.94,,
Expenditure - Over 500,2016 01,Worcestershire County Council,Adult Services & Health,AC-PROFIT,Residential - MH,S35641,CASA MIA,Third Party Payments Purchase of Long Term Care,53667,18/04/2016,7310396846,2451.44,,
Expenditure - Over 500,2016 01,Worcestershire County Council,Adult Services & Health,AC-PROFIT,Residential - MH,S35641,CASA MIA,Third Party Payments Purchase of Long Term Care,53667,18/04/2016,7310396854,3251.42,,
Expenditure - Over 500,2016 01,Worcestershire County Council,Adult Services & Health,AC-PROFIT,Residential - MH,S35641,CASA MIA,Third Party Payments Purchase of Long Term Care,53667,18/04/2016,7310396856,2851.42,,
Expenditure - Over 500,2016 01,Worcestershire County Council,Adult Services & Health,AC-PROFIT,Residential - MH,S35641,CASA MIA,Third Party Payments Purchase of Long Term Care,53667,18/04/2016,7310396866,2885.02,,
Expenditure - Over 500,2016 01,Worcestershire County Council,Adult Services & Health,AC-PROFIT,Residential - MH,S35641,CASA MIA,Third Party Payments Purchase of Long Term Care,53667,18/04/2016,7310396872,2851.42,,
Expenditure - Over 500,2016 01,Worcestershire County Council,Adult Services & Health,AC-PROFIT,Museum Development,S80517,CARTER GRAPHICS LIMITED,Expenses Project Activity Work,51674,14/04/2016,4101543938,450,,
Expenditure - Over 500,2016 01,Worcestershire County Council,Adult Services & Health,AC-PROFIT,Residential - MH,S35641,CASA MIA,Third Party Payments Purchase of Long Term Care,53667,18/04/2016,7310396874,3251.42,,
Expenditure - Over 500,2016 01,Worcestershire County Council,Adult Services & Health,AC-PROFIT,Residential - MH,S35641,CASA MIA,Receipts Sales Long Term Residents,67047,18/04/2016,7310396738,1361.9,,
Expenditure - Over 500,2016 01,Worcestershire County Council,Adult Services & Health,AC-PROFIT,Residential - MH,S35641,CASA MIA,Third Party Payments Purchase of Long Term Care,53667,18/04/2016,7310396884,3251.42,,
Expenditure - Over 500,2016 01,Worcestershire County Council,Adult Services & Health,AC-PROFIT,Residential - MH,S35641,CASA MIA,Third Party Payments Purchase of Long Term Care,53667,18/04/2016,7310396886,3251.42,,
Expenditure - Over 500,2016 01,Worcestershire County Council,Adult Services & Health,AC-PROFIT,Residential - MH,S35641,CASA MIA,Third Party Payments Purchase of Long Term Care,53667,18/04/2016,7310396954,3251.42,,
Expenditure - Over 500,2016 01,Worcestershire County Council,Adult Services & Health,AC-PROFIT,Residential - MH,S35641,CASA MIA,Third Party Payments Purchase of Long Term Care,53667,18/04/2016,7310396740,2339.9,,
Expenditure - Over 500,2016 01,Worcestershire County Council,Adult Services & Health,AC-PROFIT,LT Residential - PD,S35441,CASA MIA,Third Party Payments Purchase of Long Term Care,53667,18/04/2016,7310396746,1325.24,,
Expenditure - Over 500,2016 01,Worcestershire County Council,Adult Services & Health,AC-PROFIT,North Worcs Residential LD (Wyre Forest),S35511,CASA MIA,Receipts Sales Long Term Residents,67047,18/04/2016,7310396750,2731.12,,
Expenditure - Over 500,2016 01,Worcestershire County Council,Adult Services & Health,AC-PROFIT,Residential - MH,S35641,CASA MIA,Third Party Payments Purchase of Long Term Care,53667,18/04/2016,7310396972,3251.42,,
Expenditure - Over 500,2016 01,Worcestershire County Council,Adult Services & Health,AC-PROFIT,Residential - MH,S35641,CASA MIA,Third Party Payments Purchase of Long Term Care,53667,18/04/2016,7310397020,3251.42,,
Expenditure - Over 500,2016 01,Worcestershire County Council,Adult Services & Health,AC-PROFIT,Residential - MH,S35641,CASA MIA,Third Party Payments Purchase of Long Term Care,53667,18/04/2016,7310397080,4051.42,,
Expenditure - Over 500,2016 01,Worcestershire County Council,Adult Services & Health,AC-PROFIT,Residential - MH,S35641,CASA MIA,Third Party Payments Purchase of Long Term Care,53667,18/04/2016,7310396780,2388.22,,
Expenditure - Over 500,2016 01,Worcestershire County Council,Adult Services & Health,AC-PROFIT,North Worcs Residential LD (Wyre Forest),S35511,CASA MIA,Third Party Payments Purchase of Long Term Care,53667,18/04/2016,7310397172,4871.44,,
Expenditure - Over 500,2016 01,Worcestershire County Council,Adult Services & Health,AC-DIR,Museum & Art Gallery,S80524,CARTER GRAPHICS LIMITED,Expenses Exhibitions and Events,51646,04/04/2016,4101541948,1470,,
Expenditure - Over 500,2016 01,Worcestershire County Council,Adult Services & Health,AC-PROFIT,Residential - MH,S35641,CASA MIA,Third Party Payments Purchase of Long Term Care,53667,18/04/2016,7310397184,4104.7,,
Expenditure - Over 500,2016 01,Worcestershire County Council,Children's Services,CH-PROFIT,Bromsgrove. Catshill Middle,E10627,CATSHILL MIDDLE SCHOOL FUND ACCOUNT,Payments4Schools School Fund Contributions,83508,18/04/2016,3310035305,3758.3,,
Expenditure - Over 500,2016 01,Worcestershire County Council,Children's Services,CH-PROFIT,YOT - Hereford,E31310,CCS MEDIA LIMITED,Stationery,49754,07/04/2016,4101542088,1255.38,,
Expenditure - Over 500,2016 01,Worcestershire County Council,Adult Services & Health,AC-PROFIT,South Worcester Residential LD,S35551,CEDAR GARDENS,Receipts Sales Long Term Residents,67047,18/04/2016,7310398730,1941.32,,
Expenditure - Over 500,2016 01,Worcestershire County Council,Adult Services & Health,AC-PROFIT,South Worcester Residential LD,S35551,CEDAR GARDENS,Receipts Sales Long Term Residents,67047,18/04/2016,7310398742,2835.76,,
Expenditure - Over 500,2016 01,Worcestershire County Council,Adult Services & Health,AC-PROFIT,South Worcester Residential LD,S35551,CEDAR GARDENS,Receipts Sales Long Term Residents,67047,18/04/2016,7310398744,2914.18,,
Expenditure - Over 500,2016 01,Worcestershire County Council,Adult Services & Health,AC-PROFIT,South Worcester Residential LD,S35551,CEDAR GARDENS,Third Party Payments Purchase of Long Term Care,53667,18/04/2016,7310398784,1866.5,,
Expenditure - Over 500,2016 01,Worcestershire County Council,Children's Services,CH-PROFIT,YOT - S. Worcs,E31312,CLEARVIEW CLEANING SERVICES,Repairs & Maintenance Buildings General Expen,42001,11/04/2016,4101543421,431.56,,
Expenditure - Over 500,2016 01,Worcestershire County Council,Children's Services,CH-PROFIT,YOT - S. Worcs,E31312,CLEARVIEW CLEANING SERVICES,Repairs & Maintenance Buildings General Expen,42001,11/04/2016,4101543422,431.56,,
Expenditure - Over 500,2016 01,Worcestershire County Council,Children's Services,CH-PROFIT,YOT - S. Worcs,E31312,CLEARVIEW CLEANING SERVICES,Repairs & Maintenance Buildings General Expen,42001,11/04/2016,4101543423,431.56,,
Expenditure - Over 500,2016 01,Worcestershire County Council,Adult Services & Health,AC-PROFIT,LT Nursing - OP,S35342,CLASSIC CARE LTD,Receipts Sales Long Term Residents,67047,18/04/2016,7310396797,1295.3,,
Expenditure - Over 500,2016 01,Worcestershire County Council,Adult Services & Health,AC-PROFIT,LT Nursing - OP,S35342,CLASSIC CARE LTD,Third Party Payments Purchase of Long Term Care,53667,18/04/2016,7310396813,1815.7,,
Expenditure - Over 500,2016 01,Worcestershire County Council,Adult Services & Health,AC-PROFIT,LT Nursing - OP,S35342,CLASSIC CARE LTD,Receipts Sales Long Term Residents,67047,18/04/2016,7310396815,1615.7,,
Expenditure - Over 500,2016 01,Worcestershire County Council,"Business, Environment & Community",EN-PROFIT,Material Stock,V82822,CHARLES RANSFORD & SON LTD,Other Materials,49031,21/04/2016,4101545645,1709.76,,
Expenditure - Over 500,2016 01,Worcestershire County Council,"Business, Environment & Community",EN-PROFIT,Material Stock,V82822,CHARLES RANSFORD & SON LTD,Other Materials,49031,21/04/2016,4101545649,1221.92,,
Expenditure - Over 500,2016 01,Worcestershire County Council,"Business, Environment & Community",EN-PROFIT,Material Stock,V82822,CHARLES RANSFORD & SON LTD,Other Materials,49031,21/04/2016,4101545651,2047.7,,
Expenditure - Over 500,2016 01,Worcestershire County Council,"Business, Environment & Community",EN-PROFIT,Material Stock,V82822,CHARLES RANSFORD & SON LTD,Other Materials,49031,21/04/2016,4101545654,4274.4,,
Expenditure - Over 500,2016 01,Worcestershire County Council,Adult Services & Health,AC-PROFIT,LT Nursing - OP,S35342,CLASSIC CARE LTD,Third Party Payments Purchase of Long Term Care,53667,18/04/2016,7310397003,1754.98,,
Expenditure - Over 500,2016 01,Worcestershire County Council,Adult Services & Health,AC-PROFIT,Property Charge Temporary Code,S35398,CLASSIC CARE LTD,Receipts Sales Long Term Residents,67047,18/04/2016,7310397023,2445.18,,
Expenditure - Over 500,2016 01,Worcestershire County Council,Adult Services & Health,AC-PROFIT,LT Residential - OP,S35341,CHASE REST HOME,Third Party Payments Purchase of Long Term Care,53667,18/04/2016,7310397538,968.22,,
Expenditure - Over 500,2016 01,Worcestershire County Council,Adult Services & Health,AC-PROFIT,LT Nursing - OP,S35342,CLASSIC CARE LTD,Third Party Payments Purchase of Long Term Care,53667,18/04/2016,7310397027,1744.1,,
Expenditure - Over 500,2016 01,Worcestershire County Council,Adult Services & Health,AC-PROFIT,LT Nursing - PD,S35442,CLASSIC CARE LTD,Receipts Sales Long Term Residents,67047,18/04/2016,7310397029,1506.86,,
Expenditure - Over 500,2016 01,Worcestershire County Council,Adult Services & Health,AC-PROFIT,COP Property Temporary Code,S35397,CLASSIC CARE LTD,Third Party Payments Purchase of Long Term Care,53667,18/04/2016,7310397035,2188,,
Expenditure - Over 500,2016 01,Worcestershire County Council,Adult Services & Health,AC-PROFIT,LT Residential - OP,S35341,CHASE REST HOME,Receipts Sales Long Term Residents,67047,18/04/2016,7310397556,1440.9,,
Expenditure - Over 500,2016 01,Worcestershire County Council,Adult Services & Health,AC-PROFIT,LT Residential - OP,S35341,CHASE REST HOME,Third Party Payments Purchase of Long Term Care,53667,18/04/2016,7310397566,1731.12,,
Expenditure - Over 500,2016 01,Worcestershire County Council,Adult Services & Health,AC-ERROR,Adults & Community Servs Error Suspense,ACSSER001,CLASSIC CARE LTD,Adult & Community Servs - Other,98254,18/04/2016,7310397049,-560,,
Expenditure - Over 500,2016 01,Worcestershire County Council,Adult Services & Health,AC-PROFIT,COP Property Temporary Code,S35397,CLASSIC CARE LTD,Third Party Payments Purchase of Long Term Care,53667,18/04/2016,7310397087,2996.57,,
Expenditure - Over 500,2016 01,Worcestershire County Council,Adult Services & Health,AC-PROFIT,LT Residential - OP,S35341,CHASE REST HOME,Third Party Payments Purchase of Long Term Care,53667,18/04/2016,7310397568,1531.12,,
Expenditure - Over 500,2016 01,Worcestershire County Council,Adult Services & Health,AC-PROFIT,LT Residential - OP,S35341,CHASE REST HOME,Receipts Sales Long Term Residents,67047,18/04/2016,7310397630,1208.94,,
Expenditure - Over 500,2016 01,Worcestershire County Council,Adult Services & Health,AC-PROFIT,LT Residential - OP,S35341,CHASE REST HOME,Third Party Payments Purchase of Long Term Care,53667,18/04/2016,7310397632,537.16,,
Expenditure - Over 500,2016 01,Worcestershire County Council,Adult Services & Health,AC-PROFIT,LT Residential - OP,S35341,CHASE REST HOME,Third Party Payments Purchase of Long Term Care,53667,18/04/2016,7310397644,1199.12,,
Expenditure - Over 500,2016 01,Worcestershire County Council,Adult Services & Health,AC-PROFIT,LT Residential - OP,S35341,CHASE REST HOME,Receipts Sales Long Term Residents,67047,18/04/2016,7310397668,5638.44,,
Expenditure - Over 500,2016 01,Worcestershire County Council,Adult Services & Health,AC-PROFIT,ST Residential - OP,S35343,CHASE REST HOME,TPP Purchase of Planned Replacement Care,53666,18/04/2016,7310397680,3500,,
Expenditure - Over 500,2016 01,Worcestershire County Council,Adult Services & Health,AC-PROFIT,Step Down Beds,S35724,CLASSIC CARE LTD,TPP Purchase of Planned Replacement Care,53666,18/04/2016,7310397257,3447,,
Expenditure - Over 500,2016 01,Worcestershire County Council,Adult Services & Health,AC-PROFIT,Step Down Beds,S35724,CLASSIC CARE LTD,TPP Purchase of Planned Replacement Care,53666,18/04/2016,7310397259,1149,,
Expenditure - Over 500,2016 01,Worcestershire County Council,Adult Services & Health,AC-PROFIT,COP Property Temporary Code,S35397,CLASSIC CARE LTD,Third Party Payments Purchase of Long Term Care,53667,18/04/2016,7310397267,23800,,
Expenditure - Over 500,2016 01,Worcestershire County Council,Adult Services & Health,AC-ERROR,Adults & Community Servs Error Suspense,ACSSER001,CLASSIC CARE LTD,Adult & Community Servs - Other,98254,18/04/2016,7310397269,896,,
Expenditure - Over 500,2016 01,Worcestershire County Council,Adult Services & Health,AC-ERROR,Adults & Community Servs Error Suspense,ACSSER001,CLASSIC CARE LTD,Adult & Community Servs - Other,98254,18/04/2016,7310397275,1504,,
Expenditure - Over 500,2016 01,Worcestershire County Council,Adult Services & Health,AC-PROFIT,ST Nursing - OP,S35344,CLASSIC CARE LTD,TPP Purchase of Planned Replacement Care,53666,18/04/2016,7310397277,3447,,
Expenditure - Over 500,2016 01,Worcestershire County Council,Adult Services & Health,AC-PROFIT,Domiciliary Spot - PD,S33412,HOUSING 21,Third Party Payments Dom Care Frm Independent Prov,53669,11/04/2016,7320479300,1323.2,,
Expenditure - Over 500,2016 01,Worcestershire County Council,Adult Services & Health,AC-PROFIT,Domiciliary Spot - OP,S33414,HOUSING 21,Third Party Payments Dom Care Frm Independent Prov,53669,11/04/2016,7320479537,940.8,,
Expenditure - Over 500,2016 01,Worcestershire County Council,Adult Services & Health,AC-PROFIT,Domiciliary Spot - PD,S33412,HOUSING 21,Third Party Payments Dom Care Frm Independent Prov,53669,29/04/2016,7320485212,1309.12,,
Expenditure - Over 500,2016 01,Worcestershire County Council,Adult Services & Health,AC-PROFIT,Domiciliary Spot - OP,S33414,HOUSING 21,Third Party Payments Dom Care Frm Independent Prov,53669,29/04/2016,7320485213,940.8,,
Expenditure - Over 500,2016 01,Worcestershire County Council,Adult Services & Health,AC-PROFIT,LT Residential - OP,S35341,CHANDOS LODGE LIMITED,Receipts Sales Long Term Residents,67047,18/04/2016,7310397868,1090.5,,
Expenditure - Over 500,2016 01,Worcestershire County Council,Adult Services & Health,AC-PROFIT,LT Residential - OP,S35341,CHANDOS LODGE LIMITED,Receipts Sales Long Term Residents,67047,18/04/2016,7310397998,1231.9,,
Expenditure - Over 500,2016 01,Worcestershire County Council,Adult Services & Health,AC-PROFIT,LT Residential - OP,S35341,CHANDOS LODGE LIMITED,Third Party Payments Purchase of Long Term Care,53667,18/04/2016,7310398100,1816,,
Expenditure - Over 500,2016 01,Worcestershire County Council,Adult Services & Health,AC-PROFIT,LT Residential - OP,S35341,CHANDOS LODGE LIMITED,Receipts Sales Long Term Residents,67047,18/04/2016,7310398148,1323.07,,
Expenditure - Over 500,2016 01,Worcestershire County Council,Adult Services & Health,AC-PROFIT,Non-DPA Debt Residential OP,S35345,CHANDOS LODGE LIMITED,Receipts Sales Long Term Residents,67047,18/04/2016,7310398170,1691.12,,
Expenditure - Over 500,2016 01,Worcestershire County Council,Adult Services & Health,AC-PROFIT,ST Residential - OP,S35343,CHANDOS LODGE LIMITED,TPP Purchase of Planned Replacement Care,53666,18/04/2016,7310398212,852,,
Expenditure - Over 500,2016 01,Worcestershire County Council,Adult Services & Health,AC-PROFIT,LT Residential - OP,S35341,CHASE REST HOME,Receipts Sales Long Term Residents,67047,18/04/2016,7310397348,1216.74,,
Expenditure - Over 500,2016 01,Worcestershire County Council,Adult Services & Health,AC-PROFIT,LT Residential - OP,S35341,CHASE REST HOME,Receipts Sales Long Term Residents,67047,18/04/2016,7310397354,1244.62,,
Expenditure - Over 500,2016 01,Worcestershire County Council,Adult Services & Health,AC-PROFIT,LT Residential - OP,S35341,CHASE REST HOME,Receipts Sales Long Term Residents,67047,18/04/2016,7310397394,1199.12,,
Expenditure - Over 500,2016 01,Worcestershire County Council,Adult Services & Health,AC-PROFIT,LT Residential - OP,S35341,CHASE REST HOME,Receipts Sales Long Term Residents,67047,18/04/2016,7310397464,1188.24,,
Expenditure - Over 500,2016 01,Worcestershire County Council,Adult Services & Health,AC-PROFIT,COP Property Temporary Code,S35397,CHASE REST HOME,Third Party Payments Purchase of Long Term Care,53667,18/04/2016,7310397488,2087.42,,
Expenditure - Over 500,2016 01,Worcestershire County Council,Adult Services & Health,AC-PROFIT,LT Residential - OP,S35341,CHASE REST HOME,Third Party Payments Purchase of Long Term Care,53667,18/04/2016,7310397492,1199.12,,
Expenditure - Over 500,2016 01,Worcestershire County Council,Adult Services & Health,AC-PROFIT,LT Residential - OP,S35341,CHASE REST HOME,Third Party Payments Purchase of Long Term Care,53667,18/04/2016,7310397494,2487.42,,
Expenditure - Over 500,2016 01,Worcestershire County Council,Adult Services & Health,AC-PROFIT,LT Residential - OP,S35341,CHASE REST HOME,Receipts Sales Long Term Residents,67047,18/04/2016,7310397504,1674.98,,
Expenditure - Over 500,2016 01,Worcestershire County Council,Adult Services & Health,AC-PROFIT,LT Nursing - OP,S35342,CLASSIC CARE LTD,Third Party Payments Purchase of Long Term Care,53667,18/04/2016,7310397099,2515.76,,
Expenditure - Over 500,2016 01,Worcestershire County Council,Children's Services,CH-PROFIT,Early Years - Other Providers,E21205,CHEEKY CHARLEYS NURSERY,Third Party Pymts 4Yr Old Nursery Education Grant,53657,11/04/2016,7200025257,15087.98,,
Expenditure - Over 500,2016 01,Worcestershire County Council,Adult Services & Health,AC-PROFIT,LT Nursing - OP,S35342,CLASSIC CARE LTD,Receipts Sales Long Term Residents,67047,18/04/2016,7310397119,1668.9,,
Expenditure - Over 500,2016 01,Worcestershire County Council,Adult Services & Health,AC-PROFIT,LT Nursing - OP,S35342,CLASSIC CARE LTD,Third Party Payments Purchase of Long Term Care,53667,18/04/2016,7310397129,1590.22,,
Expenditure - Over 500,2016 01,Worcestershire County Council,Adult Services & Health,AC-PROFIT,Property Charge Temporary Code,S35398,CLASSIC CARE LTD,Receipts Sales Long Term Residents,67047,18/04/2016,7310397147,9867.32,,
Expenditure - Over 500,2016 01,Worcestershire County Council,Adult Services & Health,AC-PROFIT,ST Nursing - OP,S35344,CLASSIC CARE LTD,TPP Purchase of Planned Replacement Care,53666,18/04/2016,7310397149,-937.72,,
Expenditure - Over 500,2016 01,Worcestershire County Council,Adult Services & Health,AC-PROFIT,LT Nursing - OP,S35342,CLASSIC CARE LTD,Third Party Payments Purchase of Long Term Care,53667,18/04/2016,7310397155,1641.52,,
Expenditure - Over 500,2016 01,Worcestershire County Council,Adult Services & Health,AC-PROFIT,Step Down Beds,S35724,CLASSIC CARE LTD,TPP Purchase of Planned Replacement Care,53666,18/04/2016,7310397213,-574.5,,
Expenditure - Over 500,2016 01,Worcestershire County Council,Adult Services & Health,AC-PROFIT,ST Nursing - OP,S35344,CLASSIC CARE LTD,TPP Purchase of Planned Replacement Care,53666,18/04/2016,7310397223,547,,
Expenditure - Over 500,2016 01,Worcestershire County Council,Adult Services & Health,AC-ERROR,Adults & Community Servs Error Suspense,ACSSER001,CLASSIC CARE LTD,Adult & Community Servs - Other,98254,18/04/2016,7310397233,2592,,
Expenditure - Over 500,2016 01,Worcestershire County Council,Adult Services & Health,AC-PROFIT,Step Down Beds,S35724,CLASSIC CARE LTD,TPP Purchase of Planned Replacement Care,53666,18/04/2016,7310397239,1149,,
Expenditure - Over 500,2016 01,Worcestershire County Council,Adult Services & Health,AC-PROFIT,LT Nursing - OP,S35342,CLASSIC CARE LTD,Receipts Sales Long Term Residents,67047,18/04/2016,7310397245,3050,,
Expenditure - Over 500,2016 01,Worcestershire County Council,Adult Services & Health,AC-PROFIT,ST Nursing - OP,S35344,CLASSIC CARE LTD,TPP Purchase of Planned Replacement Care,53666,18/04/2016,7310397253,547,,
Expenditure - Over 500,2016 01,Worcestershire County Council,Adult Services & Health,AC-PROFIT,Step Down Beds,S35724,CLASSIC CARE LTD,TPP Purchase of Planned Replacement Care,53666,18/04/2016,7310397255,574.5,,
Expenditure - Over 500,2016 01,Worcestershire County Council,Resources,FS-PROFIT,Management Team,F40300,CIPFA,Employee Training External Fees & Accommodation,39009,04/04/2016,4101541793,900,,
Expenditure - Over 500,2016 01,Worcestershire County Council,Adult Services & Health,AC-PROFIT,LT Nursing - OP,S35342,TEWKESBURY NURSING HOME LTD,Receipts Sales Long Term Residents,67047,18/04/2016,7310398378,1054.3,,
Expenditure - Over 500,2016 01,Worcestershire County Council,Adult Services & Health,AC-PROFIT,LT Nursing - OP,S35342,TEWKESBURY NURSING HOME LTD,Receipts Sales Long Term Residents,67047,18/04/2016,7310398408,1914.38,,
Expenditure - Over 500,2016 01,Worcestershire County Council,Adult Services & Health,AC-PROFIT,LT Nursing - OP,S35342,TEWKESBURY NURSING HOME LTD,Receipts Sales Long Term Residents,67047,18/04/2016,7310398440,2082.56,,
Expenditure - Over 500,2016 01,Worcestershire County Council,Adult Services & Health,AC-PROFIT,LT Nursing - OP,S35342,TEWKESBURY NURSING HOME LTD,Receipts Sales Long Term Residents,67047,18/04/2016,7310398458,1571.42,,
Expenditure - Over 500,2016 01,Worcestershire County Council,Adult Services & Health,AC-PROFIT,ST Nursing - OP,S35344,TEWKESBURY NURSING HOME LTD,TPP Purchase of Planned Replacement Care,53666,18/04/2016,7310398600,2125,,
Expenditure - Over 500,2016 01,Worcestershire County Council,Adult Services & Health,AC-PROFIT,LT Nursing - OP,S35342,TEWKESBURY NURSING HOME LTD,Third Party Payments Purchase of Long Term Care,53667,18/04/2016,7310398668,16657.14,,
Expenditure - Over 500,2016 01,Worcestershire County Council,Children's Services,CH-PROFIT,Early Years - Other Providers,E21205,CLEEVE PRIOR PRE-SCHOOL,Third Party Pymts 4Yr Old Nursery Education Grant,53657,11/04/2016,7200025265,3689.32,,
Expenditure - Over 500,2016 01,Worcestershire County Council,Children's Services,CH-PROFIT,Secondary Home/School Transport,E10707,CLEARWAY TAXIS,PTG - Transport Tendered / Cont. Services,46021,04/04/2016,7190129321,1653.31,,
Expenditure - Over 500,2016 01,Worcestershire County Council,Children's Services,CH-PROFIT,Early Years - Other Providers,E21205,CHURCH HOUSE DAY NURSERY LTD,Third Party Pymts 4Yr Old Nursery Education Grant,53657,11/04/2016,7200025264,17390.1,,
Expenditure - Over 500,2016 01,Worcestershire County Council,Children's Services,CH-PROFIT,Secondary Home/School Transport,E10707,CLEARWAY TAXIS,PTG - Public Transport Bus,47514,11/04/2016,4101542705,1094.4,,
Expenditure - Over 500,2016 01,Worcestershire County Council,"Business, Environment & Community",EN-DIR,Concessionary Fares Administration,V21015,CLEARWAY TAXIS,Third Party Pymnts Public Transport Operators,54005,07/04/2016,7190129370,2464.56,,
Expenditure - Over 500,2016 01,Worcestershire County Council,Children's Services,CH-PROFIT,Primary - SEN H/S Transport,E20801,CLEARWAY TAXIS,PTG - Transport Tendered / Cont. Services,46021,07/04/2016,7190129543,1944,,
Expenditure - Over 500,2016 01,Worcestershire County Council,Children's Services,CH-PROFIT,Special Home/School Transport,E10877,CLEARWAY TAXIS,PTG - Transport Tendered / Cont. Services,46021,07/04/2016,7190129554,3024,,
Expenditure - Over 500,2016 01,Worcestershire County Council,Resources,CS-DIR,Health & Safety - NTS,C36415,COGNET LTD,Training Expenses,51665,29/04/2016,4101546487,440,,
Expenditure - Over 500,2016 01,Worcestershire County Council,Children's Services,CH-PROFIT,Primary Home/School Transport,E10037,COMMANDERY COACHES LLP,PTG - Transport Tendered / Cont. Services,46021,04/04/2016,7190129250,2331.8,,
Expenditure - Over 500,2016 01,Worcestershire County Council,Children's Services,CH-PROFIT,Primary Home/School Transport,E10037,COMMANDERY COACHES LLP,PTG - Transport Tendered / Cont. Services,46021,04/04/2016,7190129264,2219.54,,
Expenditure - Over 500,2016 01,Worcestershire County Council,Children's Services,CH-PROFIT,Primary Home/School Transport,E10037,COMMANDERY COACHES LLP,PTG - Transport Tendered / Cont. Services,46021,04/04/2016,7190129286,3060,,
Expenditure - Over 500,2016 01,Worcestershire County Council,Resources,CS-DIR,Health & Safety - NTS,C36415,COGNET LTD,Training Expenses,51665,11/04/2016,4101543393,440,,
Expenditure - Over 500,2016 01,Worcestershire County Council,"Business, Environment & Community",EN-DIR,Concessionary Fares Administration,V21015,COMMUNITY ACTION GROUP,Third Party Pymts Public Transport Voluntary Orgs,53672,07/04/2016,7190129376,1307,,
Expenditure - Over 500,2016 01,Worcestershire County Council,"Business, Environment & Community",EN-PROFIT,Community Transport,V21010,COMMUNITY ACTION GROUP,Third Party Pymnts Other Hired & Contracted Servs,53986,07/04/2016,7190129517,1002,,
Expenditure - Over 500,2016 01,Worcestershire County Council,"Business, Environment & Community",EN-DIR,Concessionary Fares Administration,V21015,COMMUNITY ACTION GROUP,Third Party Pymts Public Transport Voluntary Orgs,53672,28/04/2016,7190130076,1461,,
Expenditure - Over 500,2016 01,Worcestershire County Council,Adult Services & Health,AC-PROFIT,LT Residential - OP,S35341,COMMUNITY WORLD LTD,Receipts Sales Long Term Residents,67047,18/04/2016,7310398120,1540.98,,
Expenditure - Over 500,2016 01,Worcestershire County Council,"Business, Environment & Community",EN-DIR,Concessionary Fares Administration,V21015,EUROLINERS,Third Party Pymnts Public Transport Operators,54005,14/04/2016,7190129577,2107.99,,
Expenditure - Over 500,2016 01,Worcestershire County Council,Adult Services & Health,AC-PROFIT,Domiciliary Spot - PD,S33412,COMPLETE CARE HOLDINGS LIMITED,Third Party Payments Dom Care Frm Independent Prov,53669,18/04/2016,7320480739,3356,,
Expenditure - Over 500,2016 01,Worcestershire County Council,Adult Services & Health,AC-PROFIT,Domiciliary Spot - PD,S33412,COMPLETE CARE HOLDINGS LIMITED,Third Party Payments Dom Care Frm Independent Prov,53669,28/04/2016,7320484138,3252,,
Expenditure - Over 500,2016 01,Worcestershire County Council,Adult Services & Health,AC-PROFIT,Domiciliary Spot - PD,S33412,COMPLETE CARE HOLDINGS LIMITED,Third Party Payments Dom Care Frm Independent Prov,53669,28/04/2016,7320484143,3446.8,,
Expenditure - Over 500,2016 01,Worcestershire County Council,Children's Services,CH-PROFIT,Primary Home/School Transport,E10037,COLWALL COACHES,PTG - Transport Tendered / Cont. Services,46021,04/04/2016,7190129289,2417.58,,
Expenditure - Over 500,2016 01,Worcestershire County Council,Resources,CS-PROFIT,Voluntary Sector - In House Training,C36443,COGNET LTD,Training Expenses,51665,04/04/2016,4101541576,1507.5,,
Expenditure - Over 500,2016 01,Worcestershire County Council,Resources,CS-PROFIT,Voluntary Sector - In House Training,C36443,COGNET LTD,Training Expenses,51665,04/04/2016,4101541668,1507.5,,
Expenditure - Over 500,2016 01,Worcestershire County Council,Adult Services & Health,AC-PROFIT,Domiciliary Block - OP,S33424,COUNTY HOME CARE SERVICES LTD T/A,Third Party Payments Dom Care Frm Independent Prov,53669,04/04/2016,7370064578,577.41,,
Expenditure - Over 500,2016 01,Worcestershire County Council,Adult Services & Health,AC-PROFIT,LT Residential - OP,S35341,COMMUNITY WORLD LTD,Third Party Payments Purchase of Long Term Care,53667,18/04/2016,7310397830,2033.74,,
Expenditure - Over 500,2016 01,Worcestershire County Council,Adult Services & Health,AC-PROFIT,LT Residential - OP,S35341,COMMUNITY WORLD LTD,Third Party Payments Purchase of Long Term Care,53667,18/04/2016,7310397858,-2010,,
Expenditure - Over 500,2016 01,Worcestershire County Council,Adult Services & Health,AC-PROFIT,LT Residential - OP,S35341,COMMUNITY WORLD LTD,Third Party Payments Purchase of Long Term Care,53667,18/04/2016,7310397872,684.82,,
Expenditure - Over 500,2016 01,Worcestershire County Council,Adult Services & Health,AC-PROFIT,LT Residential - OP,S35341,COMMUNITY WORLD LTD,Receipts Sales Long Term Residents,67047,18/04/2016,7310397954,1374.38,,
Expenditure - Over 500,2016 01,Worcestershire County Council,Adult Services & Health,AC-PROFIT,LT Residential - OP,S35341,COMMUNITY WORLD LTD,Third Party Payments Purchase of Long Term Care,53667,18/04/2016,7310397984,1187.52,,
Expenditure - Over 500,2016 01,Worcestershire County Council,Adult Services & Health,AC-PROFIT,LT Residential - OP,S35341,COMMUNITY WORLD LTD,Receipts Sales Long Term Residents,67047,18/04/2016,7310398044,1054.04,,
Expenditure - Over 500,2016 01,Worcestershire County Council,Adult Services & Health,AC-PROFIT,LT Residential - OP,S35341,COMMUNITY WORLD LTD,Receipts Sales Long Term Residents,67047,18/04/2016,7310398048,1207.58,,
Expenditure - Over 500,2016 01,Worcestershire County Council,"Business, Environment & Community",EN-PROFIT,Traffic Studies Misc. Small Counts,V19105,CA TRAFFIC LTD,Equipment Survey Equipment,49075,04/04/2016,4101541968,1620,,
Expenditure - Over 500,2016 01,Worcestershire County Council,Adult Services & Health,AC-PROFIT,Domiciliary Block - OP,S33424,COUNTY HOME CARE SERVICES LTD T/A,Third Party Payments Dom Care Frm Independent Prov,53669,04/04/2016,7370064579,577.41,,
Expenditure - Over 500,2016 01,Worcestershire County Council,Adult Services & Health,AC-PROFIT,Investment in Extra Care,S32360,COUNTY HOME CARE SERVICES LTD T/A,Third Party Payments Purchase of Long Term Care,53667,04/04/2016,7320477655,613.8,,
Expenditure - Over 500,2016 01,Worcestershire County Council,Children's Services,CH-PROFIT,Early Years - Other Providers,E21205,COMMUNITY CORNER PRE-SCHOOL,Third Party Pymts 4Yr Old Nursery Education Grant,53657,11/04/2016,7200025267,16893.24,,
Expenditure - Over 500,2016 01,Worcestershire County Council,Adult Services & Health,AC-PROFIT,Investment in Extra Care,S32360,COUNTY HOME CARE SERVICES LTD T/A,Third Party Payments Purchase of Long Term Care,53667,04/04/2016,7320477656,613.8,,
Expenditure - Over 500,2016 01,Worcestershire County Council,Adult Services & Health,AC-PROFIT,Health Checks,S42005,CORNHILL SURGERY,Third Party Payments,53006,28/04/2016,4101543657,1820,,
Expenditure - Over 500,2016 01,Worcestershire County Council,Children's Services,CH-PROFIT,Inter-Auth Recoupment - Special,E10872,HUNTERCOMBE COTSWOLD SPA,Third Party Payments Inter Authority Recoupment,52354,14/04/2016,4101543483,1650,,
Expenditure - Over 500,2016 01,Worcestershire County Council,Children's Services,CH-PROFIT,Inter-Auth Recoupment - Special,E10872,HUNTERCOMBE COTSWOLD SPA,Third Party Payments Inter Authority Recoupment,52354,14/04/2016,4101543484,2250,,
Expenditure - Over 500,2016 01,Worcestershire County Council,Children's Services,CH-PROFIT,Inter-Auth Recoupment - Special,E10872,HUNTERCOMBE COTSWOLD SPA,Third Party Payments Inter Authority Recoupment,52354,14/04/2016,3310035286,2400,,
Expenditure - Over 500,2016 01,Worcestershire County Council,Adult Services & Health,AC-PROFIT,North Worcs Residential LD (Wyre Forest),S35511,COTTAGE & RURAL ENTERPRISES LTD,Receipts Sales Long Term Residents,67047,18/04/2016,7310399338,3192.76,,
Expenditure - Over 500,2016 01,Worcestershire County Council,Children's Services,CH-PROFIT,Inter-Auth Recoupment - Special,E10872,COTTAGE BLINDS CONTRACTS LTD,Third Party Payments Inter Authority Recoupment,52354,04/04/2016,4101541974,1750,,
Expenditure - Over 500,2016 01,Worcestershire County Council,Adult Services & Health,AC-PROFIT,Investment in Extra Care,S32360,COUNTY HOME CARE SERVICES LTD T/A,Third Party Payments Purchase of Long Term Care,53667,04/04/2016,7320477657,613.8,,
Expenditure - Over 500,2016 01,Worcestershire County Council,Adult Services & Health,AC-PROFIT,Domiciliary Block - OP,S33424,COUNTY HOME CARE SERVICES LTD T/A,Third Party Payments Dom Care Frm Independent Prov,53669,11/04/2016,7370064649,577.41,,
Expenditure - Over 500,2016 01,Worcestershire County Council,Adult Services & Health,AC-PROFIT,Domiciliary Block - OP,S33424,COUNTY HOME CARE SERVICES LTD T/A,Third Party Payments Dom Care Frm Independent Prov,53669,11/04/2016,7370064650,577.41,,
Expenditure - Over 500,2016 01,Worcestershire County Council,Adult Services & Health,AC-PROFIT,Investment in Extra Care,S32360,COUNTY HOME CARE SERVICES LTD T/A,Third Party Payments Purchase of Long Term Care,53667,21/04/2016,7320481548,613.8,,
Expenditure - Over 500,2016 01,Worcestershire County Council,Adult Services & Health,AC-PROFIT,Domiciliary Spot - OP,S33414,COUNTYWIDE HOMECARE LTD,Third Party Payments Dom Care Frm Independent Prov,53669,25/04/2016,7320483873,547.4,,
Expenditure - Over 500,2016 01,Worcestershire County Council,Adult Services & Health,AC-PROFIT,Domiciliary Spot - PD,S33412,COUNTYWIDE HOMECARE LTD,Third Party Payments Dom Care Frm Independent Prov,53669,25/04/2016,7320483887,603.1,,
Expenditure - Over 500,2016 01,Worcestershire County Council,Adult Services & Health,AC-PROFIT,Domiciliary Spot - OP,S33414,COUNTYWIDE HOMECARE LTD,Third Party Payments Dom Care Frm Independent Prov,53669,11/04/2016,7320479250,625.61,,
Expenditure - Over 500,2016 01,Worcestershire County Council,Adult Services & Health,AC-PROFIT,Domiciliary Spot - PD,S33412,COUNTYWIDE HOMECARE LTD,Third Party Payments Dom Care Frm Independent Prov,53669,11/04/2016,7320479273,782.4,,
Expenditure - Over 500,2016 01,Worcestershire County Council,Adult Services & Health,AC-PROFIT,Domiciliary Spot - OP,S33414,COUNTYWIDE HOMECARE LTD,Third Party Payments Dom Care Frm Independent Prov,53669,11/04/2016,7320480565,625.61,,
Expenditure - Over 500,2016 01,Worcestershire County Council,Adult Services & Health,AC-PROFIT,Domiciliary Spot - PD,S33412,COUNTYWIDE HOMECARE LTD,Third Party Payments Dom Care Frm Independent Prov,53669,11/04/2016,7320480589,709.05,,
Expenditure - Over 500,2016 01,Worcestershire County Council,Adult Services & Health,AC-PROFIT,Domiciliary Spot - OP,S33414,COUNTYWIDE HOMECARE LTD,Third Party Payments Dom Care Frm Independent Prov,53669,25/04/2016,7320483872,547.4,,
Expenditure - Over 500,2016 01,Worcestershire County Council,Adult Services & Health,AC-PROFIT,Domiciliary Spot - PD,S33412,COUNTYWIDE HOMECARE LTD,Third Party Payments Dom Care Frm Independent Prov,53669,25/04/2016,7320483886,684.6,,
Expenditure - Over 500,2016 01,Worcestershire County Council,Children's Services,CH-PROFIT,Early Years - Other Providers,E21205,CRABBS CROSS & HUNT END PLAY GROUP,Third Party Pymts 4Yr Old Nursery Education Grant,53657,11/04/2016,7200025272,8446.62,,
Expenditure - Over 500,2016 01,Worcestershire County Council,Children's Services,CH-PROFIT,Early Years - Other Providers,E21205,CROWLE PRE-SCHOOL,Third Party Pymts 4Yr Old Nursery Education Grant,53657,11/04/2016,7200025273,15232.31,,
Expenditure - Over 500,2016 01,Worcestershire County Council,Adult Services & Health,AC-PROFIT,Bookfund,S80460,BERTRAM LIBRARY SERVICES,Books,49018,25/04/2016,7150037747,1019.65,,
Expenditure - Over 500,2016 01,Worcestershire County Council,Adult Services & Health,AC-PROFIT,Long Lartin prison  Libraries,S80495,BERTRAM LIBRARY SERVICES,Books,49018,11/04/2016,4101543490,991.4,,
Expenditure - Over 500,2016 01,Worcestershire County Council,Adult Services & Health,AC-PROFIT,Bookfund,S80460,BERTRAM LIBRARY SERVICES,Books,49018,18/04/2016,7150037687,607.84,,
Expenditure - Over 500,2016 01,Worcestershire County Council,Children's Services,CH-PROFIT,Special Home/School Transport,E10877,CROWN RADIO TAXIS,PTG - Transport Tendered / Cont. Services,46021,04/04/2016,7190129081,2398,,
Expenditure - Over 500,2016 01,Worcestershire County Council,Children's Services,CH-PROFIT,Special Home/School Transport,E10877,CROWN RADIO TAXIS,PTG - Transport Tendered / Cont. Services,46021,25/04/2016,7190130043,2124,,
Expenditure - Over 500,2016 01,Worcestershire County Council,Adult Services & Health,AC-PROFIT,OP Transport,S34219,CROWN RADIO TAXIS,PTG - Transport Tendered / Cont. Services,46021,25/04/2016,7190130044,1575,,
Expenditure - Over 500,2016 01,Worcestershire County Council,Children's Services,CH-PROFIT,Special Home/School Transport,E10877,CROWN RADIO TAXIS,PTG - Transport Tendered / Cont. Services,46021,25/04/2016,7190130055,2970,,
Expenditure - Over 500,2016 01,Worcestershire County Council,Children's Services,CH-PROFIT,Special Home/School Transport,E10877,CROWN RADIO TAXIS,PTG - Transport Tendered / Cont. Services,46021,25/04/2016,7190130056,2844,,
Expenditure - Over 500,2016 01,Worcestershire County Council,Children's Services,CH-PROFIT,Post 16 - SEN H/S Transport,E20803,CROWN RADIO TAXIS,PTG - Transport Tendered / Cont. Services,46021,25/04/2016,7190130058,2142,,
Expenditure - Over 500,2016 01,Worcestershire County Council,Children's Services,CH-PROFIT,Special Home/School Transport,E10877,CROWN RADIO TAXIS,PTG - Transport Tendered / Cont. Services,46021,25/04/2016,7190130059,2125,,
Expenditure - Over 500,2016 01,Worcestershire County Council,Children's Services,CH-PROFIT,Post 16 - SEN H/S Transport,E20803,CROWN RADIO TAXIS,PTG - Transport Tendered / Cont. Services,46021,25/04/2016,7190130060,1938,,
Expenditure - Over 500,2016 01,Worcestershire County Council,Children's Services,CH-PROFIT,Special Home/School Transport,E10877,CROWN RADIO TAXIS,PTG - Transport Tendered / Cont. Services,46021,25/04/2016,7190130063,2754,,
Expenditure - Over 500,2016 01,Worcestershire County Council,Adult Services & Health,AC-PROFIT,LD Transport (PTG) South,S34866,CROWN RADIO TAXIS,PTG - Transport Tendered / Cont. Services,46021,28/04/2016,7190130080,1411,,
Expenditure - Over 500,2016 01,Worcestershire County Council,Children's Services,CH-PROFIT,Secondary Home/School Transport,E10707,CUSTOM TRAVEL,PTG - Transport Tendered / Cont. Services,46021,14/04/2016,7190129818,1171.8,,
Expenditure - Over 500,2016 01,Worcestershire County Council,Children's Services,CH-PROFIT,Secondary Home/School Transport,E10707,CUSTOM TRAVEL,PTG - Transport Tendered / Cont. Services,46021,14/04/2016,7190129819,1171.8,,
Expenditure - Over 500,2016 01,Worcestershire County Council,Children's Services,CH-PROFIT,Early Years - Other Providers,E21205,PUDDLEDUCKS,Third Party Pymts 4Yr Old Nursery Education Grant,53657,11/04/2016,7200025432,28817.88,,
Expenditure - Over 500,2016 01,Worcestershire County Council,Adult Services & Health,AC-PROFIT,Long Lartin prison  Libraries,S80495,BERTRAM LIBRARY SERVICES,Books,49018,07/04/2016,7150037428,1106.86,,
Expenditure - Over 500,2016 01,Worcestershire County Council,Adult Services & Health,AC-PROFIT,Bookfund,S80460,BERTRAM LIBRARY SERVICES,Books,49018,25/04/2016,7150037800,581.64,,
Expenditure - Over 500,2016 01,Worcestershire County Council,Adult Services & Health,AC-PROFIT,Long Lartin prison  Libraries,S80495,BERTRAM LIBRARY SERVICES,Materials Videos and DVDs,49041,18/04/2016,7150037686,938,,
Expenditure - Over 500,2016 01,Worcestershire County Council,Adult Services & Health,AC-PROFIT,Bookfund,S80460,BERTRAM LIBRARY SERVICES,Books,49018,25/04/2016,7150037809,558.16,,
Expenditure - Over 500,2016 01,Worcestershire County Council,Adult Services & Health,AC-PROFIT,Coroners Service,S80230,DR G KONDRATOWICZ,Expenses PM Examinations Pathologists Fees,51649,28/04/2016,3300650510,809,,
Expenditure - Over 500,2016 01,Worcestershire County Council,Children's Services,CH-PROFIT,Foundation Learning,E35010,DROITWICH SPA & RURAL COUNCIL,Services Course Fees For Pupils,50038,18/04/2016,4101543768,1080,,
Expenditure - Over 500,2016 01,Worcestershire County Council,Children's Services,CH-PROFIT,Foundation Learning,E35010,DROITWICH SPA & RURAL COUNCIL,Services Course Fees For Pupils,50038,18/04/2016,4101543769,1080,,
Expenditure - Over 500,2016 01,Worcestershire County Council,Adult Services & Health,AC-PROFIT,Equipment - Pooled Budgets,S31526,DENBIGHSHIRE COUNTY COUNCIL,Equipment Adults SDD,49084,11/04/2016,4101543295,774.72,,
Expenditure - Over 500,2016 01,Worcestershire County Council,Adult Services & Health,AC-PROFIT,Equipment - Pooled Budgets,S31526,DENBIGHSHIRE COUNTY COUNCIL,Equipment Adults SDD,49084,21/04/2016,4101546529,477.4,,
Expenditure - Over 500,2016 01,Worcestershire County Council,Adult Services & Health,AC-PROFIT,South Worcester Residential LD,S35551,DERWEN COLLEGE,Third Party Payments Purchase of Long Term Care,53667,18/04/2016,7310398572,1332.44,,
Expenditure - Over 500,2016 01,Worcestershire County Council,Adult Services & Health,AC-PROFIT,South Worcester Residential LD,S35551,DERWEN COLLEGE,Third Party Payments Purchase of Long Term Care,53667,18/04/2016,7310398576,870.72,,
Expenditure - Over 500,2016 01,Worcestershire County Council,Adult Services & Health,AC-PROFIT,South Worcester Residential LD,S35551,DERWEN COLLEGE,Third Party Payments Purchase of Long Term Care,53667,18/04/2016,7310398580,595.49,,
Expenditure - Over 500,2016 01,Worcestershire County Council,Adult Services & Health,AC-PROFIT,South Worcester Residential LD,S35551,DERWEN COLLEGE,Third Party Payments Purchase of Long Term Care,53667,18/04/2016,7310398588,1994.54,,
Expenditure - Over 500,2016 01,Worcestershire County Council,Adult Services & Health,AC-PROFIT,South Worcester Residential LD,S35551,DERWEN COLLEGE,Third Party Payments Purchase of Long Term Care,53667,18/04/2016,7310398594,571.8,,
Expenditure - Over 500,2016 01,Worcestershire County Council,Adult Services & Health,AC-PROFIT,LD Direct Payments - SOUTH,S31060,DERWEN COLLEGE,Third Party Pymnts Personal Budgets,54054,25/04/2016,7450104380,997.76,,
Expenditure - Over 500,2016 01,Worcestershire County Council,"Business, Environment & Community",EN-DIR,Concessionary Fares Administration,V21015,DUDLEY'S COACHES,Third Party Pymnts Public Transport Operators,54005,14/04/2016,7190129576,1680.46,,
Expenditure - Over 500,2016 01,Worcestershire County Council,Children's Services,CH-PROFIT,FE Home/College Transport,E20227,DUDLEY'S COACHES,PTG - Public Transport Bus,47514,28/04/2016,7190130072,9691.5,,
Expenditure - Over 500,2016 01,Worcestershire County Council,Adult Services & Health,AC-PROFIT,Public Health OP Carers Service,S42014,DEAF DIRECT LIMITED,Third Party Payments External Provider,54044,07/04/2016,4101543118,22375,,
Expenditure - Over 500,2016 01,Worcestershire County Council,Adult Services & Health,AC-PROFIT,Support for Sensory Impairment,S42087,DEAF DIRECT LIMITED,Third Party Payments External Provider,54044,21/04/2016,4101546390,923.25,,
Expenditure - Over 500,2016 01,Worcestershire County Council,Adult Services & Health,AC-PROFIT,Equipment - Pooled Budgets,S31526,DENBIGHSHIRE COUNTY COUNCIL,Equipment Adults SDD,49084,07/04/2016,4101542825,1040.68,,
Expenditure - Over 500,2016 01,Worcestershire County Council,Adult Services & Health,AC-PROFIT,Equipment - Pooled Budgets,S31526,DENBIGHSHIRE COUNTY COUNCIL,Equipment Adults SDD,49084,07/04/2016,4101542602,1053.52,,
Expenditure - Over 500,2016 01,Worcestershire County Council,Adult Services & Health,AC-PROFIT,Equipment - Pooled Budgets,S31526,DENBIGHSHIRE COUNTY COUNCIL,Equipment Adults SDD,49084,25/04/2016,4101546315,785.6,,
Expenditure - Over 500,2016 01,Worcestershire County Council,Adult Services & Health,AC-PROFIT,Equipment - Pooled Budgets,S31526,DENBIGHSHIRE COUNTY COUNCIL,Equipment Adults SDD,49084,25/04/2016,4101546522,1435.34,,
Expenditure - Over 500,2016 01,Worcestershire County Council,Children's Services,CH-PROFIT,DSG-Service Dev Manager - Resources,E21616,DERBYSHIRE COUNTY COUNCIL,Services Other Fees,50035,19/04/2016,4101545151,1000,,
Expenditure - Over 500,2016 01,Worcestershire County Council,Resources,CS-PROFIT,Cllr Divisional Fund,C40236,DROITWICH SPA & RURAL COUNCIL,Expenses Members Other,50612,07/04/2016,3310035203,800,,
Expenditure - Over 500,2016 01,Worcestershire County Council,"Business, Environment & Community",EN-PROFIT,Parish Lengthsman Scheme,V16101,DROITWICH SPA TOWN COUNCIL,Third Party Payments Private Contractors,53974,25/04/2016,4101545864,768.18,,
Expenditure - Over 500,2016 01,Worcestershire County Council,Children's Services,CH-PROFIT,Primary Home/School Transport,E10037,DUDLEY'S COACHES,PTG - Transport Tendered / Cont. Services,46021,04/04/2016,7190129254,3150,,
Expenditure - Over 500,2016 01,Worcestershire County Council,Children's Services,CH-PROFIT,Primary Home/School Transport,E10037,DUDLEY'S COACHES,PTG - Transport Tendered / Cont. Services,46021,04/04/2016,7190129269,3898.11,,
Expenditure - Over 500,2016 01,Worcestershire County Council,Children's Services,CH-PROFIT,Primary Home/School Transport,E10037,DUDLEY'S COACHES,PTG - Transport Tendered / Cont. Services,46021,04/04/2016,7190129270,3748.19,,
Expenditure - Over 500,2016 01,Worcestershire County Council,Children's Services,CH-PROFIT,Trans't to Non WCC Secondary Schools,E10028,DUDLEY'S COACHES,PTG - Transport Tendered / Cont. Services,46021,04/04/2016,7190129274,3249.58,,
Expenditure - Over 500,2016 01,Worcestershire County Council,Children's Services,CH-PROFIT,FE Home/College Transport,E20227,DUDLEY'S COACHES,PTG - Public Transport Bus,47514,07/04/2016,7190129366,9900,,
Expenditure - Over 500,2016 01,Worcestershire County Council,Adult Services & Health,AC-PROFIT,North Worcs Residential LD (Wyre Forest),S35511,ELERI HOUSE,Receipts Sales Long Term Residents,67047,18/04/2016,7310398750,2806.98,,
Expenditure - Over 500,2016 01,Worcestershire County Council,"Business, Environment & Community",EN-PROFIT,Parish Lengthsman Scheme,V16101,DEFFORD & BESFORD PARISH COUNCIL,Third Party Payments Private Contractors,53974,04/04/2016,4101541553,1988.2,,
Expenditure - Over 500,2016 01,Worcestershire County Council,Resources,CS-PROFIT,Cllr Divisional Fund,C40236,DEFFORD & BESFORD PARISH COUNCIL,Expenses Members Other,50612,19/04/2016,3310035329,750,,
Expenditure - Over 500,2016 01,Worcestershire County Council,Adult Services & Health,AC-PROFIT,North Worcs Residential LD (Wyre Forest),S35511,DEVON & CORNWALL AUTISTIC COMM'TY T,Third Party Payments Purchase of Long Term Care,53667,18/04/2016,7310399232,4746.34,,
Expenditure - Over 500,2016 01,Worcestershire County Council,Children's Services,CH-PROFIT,Pupil Premium Plus,E20843,DEVON COUNTY COUNCIL,Academy Funding Payments,51025,07/04/2016,3320008070,723.7,,
Expenditure - Over 500,2016 01,Worcestershire County Council,Children's Services,CH-PROFIT,Pupil Premium Plus,E20843,DEVON COUNTY COUNCIL,Academy Funding Payments,51025,07/04/2016,3320008167,600,,
Expenditure - Over 500,2016 01,Worcestershire County Council,Adult Services & Health,AC-PROFIT,Primary Care - LARC Sex.Hlth/Contracept,S42033,ST STEPHENS SURGERY,Third Party Payments,53006,14/04/2016,4101543375,2827.24,,
Expenditure - Over 500,2016 01,Worcestershire County Council,Children's Services,CH-PROFIT,Early Years - Other Providers,E21205,EAST REALM LTD,Third Party Pymts 4Yr Old Nursery Education Grant,53657,11/04/2016,7200025514,14905.8,,
Expenditure - Over 500,2016 01,Worcestershire County Council,Adult Services & Health,AC-PROFIT,South Worcester Residential LD,S35551,ELERI HOUSE,Receipts Sales Long Term Residents,67047,18/04/2016,7310398748,2831.9,,
Expenditure - Over 500,2016 01,Worcestershire County Council,Adult Services & Health,AC-PROFIT,South Worcester Nursing LD,S35552,EDGEVIEW HOMES LTD,Third Party Payments Purchase of Long Term Care,53667,18/04/2016,7310397826,11164.58,,
Expenditure - Over 500,2016 01,Worcestershire County Council,Adult Services & Health,AC-PROFIT,North Worcs Nursing LD (Wyre Forest),S35512,EDGEVIEW HOMES LTD,Third Party Payments Purchase of Long Term Care,53667,18/04/2016,7310398040,7938.9,,
Expenditure - Over 500,2016 01,Worcestershire County Council,Adult Services & Health,AC-PROFIT,North Worcs Residential LD (Wyre Forest),S35511,EDGEVIEW HOMES LTD,Third Party Payments Purchase of Long Term Care,53667,18/04/2016,7310399322,10174.14,,
Expenditure - Over 500,2016 01,Worcestershire County Council,Adult Services & Health,AC-PROFIT,North Supported Living Scheme,S31367,EDGEVIEW HOMES LTD,Third Party Payments Purchase of Long Term Care,53667,18/04/2016,7310399578,3769.92,,
Expenditure - Over 500,2016 01,Worcestershire County Council,"Business, Environment & Community",EN-PROFIT,Enforcement,V82820,ELMS,Third Party Pymnts Other Hired & Contracted Servs,53986,07/04/2016,4101542971,521.76,,
Expenditure - Over 500,2016 01,Worcestershire County Council,Adult Services & Health,AC-ERROR,Adults & Community Servs Error Suspense,ACSSER001,ELIZABETH FINN GROUP,Adult & Community Servs - Other,98254,18/04/2016,7310399876,-544,,
Expenditure - Over 500,2016 01,Worcestershire County Council,Adult Services & Health,AC-PROFIT,Property Charge Temporary Code,S35398,ELIZABETH FINN GROUP,Third Party Payments Purchase of Long Term Care,53667,18/04/2016,7310399892,19645.94,,
Expenditure - Over 500,2016 01,Worcestershire County Council,Adult Services & Health,AC-PROFIT,Property Charge Temporary Code,S35398,ELIZABETH FINN GROUP,Receipts Sales Long Term Residents,67047,18/04/2016,7310399911,3693.14,,
Expenditure - Over 500,2016 01,Worcestershire County Council,Children's Services,CH-PROFIT,Early Years - Other Providers,E21205,DEERHURST DAY NURSERY,Third Party Pymts 4Yr Old Nursery Education Grant,53657,11/04/2016,7200025278,20321.57,,
Expenditure - Over 500,2016 01,Worcestershire County Council,Adult Services & Health,AC-PROFIT,North Worcs Residential LD (Wyre Forest),S35511,FITZROY SUPPORT,Third Party Payments Purchase of Long Term Care,53667,18/04/2016,7310398710,5914.8,,
Expenditure - Over 500,2016 01,Worcestershire County Council,Adult Services & Health,AC-PROFIT,South Worcester Residential LD,S35551,FITZROY SUPPORT,Third Party Payments Purchase of Long Term Care,53667,18/04/2016,7310398782,6366.66,,
Expenditure - Over 500,2016 01,Worcestershire County Council,Adult Services & Health,AC-PROFIT,South Worcester Residential LD,S35551,FITZROY SUPPORT,Third Party Payments Purchase of Long Term Care,53667,18/04/2016,7310398824,6523.68,,
Expenditure - Over 500,2016 01,Worcestershire County Council,Adult Services & Health,AC-PROFIT,South Worcester Residential LD,S35551,FITZROY SUPPORT,Third Party Payments Purchase of Long Term Care,53667,18/04/2016,7310398980,4776.5,,
Expenditure - Over 500,2016 01,Worcestershire County Council,Non Directorate Specific,LA01,Cathedral Plaza,CA60849,ELMS,CAPEX Construction Costs Direct Pymts,64958,05/04/2016,4101542281,2850,,
Expenditure - Over 500,2016 01,Worcestershire County Council,Non Directorate Specific,LA01,Bromsgrove Station Enhancement,CA60777,EVERSHEDS,CAPEX Purchase of Land&Builds Legal Fees,64202,07/04/2016,4101542584,2492.5,,
Expenditure - Over 500,2016 01,Worcestershire County Council,Non Directorate Specific,,,,EVERSHEDS,Legal Fees,50024,11/04/2016,4101543536,6870.5,,
Expenditure - Over 500,2016 01,Worcestershire County Council,"Business, Environment & Community",EN-PROFIT,"Management, Admin, Professional & E",V22000,EVERSHEDS,Legal Fees,50024,21/04/2016,4101545057,989.5,,
Expenditure - Over 500,2016 01,Worcestershire County Council,Children's Services,CH-PROFIT,Primary Home/School Transport,E10037,ELGAR COACHES,PTG - Transport Tendered / Cont. Services,46021,14/04/2016,7190129817,4374,,
Expenditure - Over 500,2016 01,Worcestershire County Council,Children's Services,CH-PROFIT,Primary Home/School Transport,E10037,ELGAR COACHES,PTG - Transport Tendered / Cont. Services,46021,14/04/2016,7190129820,1201.5,,
Expenditure - Over 500,2016 01,Worcestershire County Council,Children's Services,CH-PROFIT,Secondary Home/School Transport,E10707,ELGAR COACHES,PTG - Transport Tendered / Cont. Services,46021,14/04/2016,7190129821,1201.68,,
Expenditure - Over 500,2016 01,Worcestershire County Council,Children's Services,CH-PROFIT,Secondary Home/School Transport,E10707,ELGAR COACHES,PTG - Transport Tendered / Cont. Services,46021,28/04/2016,7190130098,3060,,
Expenditure - Over 500,2016 01,Worcestershire County Council,Adult Services & Health,AC-PROFIT,North Worcs Nursing LD (Wyre Forest),S35512,EDGEVIEW HOMES LTD,Receipts Sales Long Term Residents,67047,18/04/2016,7310397736,4731.42,,
Expenditure - Over 500,2016 01,Worcestershire County Council,Adult Services & Health,AC-PROFIT,South Worcester Nursing LD,S35552,EDGEVIEW HOMES LTD,Third Party Payments Purchase of Long Term Care,53667,18/04/2016,7310397746,5116.84,,
Expenditure - Over 500,2016 01,Worcestershire County Council,Adult Services & Health,AC-PROFIT,North Worcs Nursing LD (Wyre Forest),S35512,EDGEVIEW HOMES LTD,Third Party Payments Purchase of Long Term Care,53667,18/04/2016,7310397764,3124.08,,
Expenditure - Over 500,2016 01,Worcestershire County Council,Adult Services & Health,AC-PROFIT,North Worcs Nursing LD (Wyre Forest),S35512,EDGEVIEW HOMES LTD,Receipts Sales Long Term Residents,67047,18/04/2016,7310397770,3525.42,,
Expenditure - Over 500,2016 01,Worcestershire County Council,Adult Services & Health,AC-PROFIT,North Worcs Nursing LD (Wyre Forest),S35512,EDGEVIEW HOMES LTD,Receipts Sales Long Term Residents,67047,18/04/2016,7310397776,3690.94,,
Expenditure - Over 500,2016 01,Worcestershire County Council,Adult Services & Health,AC-PROFIT,Nursing - MH,S35642,EDGEVIEW HOMES LTD,Third Party Payments Purchase of Long Term Care,53667,18/04/2016,7310397780,3463.08,,
Expenditure - Over 500,2016 01,Worcestershire County Council,Adult Services & Health,AC-PROFIT,North Worcs Nursing LD (Wyre Forest),S35512,EDGEVIEW HOMES LTD,Third Party Payments Purchase of Long Term Care,53667,18/04/2016,7310397816,8807.82,,
Expenditure - Over 500,2016 01,Worcestershire County Council,Children's Services,CH-PROFIT,Secondary Home/School Transport,E10707,ELGAR COACHES,PTG - Transport Tendered / Cont. Services,46021,28/04/2016,7190130096,3561.5,,
Expenditure - Over 500,2016 01,Worcestershire County Council,Children's Services,CH-PROFIT,Secondary Home/School Transport,E10707,ELGAR COACHES,PTG - Transport Tendered / Cont. Services,46021,28/04/2016,7190130097,3655,,
Expenditure - Over 500,2016 01,Worcestershire County Council,Adult Services & Health,AC-PROFIT,Nursing - MH,S35642,EDGEVIEW HOMES LTD,Third Party Payments Purchase of Long Term Care,53667,18/04/2016,7310397820,9688.18,,
Expenditure - Over 500,2016 01,Worcestershire County Council,Adult Services & Health,AC-ERROR,Adults & Community Servs Error Suspense,ACSSER001,ELIZABETH FINN GROUP,Adult & Community Servs - Other,98254,18/04/2016,7310396722,1952,,
Expenditure - Over 500,2016 01,Worcestershire County Council,Adult Services & Health,AC-PROFIT,Health Checks,S42005,THORNELOE LODGE SURGERY,Third Party Payments,53006,29/04/2016,4101543716,1820,,
Expenditure - Over 500,2016 01,Worcestershire County Council,Children's Services,CH-PROFIT,Early Years - Other Providers,E21205,DROITWICH SPA NURSERY & KINDERGARTE,Third Party Pymts 4Yr Old Nursery Education Grant,53657,11/04/2016,7200025284,48029.8,,
Expenditure - Over 500,2016 01,Worcestershire County Council,Adult Services & Health,AC-PROFIT,Health Checks,S42005,"DRS BROTHERWOOD, REES & HAMILTON",Third Party Payments,53006,11/04/2016,4101543106,2900,,
Expenditure - Over 500,2016 01,Worcestershire County Council,Adult Services & Health,AC-PROFIT,Health Checks,S42005,DRS WARD MACLEOD & SUTHERLAND,Third Party Payments,53006,14/04/2016,4101543183,1420,,
Expenditure - Over 500,2016 01,Worcestershire County Council,Adult Services & Health,AC-PROFIT,Bookfund,S80460,CENGAGE LEARNING EMEA LTD,On-line subscriptions,49030,11/04/2016,4101543696,8235.15,,
Expenditure - Over 500,2016 01,Worcestershire County Council,Adult Services & Health,AC-PROFIT,Investment in Extra Care,S32360,EXTRACARE CHARITABLE TRUST,Third Party Payments Purchase of Long Term Care,53667,11/04/2016,7320480369,2458.5,,
Expenditure - Over 500,2016 01,Worcestershire County Council,Adult Services & Health,AC-DIR,H.E.R. & Advisory,S80702,EXEGESIS SPATIAL DATA MANAGEMENT LT,Computing Software,50319,29/04/2016,4101549488,9874,,
Expenditure - Over 500,2016 01,Worcestershire County Council,Adult Services & Health,AC-PROFIT,LD North Domiciliary,S33413,FAVOR HOUSE HOMES,Third Party Payments Dom Care Frm Independent Prov,53669,25/04/2016,7320482744,604.24,,
Expenditure - Over 500,2016 01,Worcestershire County Council,Adult Services & Health,AC-PROFIT,LD North Domiciliary,S33413,FAVOR HOUSE HOMES,Third Party Payments Dom Care Frm Independent Prov,53669,28/04/2016,7320484161,604.24,,
Expenditure - Over 500,2016 01,Worcestershire County Council,Children's Services,CH-PROFIT,Inter-Auth Recoupment - Special,E10872,GLOUCESTERSHIRE COUNTY COUNCIL,Third Party Payments Inter Authority Recoupment,52354,04/04/2016,4101542169,1581,,
Expenditure - Over 500,2016 01,Worcestershire County Council,Children's Services,CH-PROFIT,Pupil Premium Plus,E20843,GLOUCESTERSHIRE COUNTY COUNCIL,Academy Funding Payments,51025,07/04/2016,3320008009,2894.8,,
Expenditure - Over 500,2016 01,Worcestershire County Council,Children's Services,CH-PROFIT,Pupil Premium Plus,E20843,GLOUCESTERSHIRE COUNTY COUNCIL,Academy Funding Payments,51025,07/04/2016,3320008010,3618.5,,
Expenditure - Over 500,2016 01,Worcestershire County Council,Children's Services,CH-PROFIT,Pupil Premium Plus,E20843,GLOUCESTERSHIRE COUNTY COUNCIL,Academy Funding Payments,51025,07/04/2016,3320008105,600,,
Expenditure - Over 500,2016 01,Worcestershire County Council,Adult Services & Health,AC-PROFIT,LD North Domiciliary,S33413,FAVOR HOUSE HOMES,Third Party Payments Dom Care Frm Independent Prov,53669,29/04/2016,7320485125,577.6,,
Expenditure - Over 500,2016 01,Worcestershire County Council,Children's Services,CH-PROFIT,Pupil Premium Plus,E20843,GLOUCESTERSHIRE COUNTY COUNCIL,Academy Funding Payments,51025,07/04/2016,3320008106,600,,
Expenditure - Over 500,2016 01,Worcestershire County Council,Children's Services,CH-PROFIT,Early Years - Other Providers,E21205,FAIRFIELD PRESCHOOL LIMITED,Third Party Pymts 4Yr Old Nursery Education Grant,53657,11/04/2016,7200025295,14342.69,,
Expenditure - Over 500,2016 01,Worcestershire County Council,Adult Services & Health,AC-PROFIT,North Worcs Residential LD (Wyre Forest),S35511,FAVOR HOUSE HOMES,Third Party Payments Purchase of Long Term Care,53667,18/04/2016,7310398268,1808.22,,
Expenditure - Over 500,2016 01,Worcestershire County Council,Adult Services & Health,AC-PROFIT,North Worcs Residential LD (Wyre Forest),S35511,FAVOR HOUSE HOMES,Third Party Payments Purchase of Long Term Care,53667,18/04/2016,7310398270,1681.22,,
Expenditure - Over 500,2016 01,Worcestershire County Council,Adult Services & Health,AC-PROFIT,North Worcs Residential LD (Wyre Forest),S35511,FAVOR HOUSE HOMES,Third Party Payments Purchase of Long Term Care,53667,18/04/2016,7310398272,1837.62,,
Expenditure - Over 500,2016 01,Worcestershire County Council,Adult Services & Health,AC-PROFIT,North Worcs Residential LD (Wyre Forest),S35511,FAVOR HOUSE HOMES,Third Party Payments Purchase of Long Term Care,53667,18/04/2016,7310398274,2201.42,,
Expenditure - Over 500,2016 01,Worcestershire County Council,Adult Services & Health,AC-PROFIT,North Worcs Residential LD (Wyre Forest),S35511,FAVOR HOUSE HOMES,Receipts Sales Long Term Residents,67047,18/04/2016,7310398276,1818.3,,
Expenditure - Over 500,2016 01,Worcestershire County Council,Adult Services & Health,AC-PROFIT,North Worcs Residential LD (Wyre Forest),S35511,FAVOR HOUSE HOMES,Receipts Sales Long Term Residents,67047,18/04/2016,7310398278,5092,,
Expenditure - Over 500,2016 01,Worcestershire County Council,Adult Services & Health,AC-PROFIT,LD North Domiciliary,S33413,FAVOR HOUSE HOMES,Third Party Payments Dom Care Frm Independent Prov,53669,29/04/2016,7320485126,577.6,,
Expenditure - Over 500,2016 01,Worcestershire County Council,Adult Services & Health,AC-PROFIT,North Worcs Residential LD (Wyre Forest),S35511,FAVOR HOUSE HOMES,Receipts Sales Long Term Residents,67047,18/04/2016,7310398290,3916.06,,
Expenditure - Over 500,2016 01,Worcestershire County Council,Adult Services & Health,AC-PROFIT,North Worcs Residential LD (Wyre Forest),S35511,FAVOR HOUSE HOMES,Third Party Payments Purchase of Long Term Care,53667,18/04/2016,7310398348,5092,,
Expenditure - Over 500,2016 01,Worcestershire County Council,Adult Services & Health,AC-PROFIT,North Worcs Residential LD (Wyre Forest),S35511,FAVOR HOUSE HOMES,Third Party Payments Purchase of Long Term Care,53667,18/04/2016,7310398354,2513.64,,
Expenditure - Over 500,2016 01,Worcestershire County Council,Adult Services & Health,AC-PROFIT,North Worcs Residential LD (Wyre Forest),S35511,FAVOR HOUSE HOMES,Third Party Payments Purchase of Long Term Care,53667,18/04/2016,7310398358,3595.14,,
Expenditure - Over 500,2016 01,Worcestershire County Council,Adult Services & Health,AC-PROFIT,North Worcs Residential LD (Wyre Forest),S35511,FAVOR HOUSE HOMES,Third Party Payments Purchase of Long Term Care,53667,18/04/2016,7310398368,4331.14,,
Expenditure - Over 500,2016 01,Worcestershire County Council,Adult Services & Health,AC-PROFIT,North Worcs Short Breaks LD,S35510,FAVOR HOUSE HOMES,TPP Purchase of Planned Replacement Care,53666,18/04/2016,7310398660,24600,,
Expenditure - Over 500,2016 01,Worcestershire County Council,Adult Services & Health,AC-PROFIT,North Worcs Short Breaks LD,S35510,FAVOR HOUSE HOMES,TPP Purchase of Planned Replacement Care,53666,18/04/2016,7310398700,20074.28,,
Expenditure - Over 500,2016 01,Worcestershire County Council,Adult Services & Health,AC-PROFIT,North Supported Living Scheme,S31367,FAVOR HOUSE HOMES,Third Party Payments Purchase of Long Term Care,53667,18/04/2016,7310399650,1848.32,,
Expenditure - Over 500,2016 01,Worcestershire County Council,Adult Services & Health,AC-PROFIT,LT Nursing - OP,S35342,HERITAGE MANOR LTD,Third Party Payments Purchase of Long Term Care,53667,18/04/2016,7310399519,1913.2,,
Expenditure - Over 500,2016 01,Worcestershire County Council,Adult Services & Health,AC-PROFIT,LT Nursing - OP,S35342,HERITAGE MANOR LTD,Third Party Payments Purchase of Long Term Care,53667,18/04/2016,7310399521,1603.4,,
Expenditure - Over 500,2016 01,Worcestershire County Council,Adult Services & Health,AC-PROFIT,LT Nursing - OP,S35342,HERITAGE MANOR LTD,Third Party Payments Purchase of Long Term Care,53667,18/04/2016,7310399635,2431.54,,
Expenditure - Over 500,2016 01,Worcestershire County Council,Adult Services & Health,AC-PROFIT,LT Nursing - OP,S35342,HERITAGE MANOR LTD,Receipts Sales Long Term Residents,67047,18/04/2016,7310399649,1128.12,,
Expenditure - Over 500,2016 01,Worcestershire County Council,Adult Services & Health,AC-ERROR,Adults & Community Servs Error Suspense,ACSSER001,HERITAGE MANOR LTD,Adult & Community Servs - Other,98254,18/04/2016,7310399721,2288,,
Expenditure - Over 500,2016 01,Worcestershire County Council,Adult Services & Health,AC-ERROR,Adults & Community Servs Error Suspense,ACSSER001,HERITAGE MANOR LTD,Adult & Community Servs - Other,98254,18/04/2016,7310399725,1056,,
Expenditure - Over 500,2016 01,Worcestershire County Council,Adult Services & Health,AC-PROFIT,LT Nursing - OP,S35342,GLENFIELD HOUSE NURSING HOME LTD,Receipts Sales Long Term Residents,67047,18/04/2016,7310397899,1567.86,,
Expenditure - Over 500,2016 01,Worcestershire County Council,Adult Services & Health,AC-PROFIT,LT Nursing - OP,S35342,GLENFIELD HOUSE NURSING HOME LTD,Third Party Payments Purchase of Long Term Care,53667,18/04/2016,7310397929,1691.1,,
Expenditure - Over 500,2016 01,Worcestershire County Council,Adult Services & Health,AC-PROFIT,LT Nursing - OP,S35342,GLENFIELD HOUSE NURSING HOME LTD,Receipts Sales Long Term Residents,67047,18/04/2016,7310398055,1917.5,,
Expenditure - Over 500,2016 01,Worcestershire County Council,Adult Services & Health,AC-PROFIT,Residential - MH,S35641,GALLTFAENAN HALL,Third Party Payments Purchase of Long Term Care,53667,18/04/2016,7310399252,2975.48,,
Expenditure - Over 500,2016 01,Worcestershire County Council,Adult Services & Health,AC-PROFIT,LT Nursing - OP,S35342,HERITAGE MANOR LTD,Receipts Sales Long Term Residents,67047,18/04/2016,7310399291,1607.7,,
Expenditure - Over 500,2016 01,Worcestershire County Council,Adult Services & Health,AC-PROFIT,LT Nursing - OP,S35342,HERITAGE MANOR LTD,Receipts Sales Long Term Residents,67047,18/04/2016,7310399365,1614.94,,
Expenditure - Over 500,2016 01,Worcestershire County Council,Adult Services & Health,AC-PROFIT,LT Nursing - OP,S35342,HERITAGE MANOR LTD,Receipts Sales Long Term Residents,67047,18/04/2016,7310399373,1868.34,,
Expenditure - Over 500,2016 01,Worcestershire County Council,Adult Services & Health,AC-PROFIT,LT Nursing - OP,S35342,HERITAGE MANOR LTD,Third Party Payments Purchase of Long Term Care,53667,18/04/2016,7310399379,1783.26,,
Expenditure - Over 500,2016 01,Worcestershire County Council,Adult Services & Health,AC-PROFIT,LT Nursing - OP,S35342,HERITAGE MANOR LTD,Receipts Sales Long Term Residents,67047,18/04/2016,7310399437,1712.54,,
Expenditure - Over 500,2016 01,Worcestershire County Council,Adult Services & Health,AC-PROFIT,Nursing - MH,S35642,HERITAGE MANOR LTD,Third Party Payments Purchase of Long Term Care,53667,18/04/2016,7310399479,3404.4,,
Expenditure - Over 500,2016 01,Worcestershire County Council,Adult Services & Health,AC-PROFIT,LT Nursing - OP,S35342,GLENFIELD HOUSE NURSING HOME LTD,Receipts Sales Long Term Residents,67047,18/04/2016,7310398125,1649,,
Expenditure - Over 500,2016 01,Worcestershire County Council,Adult Services & Health,AC-PROFIT,Equipment - Pooled Budgets,S31526,G & S SMIRTHWAITE LTD,Equipment Children SSD,49083,07/04/2016,4101541960,434,,
Expenditure - Over 500,2016 01,Worcestershire County Council,Adult Services & Health,AC-PROFIT,LT Nursing - OP,S35342,GLENFIELD HOUSE NURSING HOME LTD,Receipts Sales Long Term Residents,67047,18/04/2016,7310398179,2143.32,,
Expenditure - Over 500,2016 01,Worcestershire County Council,Adult Services & Health,AC-PROFIT,Equipment - Pooled Budgets,S31526,G & S SMIRTHWAITE LTD,Equipment Children SSD,49083,07/04/2016,4101541963,446,,
Expenditure - Over 500,2016 01,Worcestershire County Council,Adult Services & Health,AC-PROFIT,Equipment - Pooled Budgets,S31526,G & S SMIRTHWAITE LTD,Equipment Children SSD,49083,11/04/2016,4101541965,469,,
Expenditure - Over 500,2016 01,Worcestershire County Council,Adult Services & Health,AC-PROFIT,Equipment - Pooled Budgets,S31526,G & S SMIRTHWAITE LTD,Equipment Children SSD,49083,14/04/2016,4101543863,1159,,
Expenditure - Over 500,2016 01,Worcestershire County Council,Adult Services & Health,AC-PROFIT,LT Nursing - OP,S35342,GLENFIELD HOUSE NURSING HOME LTD,Receipts Sales Long Term Residents,67047,18/04/2016,7310398213,523.25,,
Expenditure - Over 500,2016 01,Worcestershire County Council,Adult Services & Health,AC-PROFIT,ST Nursing - OP,S35344,GLENFIELD HOUSE NURSING HOME LTD,TPP Purchase of Planned Replacement Care,53666,18/04/2016,7310398253,559.5,,
Expenditure - Over 500,2016 01,Worcestershire County Council,Adult Services & Health,AC-PROFIT,LT Nursing - OP,S35342,GLENFIELD HOUSE NURSING HOME LTD,Receipts Sales Long Term Residents,67047,18/04/2016,7310398259,-1694.51,,
Expenditure - Over 500,2016 01,Worcestershire County Council,Adult Services & Health,AC-PROFIT,ST Nursing - OP,S35344,GLENFIELD HOUSE NURSING HOME LTD,TPP Purchase of Planned Replacement Care,53666,18/04/2016,7310398269,559.5,,
Expenditure - Over 500,2016 01,Worcestershire County Council,Children's Services,CH-PROFIT,Inter-Auth Recoupment - Primary,E10032,GLOUCESTERSHIRE COUNTY COUNCIL,Third Party Payments Inter Authority Recoupment,52354,04/04/2016,4101542166,39189.48,,
Expenditure - Over 500,2016 01,Worcestershire County Council,Children's Services,CH-PROFIT,Inter-Auth Recoupment - Primary,E10032,GLOUCESTERSHIRE COUNTY COUNCIL,Third Party Payments Inter Authority Recoupment,52354,04/04/2016,4101542167,7365,,
Expenditure - Over 500,2016 01,Worcestershire County Council,Children's Services,CH-PROFIT,Inter-Auth Recoupment - Special,E10872,GLOUCESTERSHIRE COUNTY COUNCIL,Third Party Payments Inter Authority Recoupment,52354,04/04/2016,4101542168,2634.75,,
Expenditure - Over 500,2016 01,Worcestershire County Council,Adult Services & Health,AC-PROFIT,LT Residential - PD,S35441,FATHER HUDSON'S SOCIETY,Receipts Sales Long Term Residents,67047,18/04/2016,7310399212,3983.54,,
Expenditure - Over 500,2016 01,Worcestershire County Council,Adult Services & Health,AC-PROFIT,LD North Domiciliary,S33413,FAVOR HOUSE HOMES,Third Party Payments Dom Care Frm Independent Prov,53669,11/04/2016,7320480368,577.6,,
Expenditure - Over 500,2016 01,Worcestershire County Council,Adult Services & Health,AC-PROFIT,LD North Domiciliary,S33413,FAVOR HOUSE HOMES,Third Party Payments Dom Care Frm Independent Prov,53669,11/04/2016,7320480128,576.24,,
Expenditure - Over 500,2016 01,Worcestershire County Council,Children's Services,CH-PROFIT,Early Years - Other Providers,E21205,FIRST CLASS NURSERY (KIDDERMINSTER),Third Party Pymts 4Yr Old Nursery Education Grant,53657,11/04/2016,7200025298,16396.38,,
Expenditure - Over 500,2016 01,Worcestershire County Council,Children's Services,CH-PROFIT,Early Years - Other Providers,E21205,FLYFORD PIPPINS,Third Party Pymts 4Yr Old Nursery Education Grant,53657,11/04/2016,7200025301,7817.26,,
Expenditure - Over 500,2016 01,Worcestershire County Council,Adult Services & Health,AC-PROFIT,LT Residential - OP,S35341,FIELD VIEW RESIDENTIAL HOME,Receipts Sales Long Term Residents,67047,18/04/2016,7310398836,1193.18,,
Expenditure - Over 500,2016 01,Worcestershire County Council,Adult Services & Health,AC-PROFIT,LT Residential - OP,S35341,FIELD VIEW RESIDENTIAL HOME,Receipts Sales Long Term Residents,67047,18/04/2016,7310398886,963.9,,
Expenditure - Over 500,2016 01,Worcestershire County Council,Adult Services & Health,AC-PROFIT,COP Property Temporary Code,S35397,FIELD VIEW RESIDENTIAL HOME,Third Party Payments Purchase of Long Term Care,53667,18/04/2016,7310399124,1971.42,,
Expenditure - Over 500,2016 01,Worcestershire County Council,Adult Services & Health,AC-PROFIT,ST Residential - OP,S35343,FIELD VIEW RESIDENTIAL HOME,TPP Purchase of Planned Replacement Care,53666,18/04/2016,7310399198,1000,,
Expenditure - Over 500,2016 01,Worcestershire County Council,"Business, Environment & Community",EN-PROFIT,Principal inspections & Structural Inv,V17351,HALCROW GROUP LTD,Professional Fees,50031,29/04/2016,4101549013,8405.6,,
Expenditure - Over 500,2016 01,Worcestershire County Council,"Business, Environment & Community",EN-PROFIT,Development Control S278/38 Team,V16300,HALCROW GROUP LTD,Professional Fees,50031,29/04/2016,4101549054,655.74,,
Expenditure - Over 500,2016 01,Worcestershire County Council,"Business, Environment & Community",EN-PROFIT,Development Control S278/38 Team,V16300,HALCROW GROUP LTD,Professional Fees,50031,29/04/2016,4101549058,545.9,,
Expenditure - Over 500,2016 01,Worcestershire County Council,"Business, Environment & Community",EN-PROFIT,S278 / 38 Milestone Payments,V16308,HALCROW GROUP LTD,Professional Fees,50031,29/04/2016,4101549063,885.47,,
Expenditure - Over 500,2016 01,Worcestershire County Council,"Business, Environment & Community",EN-PROFIT,S278 / 38 Milestone Payments,V16308,HALCROW GROUP LTD,Professional Fees,50031,29/04/2016,4101549069,5816.34,,
Expenditure - Over 500,2016 01,Worcestershire County Council,"Business, Environment & Community",EN-PROFIT,Development Control S278/38 Team,V16300,HALCROW GROUP LTD,Professional Fees,50031,29/04/2016,4101549076,3123.26,,
Expenditure - Over 500,2016 01,Worcestershire County Council,Non Directorate Specific,LA01,Kidderminster Transport Strategy,CA60778,HALCROW GROUP LTD,CAPEX Profess & Tech Fees Other Ext Profess Fees,64457,29/04/2016,4101549103,14051.3,,
Expenditure - Over 500,2016 01,Worcestershire County Council,Non Directorate Specific,LA01,Hoobrook Link Road Phase 2,CA40018,HALCROW GROUP LTD,CAPEX Profess & Tech Fees Other Ext Profess Fees,64457,29/04/2016,4101549113,1787.81,,
Expenditure - Over 500,2016 01,Worcestershire County Council,Non Directorate Specific,LA01,Pot Hole Funding - South,CA48482,HALCROW GROUP LTD,CAPEX Profess & Tech Fees Other Ext Profess Fees,64457,29/04/2016,4101549121,1370.73,,
Expenditure - Over 500,2016 01,Worcestershire County Council,Non Directorate Specific,LA01,Worcestershire Gulley Connections,CA48473,HALCROW GROUP LTD,CAPEX Profess & Tech Fees Other Ext Profess Fees,64457,29/04/2016,4101549126,2116.16,,
Expenditure - Over 500,2016 01,Worcestershire County Council,Non Directorate Specific,LA01,"Worcester, Technology Park",CA87904,HALCROW GROUP LTD,CAPEX Profess & Tech Fees Other Ext Profess Fees,64457,29/04/2016,4101549133,11442.38,,
Expenditure - Over 500,2016 01,Worcestershire County Council,Non Directorate Specific,LA01,Hoobrook Link Road Phase 2,CA40018,HALCROW GROUP LTD,CAPEX Profess & Tech Fees Other Ext Profess Fees,64457,29/04/2016,4101549136,15306.28,,
Expenditure - Over 500,2016 01,Worcestershire County Council,Non Directorate Specific,LA01,WTSMSB Southern Link Road Dualling,CA40013,HALCROW GROUP LTD,CAPEX Profess & Tech Fees Other Ext Profess Fees,64457,29/04/2016,4101549141,6318.23,,
Expenditure - Over 500,2016 01,Worcestershire County Council,Non Directorate Specific,LA01,WTSMSB Southern Link Road Dualling,CA40013,HALCROW GROUP LTD,CAPEX Profess & Tech Fees Other Ext Profess Fees,64457,29/04/2016,4101549143,21058.62,,
Expenditure - Over 500,2016 01,Worcestershire County Council,Non Directorate Specific,LA01,WTSMSB Southern Link Road Dualling,CA40013,HALCROW GROUP LTD,CAPEX Profess & Tech Fees Other Ext Profess Fees,64457,29/04/2016,4101549329,45635.98,,
Expenditure - Over 500,2016 01,Worcestershire County Council,Children's Services,CH-PROFIT,Early Years - Other Providers,E21205,GREAT WITLEY PRE-SCHOOL PLAYGROUP,Third Party Pymts 4Yr Old Nursery Education Grant,53657,11/04/2016,7200025308,13680.58,,
Expenditure - Over 500,2016 01,Worcestershire County Council,Adult Services & Health,AC-PROFIT,LT Residential - OP,S35341,GREENHILL PARK RESIDENTIAL CARE HOM,Third Party Payments Purchase of Long Term Care,53667,18/04/2016,7310399012,980.76,,
Expenditure - Over 500,2016 01,Worcestershire County Council,Adult Services & Health,AC-PROFIT,LT Residential - OP,S35341,GREENHILL PARK RESIDENTIAL CARE HOM,Receipts Sales Long Term Residents,67047,18/04/2016,7310399100,1897.18,,
Expenditure - Over 500,2016 01,Worcestershire County Council,Adult Services & Health,AC-PROFIT,LT Residential - OP,S35341,GREENHILL PARK RESIDENTIAL CARE HOM,Receipts Sales Long Term Residents,67047,18/04/2016,7310399158,992.3,,
Expenditure - Over 500,2016 01,Worcestershire County Council,Adult Services & Health,AC-PROFIT,LT Residential - OP,S35341,GREENHILL PARK RESIDENTIAL CARE HOM,Receipts Sales Long Term Residents,67047,18/04/2016,7310399172,817.5,,
Expenditure - Over 500,2016 01,Worcestershire County Council,Children's Services,CH-PROFIT,Early Years - Other Providers,E21205,HAGLEY PRIMARY,Third Party Pymts 4Yr Old Nursery Education Grant,53657,11/04/2016,7200025313,19890.96,,
Expenditure - Over 500,2016 01,Worcestershire County Council,Children's Services,CH-PROFIT,Hagley Catholic High,E10756,HAGLEY R C HIGH SCHOOL FUND,Payments4Schools BA Sch Fund Contribution,83515,05/04/2016,3320007973,10714.12,,
Expenditure - Over 500,2016 01,Worcestershire County Council,Children's Services,CH-PROFIT,Hagley Catholic High,E10756,HAGLEY R C HIGH SCHOOL FUND,Payments4Schools BA Sch Fund Contribution,83515,11/04/2016,3320008194,1130.83,,
Expenditure - Over 500,2016 01,Worcestershire County Council,Non Directorate Specific,LA01,NPRN Bridge Maintenance Countrywide,CA55111,HALCROW GROUP LTD,CAPEX Profess & Tech Fees Other Ext Profess Fees,64457,04/04/2016,4101537458,1443.69,,
Expenditure - Over 500,2016 01,Worcestershire County Council,"Business, Environment & Community",EN-DIR,Highways Status & Extent Team,V17450,HALCROW GROUP LTD,Professional Fees,50031,04/04/2016,4101537808,3740.18,,
Expenditure - Over 500,2016 01,Worcestershire County Council,Non Directorate Specific,LA01,Assess Principal Inspections,CA55011,HALCROW GROUP LTD,CAPEX Profess & Tech Fees Other Ext Profess Fees,64457,04/04/2016,4101537834,1993.83,,
Expenditure - Over 500,2016 01,Worcestershire County Council,Non Directorate Specific,LA01,WTSMSB Key Corridors,CA40014,HALCROW GROUP LTD,CAPEX Profess & Tech Fees Other Ext Profess Fees,64457,07/04/2016,4101537499,7129.5,,
Expenditure - Over 500,2016 01,Worcestershire County Council,Non Directorate Specific,LA01,Hoobrook Link Road Phase 2,CA40018,HALCROW GROUP LTD,CAPEX Profess & Tech Fees Other Ext Profess Fees,64457,07/04/2016,4101542236,946.87,,
Expenditure - Over 500,2016 01,Worcestershire County Council,Non Directorate Specific,LA01,Bromsgrove Package Development,CA62002,HALCROW GROUP LTD,CAPEX Profess & Tech Fees Other Ext Profess Fees,64457,07/04/2016,4101543026,29126.91,,
Expenditure - Over 500,2016 01,Worcestershire County Council,"Business, Environment & Community",EN-PROFIT,WCC Transport Models,V19405,HALCROW GROUP LTD,Professional Fees,50031,07/04/2016,4101543027,3660.5,,
Expenditure - Over 500,2016 01,Worcestershire County Council,"Business, Environment & Community",EN-PROFIT,Transport Planning Overheads,V19400,HALCROW GROUP LTD,Services Counsels Fees- Adult & Community Services,50051,07/04/2016,4101543030,4011.18,,
Expenditure - Over 500,2016 01,Worcestershire County Council,"Business, Environment & Community",EN-PROFIT,Transport Planning Overheads,V19400,HALCROW GROUP LTD,Professional Fees,50031,07/04/2016,4101543040,10671.74,,
Expenditure - Over 500,2016 01,Worcestershire County Council,"Business, Environment & Community",EN-PROFIT,Transport Planning Overheads,V19400,HALCROW GROUP LTD,Professional Fees,50031,07/04/2016,4101543041,16046.83,,
Expenditure - Over 500,2016 01,Worcestershire County Council,"Business, Environment & Community",EN-PROFIT,Transport Planning Overheads,V19400,HALCROW GROUP LTD,Professional Fees,50031,07/04/2016,4101543042,16583.97,,
Expenditure - Over 500,2016 01,Worcestershire County Council,"Business, Environment & Community",EN-PROFIT,Transport Planning Overheads,V19400,HALCROW GROUP LTD,Professional Fees,50031,07/04/2016,4101543043,3000.05,,
Expenditure - Over 500,2016 01,Worcestershire County Council,"Business, Environment & Community",EN-PROFIT,Transport Planning Overheads,V19400,HALCROW GROUP LTD,Professional Fees,50031,07/04/2016,4101543044,4441.94,,
Expenditure - Over 500,2016 01,Worcestershire County Council,"Business, Environment & Community",EN-PROFIT,SLR4,V19408,HALCROW GROUP LTD,Professional Fees,50031,07/04/2016,4101543045,8198.46,,
Expenditure - Over 500,2016 01,Worcestershire County Council,Non Directorate Specific,LA01,WTSMSB Southern Link Road Dualling,CA40013,HALCROW GROUP LTD,CAPEX Profess & Tech Fees Other Ext Profess Fees,64457,07/04/2016,4101543047,47672.14,,
Expenditure - Over 500,2016 01,Worcestershire County Council,Non Directorate Specific,LA01,WTSMSB Southern Link Road Dualling,CA40013,HALCROW GROUP LTD,CAPEX Profess & Tech Fees Other Ext Profess Fees,64457,07/04/2016,4101543048,7279.56,,
Expenditure - Over 500,2016 01,Worcestershire County Council,Non Directorate Specific,LA01,Worcestershire Gulley Connections,CA48473,HALCROW GROUP LTD,CAPEX Profess & Tech Fees Other Ext Profess Fees,64457,07/04/2016,4101543052,5227.07,,
Expenditure - Over 500,2016 01,Worcestershire County Council,"Business, Environment & Community",EN-PROFIT,S278 / 38 Milestone Payments,V16308,HALCROW GROUP LTD,Professional Fees,50031,07/04/2016,4101543053,4535.2,,
Expenditure - Over 500,2016 01,Worcestershire County Council,Non Directorate Specific,LA01,Pot Hole Funding - South,CA48482,HALCROW GROUP LTD,CAPEX Profess & Tech Fees Other Ext Profess Fees,64457,07/04/2016,4101543054,4722.55,,
Expenditure - Over 500,2016 01,Worcestershire County Council,"Business, Environment & Community",EN-PROFIT,WCC Transport Models,V19405,HALCROW GROUP LTD,Consultants Fees,50030,07/04/2016,4101543055,16497.77,,
Expenditure - Over 500,2016 01,Worcestershire County Council,"Business, Environment & Community",EN-PROFIT,WCC Transport Models,V19405,HALCROW GROUP LTD,Consultants Fees,50030,07/04/2016,4101543056,1667.14,,
Expenditure - Over 500,2016 01,Worcestershire County Council,Non Directorate Specific,LA01,WTSMSB Key Corridors,CA40014,HALCROW GROUP LTD,CAPEX Profess & Tech Fees Other Ext Profess Fees,64457,07/04/2016,4101543059,3746.1,,
Expenditure - Over 500,2016 01,Worcestershire County Council,"Business, Environment & Community",EN-PROFIT,SLR4,V19408,HALCROW GROUP LTD,Professional Fees,50031,29/04/2016,4101549344,12491.99,,
Expenditure - Over 500,2016 01,Worcestershire County Council,"Business, Environment & Community",EN-PROFIT,Transport Planning Overheads,V19400,HALCROW GROUP LTD,Professional Fees,50031,29/04/2016,4101549371,532.51,,
Expenditure - Over 500,2016 01,Worcestershire County Council,"Business, Environment & Community",EN-PROFIT,Transport Planning Overheads,V19400,HALCROW GROUP LTD,Professional Fees,50031,29/04/2016,4101549398,1306.98,,
Expenditure - Over 500,2016 01,Worcestershire County Council,"Business, Environment & Community",EN-PROFIT,Transport Planning Overheads,V19400,HALCROW GROUP LTD,Services Counsels Fees- Adult & Community Services,50051,29/04/2016,4101549438,716.63,,
Expenditure - Over 500,2016 01,Worcestershire County Council,Non Directorate Specific,LA01,Bromsgrove Package Development,CA62002,HALCROW GROUP LTD,CAPEX Profess & Tech Fees Other Ext Profess Fees,64457,29/04/2016,4101549459,6775.04,,
Expenditure - Over 500,2016 01,Worcestershire County Council,"Business, Environment & Community",EN-PROFIT,WCC Transport Models,V19405,HALCROW GROUP LTD,Professional Fees,50031,29/04/2016,4101549463,1787.47,,
Expenditure - Over 500,2016 01,Worcestershire County Council,"Business, Environment & Community",EN-PROFIT,Transport Planning Overheads,V19400,HALCROW GROUP LTD,Professional Fees,50031,29/04/2016,4101549468,3794.2,,
Expenditure - Over 500,2016 01,Worcestershire County Council,"Business, Environment & Community",EN-PROFIT,Transport Planning Overheads,V19400,HALCROW GROUP LTD,Professional Fees,50031,29/04/2016,4101549473,7404.99,,
Expenditure - Over 500,2016 01,Worcestershire County Council,"Business, Environment & Community",EN-PROFIT,Transport Planning Overheads,V19400,HALCROW GROUP LTD,Professional Fees,50031,29/04/2016,4101549475,4268.42,,
Expenditure - Over 500,2016 01,Worcestershire County Council,Non Directorate Specific,LA01,Bromsgrove Package Development,CA62002,HALCROW GROUP LTD,CAPEX Profess & Tech Fees Other Ext Profess Fees,64457,29/04/2016,4101549480,-4900.84,,
Expenditure - Over 500,2016 01,Worcestershire County Council,Non Directorate Specific,LA01,Assess Principal Inspections,CA55011,HALCROW GROUP LTD,CAPEX Profess & Tech Fees Other Ext Profess Fees,64457,11/04/2016,4101543028,2441.29,,
Expenditure - Over 500,2016 01,Worcestershire County Council,"Business, Environment & Community",EN-DIR,Highways Status & Extent Team,V17450,HALCROW GROUP LTD,Professional Fees,50031,11/04/2016,4101543049,2298.37,,
Expenditure - Over 500,2016 01,Worcestershire County Council,Non Directorate Specific,LA01,Hoobrook Link Road Phase 2,CA40018,HALCROW GROUP LTD,CAPEX Profess & Tech Fees Other Ext Profess Fees,64457,11/04/2016,4101543057,4238.24,,
Expenditure - Over 500,2016 01,Worcestershire County Council,Non Directorate Specific,LA01,Hoobrook Link Road Phase 2,CA40018,HALCROW GROUP LTD,CAPEX Profess & Tech Fees Other Ext Profess Fees,64457,11/04/2016,4101543066,1427.36,,
Expenditure - Over 500,2016 01,Worcestershire County Council,"Business, Environment & Community",EN-PROFIT,Principal inspections & Structural Inv,V17351,HALCROW GROUP LTD,Consultants Fees,50030,11/04/2016,4101543081,1193.03,,
Expenditure - Over 500,2016 01,Worcestershire County Council,Non Directorate Specific,LA01,NPRN Bridge Maintenance Countrywide,CA55111,HALCROW GROUP LTD,CAPEX Profess & Tech Fees Other Ext Profess Fees,64457,11/04/2016,4101543087,568.23,,
Expenditure - Over 500,2016 01,Worcestershire County Council,Non Directorate Specific,LA01,"Evesham, Bengeworth - 3 FE",CA00034,HALCROW GROUP LTD,CAPEX Construction Costs Main Contractor,64951,25/04/2016,7140092683,826.59,,
Expenditure - Over 500,2016 01,Worcestershire County Council,Non Directorate Specific,LA01,"Eve, St Andrews - Extension",CA36458,HALCROW GROUP LTD,CAPEX Planning Supervisor,64482,25/04/2016,7140092685,678.21,,
Expenditure - Over 500,2016 01,Worcestershire County Council,Non Directorate Specific,LA01,Evesham St Egwins  - Mobile replacement,CA38619,HALCROW GROUP LTD,CAPEX Planning Supervisor,64482,25/04/2016,7140092686,538.39,,
Expenditure - Over 500,2016 01,Worcestershire County Council,"Business, Environment & Community",EN-PROFIT,Principal inspections & Structural Inv,V17351,HALCROW GROUP LTD,Consultants Fees,50030,29/04/2016,4101548956,1107.18,,
Expenditure - Over 500,2016 01,Worcestershire County Council,"Business, Environment & Community",EN-PROFIT,WCC Transport Models,V19405,HALCROW GROUP LTD,Consultants Fees,50030,29/04/2016,4101548975,6926.16,,
Expenditure - Over 500,2016 01,Worcestershire County Council,Non Directorate Specific,LA01,WTSMSB Key Corridors,CA40014,HALCROW GROUP LTD,CAPEX Profess & Tech Fees Other Ext Profess Fees,64457,29/04/2016,4101548984,539.53,,
Expenditure - Over 500,2016 01,Worcestershire County Council,"Business, Environment & Community",EN-PROFIT,SLR4,V19408,HALCROW GROUP LTD,Consultants Fees,50030,29/04/2016,4101548992,465.13,,
Expenditure - Over 500,2016 01,Worcestershire County Council,Non Directorate Specific,LA01,Worcestershire Parkway,CA60779,HALCROW GROUP LTD,CAPEX Profess & Tech Fees Other Ext Profess Fees,64457,29/04/2016,4101548997,7794.35,,
Expenditure - Over 500,2016 01,Worcestershire County Council,"Business, Environment & Community",EN-PROFIT,Parish Lengthsman Scheme,V16101,HANLEY CASTLE PARISH COUNCIL,Third Party Payments Private Contractors,53974,25/04/2016,4101546236,1473.78,,
Expenditure - Over 500,2016 01,Worcestershire County Council,Children's Services,CH-PROFIT,Early Years - Other Providers,E21205,HANLEY SWAN PRE-SCHOOL PLAYGROUP,Third Party Pymts 4Yr Old Nursery Education Grant,53657,11/04/2016,7200025316,7853.66,,
Expenditure - Over 500,2016 01,Worcestershire County Council,"Business, Environment & Community",EN-DIR,Local Bus WCC Services,V21020,HANSONS (WORDSLEY) LIMITED,Third Party Pymnts Other Hired & Contracted Servs,53986,04/04/2016,7190129092,4815.14,,
Expenditure - Over 500,2016 01,Worcestershire County Council,"Business, Environment & Community",EN-DIR,Concessionary Fares Administration,V21015,HANSONS (WORDSLEY) LIMITED,Third Party Pymnts Public Transport Operators,54005,18/04/2016,7190129842,1955.26,,
Expenditure - Over 500,2016 01,Worcestershire County Council,Children's Services,CH-PROFIT,Early Years - Other Providers,E21205,HAPPY DAYS PLAYGROUP,Third Party Pymts 4Yr Old Nursery Education Grant,53657,11/04/2016,7200025317,17721.34,,
Expenditure - Over 500,2016 01,Worcestershire County Council,Adult Services & Health,AC-PROFIT,LT Residential - OP,S35341,GRANGE HILL HOUSE RESIDENTIAL CARE,Third Party Payments Purchase of Long Term Care,53667,18/04/2016,7310398414,3270.86,,
Expenditure - Over 500,2016 01,Worcestershire County Council,Adult Services & Health,AC-PROFIT,ST Residential - OP,S35343,GRANGE HILL HOUSE RESIDENTIAL CARE,TPP Purchase of Planned Replacement Care,53666,18/04/2016,7310398606,-714.86,,
Expenditure - Over 500,2016 01,Worcestershire County Council,Adult Services & Health,AC-PROFIT,ST Residential - OP,S35343,GRANGE HILL HOUSE RESIDENTIAL CARE,TPP Purchase of Planned Replacement Care,53666,18/04/2016,7310398622,-3931.72,,
Expenditure - Over 500,2016 01,Worcestershire County Council,Adult Services & Health,AC-PROFIT,12-Week Disregard,S35308,GRANGE HILL HOUSE RESIDENTIAL CARE,Third Party Payments Purchase of Long Term Care,53667,18/04/2016,7310398634,1521.2,,
Expenditure - Over 500,2016 01,Worcestershire County Council,Adult Services & Health,AC-PROFIT,LT Residential - OP,S35341,GRANGE HILL HOUSE RESIDENTIAL CARE,Third Party Payments Purchase of Long Term Care,53667,18/04/2016,7310398694,12420.91,,
Expenditure - Over 500,2016 01,Worcestershire County Council,"Business, Environment & Community",EN-PROFIT,S278 / 38 Milestone Payments,V16308,HALCROW GROUP LTD,Professional Fees,50031,05/04/2016,4101507135,1366.46,,
Expenditure - Over 500,2016 01,Worcestershire County Council,Non Directorate Specific,LA01,Worcestershire Parkway,CA60779,HALCROW GROUP LTD,CAPEX Profess & Tech Fees Other Ext Profess Fees,64457,07/04/2016,4101543060,17879.21,,
Expenditure - Over 500,2016 01,Worcestershire County Council,Non Directorate Specific,LA01,WTSMSB Key Corridors,CA40014,HALCROW GROUP LTD,CAPEX Profess & Tech Fees Other Ext Profess Fees,64457,07/04/2016,4101543061,836.35,,
Expenditure - Over 500,2016 01,Worcestershire County Council,Non Directorate Specific,LA01,WTSMSB Real Time Information Syatems,CA40015,HALCROW GROUP LTD,CAPEX Profess & Tech Fees Other Ext Profess Fees,64457,07/04/2016,4101543062,4715.01,,
Expenditure - Over 500,2016 01,Worcestershire County Council,Non Directorate Specific,LA01,Worcester Intergrated Strategy,CA60781,HALCROW GROUP LTD,CAPEX Profess & Tech Fees Other Ext Profess Fees,64457,07/04/2016,4101543063,916.79,,
Expenditure - Over 500,2016 01,Worcestershire County Council,Non Directorate Specific,LA01,Kidderminster Transport Strategy,CA60778,HALCROW GROUP LTD,CAPEX Profess & Tech Fees Other Ext Profess Fees,64457,07/04/2016,4101543064,777.76,,
Expenditure - Over 500,2016 01,Worcestershire County Council,"Business, Environment & Community",EN-PROFIT,Transport Planning Overheads,V19400,HALCROW GROUP LTD,Professional Fees,50031,07/04/2016,4101543067,505.25,,
Expenditure - Over 500,2016 01,Worcestershire County Council,Non Directorate Specific,LA01,WTSMSB Key Corridors,CA40014,HALCROW GROUP LTD,CAPEX Profess & Tech Fees Other Ext Profess Fees,64457,07/04/2016,4101543069,1178.55,,
Expenditure - Over 500,2016 01,Worcestershire County Council,Non Directorate Specific,LA01,Cathedral Plaza,CA60849,HALCROW GROUP LTD,CAPEX Profess & Tech Fees Other Ext Profess Fees,64457,07/04/2016,4101543070,811.32,,
Expenditure - Over 500,2016 01,Worcestershire County Council,"Business, Environment & Community",EN-PROFIT,Transport Planning Overheads,V19400,HALCROW GROUP LTD,Consultants Fees,50030,07/04/2016,4101543074,459.78,,
Expenditure - Over 500,2016 01,Worcestershire County Council,"Business, Environment & Community",EN-PROFIT,S278 / 38 Milestone Payments,V16308,HALCROW GROUP LTD,Professional Fees,50031,07/04/2016,4101543080,811.97,,
Expenditure - Over 500,2016 01,Worcestershire County Council,"Business, Environment & Community",EN-PROFIT,S278 / 38 Milestone Payments,V16308,HALCROW GROUP LTD,Professional Fees,50031,07/04/2016,4101543084,2204.13,,
Expenditure - Over 500,2016 01,Worcestershire County Council,"Business, Environment & Community",EN-PROFIT,Development Control S278/38 Team,V16300,HALCROW GROUP LTD,Professional Fees,50031,07/04/2016,4101543085,2668.9,,
Expenditure - Over 500,2016 01,Worcestershire County Council,Non Directorate Specific,LA01,NPRN Bridge Maintenance Countrywide,CA55111,HALCROW GROUP LTD,CAPEX Profess & Tech Fees Other Ext Profess Fees,64457,07/04/2016,4101543089,1569.28,,
Expenditure - Over 500,2016 01,Worcestershire County Council,"Business, Environment & Community",EN-PROFIT,Principal inspections & Structural Inv,V17351,HALCROW GROUP LTD,Professional Fees,50031,07/04/2016,4101543090,16761.75,,
Expenditure - Over 500,2016 01,Worcestershire County Council,Adult Services & Health,AC-PROFIT,Domiciliary Block - PD,S33422,HEADWAY WORCESTERSHIRE,Third Party Payments Dom Care Frm Independent Prov,53669,04/04/2016,7320477197,1932,,
Expenditure - Over 500,2016 01,Worcestershire County Council,Adult Services & Health,AC-PROFIT,LT Residential - OP,S35341,HAVEN HOME FOR THE ELDERLY,Third Party Payments Purchase of Long Term Care,53667,18/04/2016,7310398370,1714.7,,
Expenditure - Over 500,2016 01,Worcestershire County Council,Adult Services & Health,AC-PROFIT,LT Residential - OP,S35341,HAVEN HOME FOR THE ELDERLY,Third Party Payments Purchase of Long Term Care,53667,18/04/2016,7310398382,1332.2,,
Expenditure - Over 500,2016 01,Worcestershire County Council,Adult Services & Health,AC-PROFIT,Property Charge Temporary Code,S35398,HAVEN HOME FOR THE ELDERLY,Receipts Sales Long Term Residents,67047,18/04/2016,7310398390,1776.96,,
Expenditure - Over 500,2016 01,Worcestershire County Council,Adult Services & Health,AC-PROFIT,LT Residential - OP,S35341,HAVEN HOME FOR THE ELDERLY,Receipts Sales Long Term Residents,67047,18/04/2016,7310398448,1236.74,,
Expenditure - Over 500,2016 01,Worcestershire County Council,Adult Services & Health,AC-PROFIT,Property Charge Temporary Code,S35398,HAVEN HOME FOR THE ELDERLY,Third Party Payments Purchase of Long Term Care,53667,18/04/2016,7310398508,1780.26,,
Expenditure - Over 500,2016 01,Worcestershire County Council,Adult Services & Health,AC-PROFIT,COP Property Temporary Code,S35397,HAVEN HOME FOR THE ELDERLY,Third Party Payments Purchase of Long Term Care,53667,18/04/2016,7310398546,2687.42,,
Expenditure - Over 500,2016 01,Worcestershire County Council,Adult Services & Health,AC-PROFIT,ST Residential - OP,S35343,HAVEN HOME FOR THE ELDERLY,TPP Purchase of Planned Replacement Care,53666,18/04/2016,7310398680,1668,,
Expenditure - Over 500,2016 01,Worcestershire County Council,Adult Services & Health,AC-PROFIT,Domiciliary Block - PD,S33422,HEADWAY WORCESTERSHIRE,Third Party Payments Dom Care Frm Independent Prov,53669,04/04/2016,7320477264,1932,,
Expenditure - Over 500,2016 01,Worcestershire County Council,Resources,CS-PROFIT,COaCH Finance,C40031,HAYS SPECIALIST RECRUITMENT LTD,Services Bureau,50050,11/04/2016,4101541073,686.4,,
Expenditure - Over 500,2016 01,Worcestershire County Council,Resources,CS-PROFIT,COaCH Finance,C40031,HAYS SPECIALIST RECRUITMENT LTD,Services Bureau,50050,11/04/2016,4101542947,657.8,,
Expenditure - Over 500,2016 01,Worcestershire County Council,Resources,CS-PROFIT,COaCH Finance,C40031,HAYS SPECIALIST RECRUITMENT LTD,Services Bureau,50050,14/04/2016,4101543773,443.3,,
Expenditure - Over 500,2016 01,Worcestershire County Council,Resources,CS-PROFIT,COaCH Finance,C40031,HAYS SPECIALIST RECRUITMENT LTD,Services Bureau,50050,25/04/2016,4101545606,886.6,,
Expenditure - Over 500,2016 01,Worcestershire County Council,Resources,CS-PROFIT,COaCH Finance,C40031,HAYS SPECIALIST RECRUITMENT LTD,Services Bureau,50050,29/04/2016,4101548239,815.1,,
Expenditure - Over 500,2016 01,Worcestershire County Council,Adult Services & Health,AC-PROFIT,Day Care - OP,S33434,HEADWAY (WEST MIDLANDS) LTD,Third Party Payments Day Care Frm Independent Prov,53668,18/04/2016,7320480719,599.76,,
Expenditure - Over 500,2016 01,Worcestershire County Council,Adult Services & Health,AC-PROFIT,Day Care - OP,S33434,HEADWAY (WEST MIDLANDS) LTD,Third Party Payments Day Care Frm Independent Prov,53668,28/04/2016,7320484142,599.76,,
Expenditure - Over 500,2016 01,Worcestershire County Council,Adult Services & Health,AC-PROFIT,Domiciliary Block - PD,S33422,HEADWAY WORCESTERSHIRE,Third Party Payments Dom Care Frm Independent Prov,53669,11/04/2016,7320480093,1932,,
Expenditure - Over 500,2016 01,Worcestershire County Council,Adult Services & Health,AC-PROFIT,LT Nursing - OP,S35342,HAVENCROFT NURSING HOME,Third Party Payments Purchase of Long Term Care,53667,18/04/2016,7310398434,1147.24,,
Expenditure - Over 500,2016 01,Worcestershire County Council,Adult Services & Health,AC-PROFIT,LT Nursing - OP,S35342,HAVENCROFT NURSING HOME,Third Party Payments Purchase of Long Term Care,53667,18/04/2016,7310398464,1206.56,,
Expenditure - Over 500,2016 01,Worcestershire County Council,Adult Services & Health,AC-PROFIT,LT Nursing - OP,S35342,HAVENCROFT NURSING HOME,Third Party Payments Purchase of Long Term Care,53667,18/04/2016,7310398592,-536.67,,
Expenditure - Over 500,2016 01,Worcestershire County Council,Adult Services & Health,AC-PROFIT,LT Nursing - OP,S35342,HAVENCROFT NURSING HOME,Receipts Sales Long Term Residents,67047,18/04/2016,7310398602,947.8,,
Expenditure - Over 500,2016 01,Worcestershire County Council,Adult Services & Health,AC-PROFIT,LT Nursing - OP,S35342,HAVENCROFT NURSING HOME,Receipts Sales Long Term Residents,67047,18/04/2016,7310398630,1125.14,,
Expenditure - Over 500,2016 01,Worcestershire County Council,Adult Services & Health,AC-PROFIT,LT Nursing - OP,S35342,HAVENCROFT NURSING HOME,Receipts Sales Long Term Residents,67047,18/04/2016,7310398632,1620.42,,
Expenditure - Over 500,2016 01,Worcestershire County Council,Adult Services & Health,AC-PROFIT,LT Nursing - OP,S35342,HAVENCROFT NURSING HOME,Third Party Payments Purchase of Long Term Care,53667,18/04/2016,7310398656,1746.98,,
Expenditure - Over 500,2016 01,Worcestershire County Council,Adult Services & Health,AC-PROFIT,LD Day Care External North,S35555,HEADWAY WORCESTERSHIRE,Third Party Payments Day Care Frm Independent Prov,53668,18/04/2016,7320481342,1200,,
Expenditure - Over 500,2016 01,Worcestershire County Council,Adult Services & Health,AC-PROFIT,Day Care - OP,S33434,HEADWAY WORCESTERSHIRE,Third Party Payments Day Care Frm Independent Prov,53668,18/04/2016,7320481343,600,,
Expenditure - Over 500,2016 01,Worcestershire County Council,Adult Services & Health,AC-PROFIT,Adults Housing Related Support,S42082,HEADWAY WORCESTERSHIRE,Third Party Payments External Provider,54044,19/04/2016,4101545245,12500,,
Expenditure - Over 500,2016 01,Worcestershire County Council,Adult Services & Health,AC-PROFIT,Domiciliary Block - PD,S33422,HEADWAY WORCESTERSHIRE,Third Party Payments Dom Care Frm Independent Prov,53669,25/04/2016,7320482907,1932,,
Expenditure - Over 500,2016 01,Worcestershire County Council,Adult Services & Health,AC-PROFIT,Domiciliary Block - PD,S33422,HEADWAY WORCESTERSHIRE,Third Party Payments Dom Care Frm Independent Prov,53669,25/04/2016,7320482908,1932,,
Expenditure - Over 500,2016 01,Worcestershire County Council,Adult Services & Health,AC-PROFIT,Domiciliary Block - PD,S33422,HEADWAY WORCESTERSHIRE,Third Party Payments Dom Care Frm Independent Prov,53669,25/04/2016,7320482909,1932,,
Expenditure - Over 500,2016 01,Worcestershire County Council,Adult Services & Health,AC-PROFIT,Domiciliary Spot - OP,S33414,HELPING HANDS HOME CARE,Third Party Payments Dom Care Frm Independent Prov,53669,25/04/2016,7320483105,877.8,,
Expenditure - Over 500,2016 01,Worcestershire County Council,Adult Services & Health,AC-PROFIT,Domiciliary Spot - OP,S33414,HELPING HANDS HOME CARE,Third Party Payments Dom Care Frm Independent Prov,53669,25/04/2016,7320483107,547.6,,
Expenditure - Over 500,2016 01,Worcestershire County Council,Adult Services & Health,AC-PROFIT,Domiciliary Spot - OP,S33414,HELPING HANDS HOME CARE,Third Party Payments Dom Care Frm Independent Prov,53669,25/04/2016,7320483108,1775.2,,
Expenditure - Over 500,2016 01,Worcestershire County Council,Adult Services & Health,AC-PROFIT,Domiciliary Spot - OP,S33414,HELPING HANDS HOME CARE,Third Party Payments Dom Care Frm Independent Prov,53669,25/04/2016,7320483109,1810.4,,
Expenditure - Over 500,2016 01,Worcestershire County Council,Adult Services & Health,AC-PROFIT,Domiciliary Spot - PD,S33412,HELPING HANDS HOME CARE,Third Party Payments Dom Care Frm Independent Prov,53669,28/04/2016,7320484751,1395.62,,
Expenditure - Over 500,2016 01,Worcestershire County Council,Adult Services & Health,AC-PROFIT,Domiciliary Spot - PD,S33412,HELPING HANDS HOME CARE,Third Party Payments Dom Care Frm Independent Prov,53669,28/04/2016,7320484752,1432.17,,
Expenditure - Over 500,2016 01,Worcestershire County Council,Adult Services & Health,AC-PROFIT,Domiciliary Spot - PD,S33412,HELPING HANDS HOME CARE,Third Party Payments Dom Care Frm Independent Prov,53669,28/04/2016,7320484753,2410.52,,
Expenditure - Over 500,2016 01,Worcestershire County Council,Adult Services & Health,AC-PROFIT,Domiciliary Spot - OP,S33414,HELPING HANDS HOME CARE,Third Party Payments Dom Care Frm Independent Prov,53669,28/04/2016,7320484645,938,,
Expenditure - Over 500,2016 01,Worcestershire County Council,Adult Services & Health,AC-PROFIT,Domiciliary Spot - OP,S33414,HELPING HANDS HOME CARE,Third Party Payments Dom Care Frm Independent Prov,53669,28/04/2016,7320484646,630,,
Expenditure - Over 500,2016 01,Worcestershire County Council,Children's Services,CH-PROFIT,Early Years - Other Providers,E21205,HEATHFIELD EDUCATIONAL TRUST,Third Party Pymts 4Yr Old Nursery Education Grant,53657,11/04/2016,7200025323,11990.16,,
Expenditure - Over 500,2016 01,Worcestershire County Council,Children's Services,CH-PROFIT,Early Years - Other Providers,E21205,HEATHFIELD EDUCATIONAL TRUST,Third Party Pymts 4Yr Old Nursery Education Grant,53657,11/04/2016,7200025324,1692.6,,
Expenditure - Over 500,2016 01,Worcestershire County Council,Adult Services & Health,AC-PROFIT,Domiciliary Spot - PD,S33412,HELPING HANDS HOME CARE,Third Party Payments Dom Care Frm Independent Prov,53669,04/04/2016,7320477717,2410.52,,
Expenditure - Over 500,2016 01,Worcestershire County Council,Adult Services & Health,AC-PROFIT,Domiciliary Spot - OP,S33414,HELPING HANDS HOME CARE,Third Party Payments Dom Care Frm Independent Prov,53669,04/04/2016,7320477713,835.4,,
Expenditure - Over 500,2016 01,Worcestershire County Council,Adult Services & Health,AC-PROFIT,Domiciliary Spot - OP,S33414,HELPING HANDS HOME CARE,Third Party Payments Dom Care Frm Independent Prov,53669,04/04/2016,7320477714,518,,
Expenditure - Over 500,2016 01,Worcestershire County Council,Adult Services & Health,AC-PROFIT,Domiciliary Spot - OP,S33414,HELPING HANDS HOME CARE,Third Party Payments Dom Care Frm Independent Prov,53669,04/04/2016,7320477718,1020.2,,
Expenditure - Over 500,2016 01,Worcestershire County Council,Adult Services & Health,AC-PROFIT,Domiciliary Spot - OP,S33414,HELPING HANDS HOME CARE,Third Party Payments Dom Care Frm Independent Prov,53669,04/04/2016,7320477719,966.4,,
Expenditure - Over 500,2016 01,Worcestershire County Council,Adult Services & Health,AC-PROFIT,Domiciliary Spot - OP,S33414,HELPING HANDS HOME CARE,Third Party Payments Dom Care Frm Independent Prov,53669,04/04/2016,7320477720,1521.9,,
Expenditure - Over 500,2016 01,Worcestershire County Council,Adult Services & Health,AC-PROFIT,Domiciliary Spot - PD,S33412,HELPING HANDS HOME CARE,Third Party Payments Dom Care Frm Independent Prov,53669,04/04/2016,7320477723,745,,
Expenditure - Over 500,2016 01,Worcestershire County Council,Adult Services & Health,AC-PROFIT,Domiciliary Spot - OP,S33414,HELPING HANDS HOME CARE,Third Party Payments Dom Care Frm Independent Prov,53669,04/04/2016,7320477728,946.4,,
Expenditure - Over 500,2016 01,Worcestershire County Council,Adult Services & Health,AC-PROFIT,Domiciliary Spot - OP,S33414,HELPING HANDS HOME CARE,Third Party Payments Dom Care Frm Independent Prov,53669,04/04/2016,7320477747,630,,
Expenditure - Over 500,2016 01,Worcestershire County Council,Adult Services & Health,AC-PROFIT,Domiciliary Spot - OP,S33414,HELPING HANDS HOME CARE,Third Party Payments Dom Care Frm Independent Prov,53669,04/04/2016,7320477749,908,,
Expenditure - Over 500,2016 01,Worcestershire County Council,Adult Services & Health,AC-PROFIT,Domiciliary Block - OP,S33424,HELPING HANDS HOME CARE,Third Party Payments Dom Care Frm Independent Prov,53669,04/04/2016,7370064531,702.52,,
Expenditure - Over 500,2016 01,Worcestershire County Council,Adult Services & Health,AC-PROFIT,Domiciliary Block - OP,S33424,HELPING HANDS HOME CARE,Third Party Payments Dom Care Frm Independent Prov,53669,04/04/2016,7370064532,1485.46,,
Expenditure - Over 500,2016 01,Worcestershire County Council,Adult Services & Health,AC-PROFIT,Domiciliary Spot - OP,S33414,HELPING HANDS HOME CARE,Third Party Payments Dom Care Frm Independent Prov,53669,28/04/2016,7320484647,575.6,,
Expenditure - Over 500,2016 01,Worcestershire County Council,Adult Services & Health,AC-PROFIT,Domiciliary Spot - OP,S33414,HELPING HANDS HOME CARE,Third Party Payments Dom Care Frm Independent Prov,53669,28/04/2016,7320484658,673.96,,
Expenditure - Over 500,2016 01,Worcestershire County Council,Adult Services & Health,AC-PROFIT,Domiciliary Spot - PD,S33412,HELPING HANDS HOME CARE,Third Party Payments Dom Care Frm Independent Prov,53669,28/04/2016,7320484659,1034.46,,
Expenditure - Over 500,2016 01,Worcestershire County Council,Adult Services & Health,AC-PROFIT,Domiciliary Spot - OP,S33414,HELPING HANDS HOME CARE,Third Party Payments Dom Care Frm Independent Prov,53669,28/04/2016,7320484662,1012.2,,
Expenditure - Over 500,2016 01,Worcestershire County Council,Adult Services & Health,AC-PROFIT,Domiciliary Spot - OP,S33414,HELPING HANDS HOME CARE,Third Party Payments Dom Care Frm Independent Prov,53669,28/04/2016,7320484664,1765.12,,
Expenditure - Over 500,2016 01,Worcestershire County Council,Adult Services & Health,AC-PROFIT,Domiciliary Spot - OP,S33414,HELPING HANDS HOME CARE,Third Party Payments Dom Care Frm Independent Prov,53669,28/04/2016,7320484666,693.68,,
Expenditure - Over 500,2016 01,Worcestershire County Council,Adult Services & Health,AC-PROFIT,Domiciliary Spot - OP,S33414,HELPING HANDS HOME CARE,Third Party Payments Dom Care Frm Independent Prov,53669,25/04/2016,7320483103,887.6,,
Expenditure - Over 500,2016 01,Worcestershire County Council,Adult Services & Health,AC-PROFIT,Domiciliary Spot - OP,S33414,HELPING HANDS HOME CARE,Third Party Payments Dom Care Frm Independent Prov,53669,25/04/2016,7320483121,643.2,,
Expenditure - Over 500,2016 01,Worcestershire County Council,Adult Services & Health,AC-PROFIT,Domiciliary Spot - OP,S33414,HELPING HANDS HOME CARE,Third Party Payments Dom Care Frm Independent Prov,53669,25/04/2016,7320483123,872.2,,
Expenditure - Over 500,2016 01,Worcestershire County Council,Adult Services & Health,AC-PROFIT,Domiciliary Spot - OP,S33414,HELPING HANDS HOME CARE,Third Party Payments Dom Care Frm Independent Prov,53669,25/04/2016,7320483153,799.3,,
Expenditure - Over 500,2016 01,Worcestershire County Council,Adult Services & Health,AC-PROFIT,Domiciliary Spot - OP,S33414,HELPING HANDS HOME CARE,Third Party Payments Dom Care Frm Independent Prov,53669,25/04/2016,7320483154,644,,
Expenditure - Over 500,2016 01,Worcestershire County Council,Adult Services & Health,AC-PROFIT,Domiciliary Spot - OP,S33414,HELPING HANDS HOME CARE,Third Party Payments Dom Care Frm Independent Prov,53669,25/04/2016,7320483157,898.8,,
Expenditure - Over 500,2016 01,Worcestershire County Council,Adult Services & Health,AC-PROFIT,Domiciliary Spot - OP,S33414,HELPING HANDS HOME CARE,Third Party Payments Dom Care Frm Independent Prov,53669,25/04/2016,7320483159,614.1,,
Expenditure - Over 500,2016 01,Worcestershire County Council,Adult Services & Health,AC-PROFIT,Domiciliary Spot - OP,S33414,HELPING HANDS HOME CARE,Third Party Payments Dom Care Frm Independent Prov,53669,25/04/2016,7320483160,1066.8,,
Expenditure - Over 500,2016 01,Worcestershire County Council,Adult Services & Health,AC-PROFIT,Domiciliary Spot - OP,S33414,HELPING HANDS HOME CARE,Third Party Payments Dom Care Frm Independent Prov,53669,25/04/2016,7320483161,773.9,,
Expenditure - Over 500,2016 01,Worcestershire County Council,Adult Services & Health,AC-PROFIT,Domiciliary Spot - OP,S33414,HELPING HANDS HOME CARE,Third Party Payments Dom Care Frm Independent Prov,53669,25/04/2016,7320483162,817.6,,
Expenditure - Over 500,2016 01,Worcestershire County Council,Adult Services & Health,AC-PROFIT,Domiciliary Spot - OP,S33414,HELPING HANDS HOME CARE,Third Party Payments Dom Care Frm Independent Prov,53669,25/04/2016,7320483163,898.8,,
Expenditure - Over 500,2016 01,Worcestershire County Council,Adult Services & Health,AC-PROFIT,Domiciliary Spot - PD,S33412,HELPING HANDS HOME CARE,Third Party Payments Dom Care Frm Independent Prov,53669,25/04/2016,7320483166,1069.8,,
Expenditure - Over 500,2016 01,Worcestershire County Council,Adult Services & Health,AC-PROFIT,Domiciliary Spot - OP,S33414,HELPING HANDS HOME CARE,Third Party Payments Dom Care Frm Independent Prov,53669,25/04/2016,7320483167,1117.06,,
Expenditure - Over 500,2016 01,Worcestershire County Council,Adult Services & Health,AC-PROFIT,Domiciliary Spot - OP,S33414,HELPING HANDS HOME CARE,Third Party Payments Dom Care Frm Independent Prov,53669,25/04/2016,7320483168,972,,
Expenditure - Over 500,2016 01,Worcestershire County Council,Adult Services & Health,AC-PROFIT,Domiciliary Spot - OP,S33414,HELPING HANDS HOME CARE,Third Party Payments Dom Care Frm Independent Prov,53669,25/04/2016,7320483170,1954.7,,
Expenditure - Over 500,2016 01,Worcestershire County Council,Adult Services & Health,AC-PROFIT,Domiciliary Spot - OP,S33414,HELPING HANDS HOME CARE,Third Party Payments Dom Care Frm Independent Prov,53669,25/04/2016,7320483171,703.4,,
Expenditure - Over 500,2016 01,Worcestershire County Council,Adult Services & Health,AC-PROFIT,Domiciliary Spot - OP,S33414,HELPING HANDS HOME CARE,Third Party Payments Dom Care Frm Independent Prov,53669,25/04/2016,7320483175,722.7,,
Expenditure - Over 500,2016 01,Worcestershire County Council,Adult Services & Health,AC-PROFIT,Domiciliary Spot - OP,S33414,HELPING HANDS HOME CARE,Third Party Payments Dom Care Frm Independent Prov,53669,25/04/2016,7320483177,859.5,,
Expenditure - Over 500,2016 01,Worcestershire County Council,Adult Services & Health,AC-PROFIT,Domiciliary Spot - PD,S33412,HELPING HANDS HOME CARE,Third Party Payments Dom Care Frm Independent Prov,53669,25/04/2016,7320483179,518,,
Expenditure - Over 500,2016 01,Worcestershire County Council,Adult Services & Health,AC-PROFIT,Domiciliary Spot - OP,S33414,HELPING HANDS HOME CARE,Third Party Payments Dom Care Frm Independent Prov,53669,25/04/2016,7320483181,709.7,,
Expenditure - Over 500,2016 01,Worcestershire County Council,Adult Services & Health,AC-PROFIT,Domiciliary Spot - OP,S33414,HELPING HANDS HOME CARE,Third Party Payments Dom Care Frm Independent Prov,53669,25/04/2016,7320483182,620.1,,
Expenditure - Over 500,2016 01,Worcestershire County Council,Adult Services & Health,AC-PROFIT,Domiciliary Spot - OP,S33414,HELPING HANDS HOME CARE,Third Party Payments Dom Care Frm Independent Prov,53669,25/04/2016,7320483183,938,,
Expenditure - Over 500,2016 01,Worcestershire County Council,Adult Services & Health,AC-PROFIT,Domiciliary Spot - OP,S33414,HELPING HANDS HOME CARE,Third Party Payments Dom Care Frm Independent Prov,53669,25/04/2016,7320483184,1033.2,,
Expenditure - Over 500,2016 01,Worcestershire County Council,Adult Services & Health,AC-PROFIT,Domiciliary Spot - PD,S33412,HELPING HANDS HOME CARE,Third Party Payments Dom Care Frm Independent Prov,53669,25/04/2016,7320483197,758.5,,
Expenditure - Over 500,2016 01,Worcestershire County Council,Adult Services & Health,AC-PROFIT,Domiciliary Spot - OP,S33414,HELPING HANDS HOME CARE,Third Party Payments Dom Care Frm Independent Prov,53669,25/04/2016,7320483199,547.5,,
Expenditure - Over 500,2016 01,Worcestershire County Council,Adult Services & Health,AC-PROFIT,Domiciliary Spot - OP,S33414,HELPING HANDS HOME CARE,Third Party Payments Dom Care Frm Independent Prov,53669,25/04/2016,7320483203,946.4,,
Expenditure - Over 500,2016 01,Worcestershire County Council,Adult Services & Health,AC-PROFIT,Domiciliary Spot - OP,S33414,HELPING HANDS HOME CARE,Third Party Payments Dom Care Frm Independent Prov,53669,25/04/2016,7320483204,543,,
Expenditure - Over 500,2016 01,Worcestershire County Council,Adult Services & Health,AC-PROFIT,Domiciliary Spot - PD,S33412,HELPING HANDS HOME CARE,Third Party Payments Dom Care Frm Independent Prov,53669,25/04/2016,7320483110,1443.8,,
Expenditure - Over 500,2016 01,Worcestershire County Council,Adult Services & Health,AC-PROFIT,Domiciliary Spot - PD,S33412,HELPING HANDS HOME CARE,Third Party Payments Dom Care Frm Independent Prov,53669,25/04/2016,7320483111,1272.2,,
Expenditure - Over 500,2016 01,Worcestershire County Council,Adult Services & Health,AC-PROFIT,Domiciliary Spot - PD,S33412,HELPING HANDS HOME CARE,Third Party Payments Dom Care Frm Independent Prov,53669,25/04/2016,7320483112,2988,,
Expenditure - Over 500,2016 01,Worcestershire County Council,Adult Services & Health,AC-PROFIT,Domiciliary Spot - PD,S33412,HELPING HANDS HOME CARE,Third Party Payments Dom Care Frm Independent Prov,53669,25/04/2016,7320483117,1281.52,,
Expenditure - Over 500,2016 01,Worcestershire County Council,Adult Services & Health,AC-PROFIT,Block Zone Contract - OP,S33404,HELPING HANDS HOME CARE,Third Party Payments Dom Care Frm Independent Prov,53669,25/04/2016,7320482756,1376.4,,
Expenditure - Over 500,2016 01,Worcestershire County Council,Adult Services & Health,AC-PROFIT,Block Zone Contract - OP,S33404,HELPING HANDS HOME CARE,Third Party Payments Dom Care Frm Independent Prov,53669,25/04/2016,7320482757,995.6,,
Expenditure - Over 500,2016 01,Worcestershire County Council,Adult Services & Health,AC-PROFIT,Domiciliary Spot - OP,S33414,HELPING HANDS HOME CARE,Third Party Payments Dom Care Frm Independent Prov,53669,25/04/2016,7320483100,1165.8,,
Expenditure - Over 500,2016 01,Worcestershire County Council,Adult Services & Health,AC-PROFIT,Domiciliary Spot - OP,S33414,HELPING HANDS HOME CARE,Third Party Payments Dom Care Frm Independent Prov,53669,25/04/2016,7320483101,702.2,,
Expenditure - Over 500,2016 01,Worcestershire County Council,Adult Services & Health,AC-PROFIT,Block Zone Contract - OP,S33404,HELPING HANDS HOME CARE,Third Party Payments Dom Care Frm Independent Prov,53669,28/04/2016,7320484869,838.68,,
Expenditure - Over 500,2016 01,Worcestershire County Council,Adult Services & Health,AC-PROFIT,Block Zone Contract PD,S33402,HELPING HANDS HOME CARE,Third Party Payments Dom Care Frm Independent Prov,53669,28/04/2016,7320484870,2024.4,,
Expenditure - Over 500,2016 01,Worcestershire County Council,Adult Services & Health,AC-PROFIT,Block Zone Contract - OP,S33404,HELPING HANDS HOME CARE,Third Party Payments Dom Care Frm Independent Prov,53669,28/04/2016,7320484873,506.1,,
Expenditure - Over 500,2016 01,Worcestershire County Council,Adult Services & Health,AC-PROFIT,Domiciliary Spot - OP,S33414,HELPING HANDS HOME CARE,Third Party Payments Dom Care Frm Independent Prov,53669,25/04/2016,7320483131,865.8,,
Expenditure - Over 500,2016 01,Worcestershire County Council,Adult Services & Health,AC-PROFIT,Domiciliary Spot - OP,S33414,HELPING HANDS HOME CARE,Third Party Payments Dom Care Frm Independent Prov,53669,25/04/2016,7320483134,1324,,
Expenditure - Over 500,2016 01,Worcestershire County Council,Adult Services & Health,AC-PROFIT,Domiciliary Spot - OP,S33414,HELPING HANDS HOME CARE,Third Party Payments Dom Care Frm Independent Prov,53669,25/04/2016,7320483136,675.9,,
Expenditure - Over 500,2016 01,Worcestershire County Council,Adult Services & Health,AC-PROFIT,Domiciliary Spot - OP,S33414,HELPING HANDS HOME CARE,Third Party Payments Dom Care Frm Independent Prov,53669,25/04/2016,7320483139,576.7,,
Expenditure - Over 500,2016 01,Worcestershire County Council,Adult Services & Health,AC-PROFIT,Domiciliary Spot - OP,S33414,HELPING HANDS HOME CARE,Third Party Payments Dom Care Frm Independent Prov,53669,25/04/2016,7320483141,630,,
Expenditure - Over 500,2016 01,Worcestershire County Council,Adult Services & Health,AC-PROFIT,Domiciliary - MH,S33411,HELPING HANDS HOME CARE,Third Party Payments Dom Care Frm Independent Prov,53669,25/04/2016,7320483144,508.6,,
Expenditure - Over 500,2016 01,Worcestershire County Council,Adult Services & Health,AC-PROFIT,Domiciliary Spot - OP,S33414,HELPING HANDS HOME CARE,Third Party Payments Dom Care Frm Independent Prov,53669,25/04/2016,7320483145,644,,
Expenditure - Over 500,2016 01,Worcestershire County Council,Adult Services & Health,AC-PROFIT,Domiciliary Spot - OP,S33414,HELPING HANDS HOME CARE,Third Party Payments Dom Care Frm Independent Prov,53669,25/04/2016,7320483146,683.2,,
Expenditure - Over 500,2016 01,Worcestershire County Council,Adult Services & Health,AC-PROFIT,Domiciliary Spot - OP,S33414,HELPING HANDS HOME CARE,Third Party Payments Dom Care Frm Independent Prov,53669,25/04/2016,7320483148,725.2,,
Expenditure - Over 500,2016 01,Worcestershire County Council,Adult Services & Health,AC-PROFIT,Domiciliary Spot - OP,S33414,HELPING HANDS HOME CARE,Third Party Payments Dom Care Frm Independent Prov,53669,25/04/2016,7320483149,1118.3,,
Expenditure - Over 500,2016 01,Worcestershire County Council,Adult Services & Health,AC-PROFIT,Domiciliary Spot - OP,S33414,HELPING HANDS HOME CARE,Third Party Payments Dom Care Frm Independent Prov,53669,25/04/2016,7320483187,835.4,,
Expenditure - Over 500,2016 01,Worcestershire County Council,Adult Services & Health,AC-PROFIT,Domiciliary Spot - OP,S33414,HELPING HANDS HOME CARE,Third Party Payments Dom Care Frm Independent Prov,53669,25/04/2016,7320483188,518,,
Expenditure - Over 500,2016 01,Worcestershire County Council,Adult Services & Health,AC-PROFIT,Domiciliary Spot - OP,S33414,HELPING HANDS HOME CARE,Third Party Payments Dom Care Frm Independent Prov,53669,25/04/2016,7320483191,1020.2,,
Expenditure - Over 500,2016 01,Worcestershire County Council,Adult Services & Health,AC-PROFIT,Domiciliary Spot - OP,S33414,HELPING HANDS HOME CARE,Third Party Payments Dom Care Frm Independent Prov,53669,25/04/2016,7320483192,966.4,,
Expenditure - Over 500,2016 01,Worcestershire County Council,Adult Services & Health,AC-PROFIT,Domiciliary Spot - OP,S33414,HELPING HANDS HOME CARE,Third Party Payments Dom Care Frm Independent Prov,53669,25/04/2016,7320483193,1492.5,,
Expenditure - Over 500,2016 01,Worcestershire County Council,Adult Services & Health,AC-PROFIT,Block Zone Contract - OP,S33404,HELPING HANDS HOME CARE,Third Party Payments Dom Care Frm Independent Prov,53669,28/04/2016,7320484874,1814.73,,
Expenditure - Over 500,2016 01,Worcestershire County Council,Adult Services & Health,AC-PROFIT,Block Zone Contract PD,S33402,HELPING HANDS HOME CARE,Third Party Payments Dom Care Frm Independent Prov,53669,28/04/2016,7320484877,1417.08,,
Expenditure - Over 500,2016 01,Worcestershire County Council,Adult Services & Health,AC-PROFIT,Block Zone Contract - OP,S33404,HELPING HANDS HOME CARE,Third Party Payments Dom Care Frm Independent Prov,53669,28/04/2016,7320484879,506.1,,
Expenditure - Over 500,2016 01,Worcestershire County Council,Adult Services & Health,AC-PROFIT,Block Zone Contract - OP,S33404,HELPING HANDS HOME CARE,Third Party Payments Dom Care Frm Independent Prov,53669,28/04/2016,7320484880,527.8,,
Expenditure - Over 500,2016 01,Worcestershire County Council,Adult Services & Health,AC-PROFIT,Domiciliary Spot - OP,S33414,HELPING HANDS HOME CARE,Third Party Payments Dom Care Frm Independent Prov,53669,28/04/2016,7320484639,750,,
Expenditure - Over 500,2016 01,Worcestershire County Council,Adult Services & Health,AC-PROFIT,Block Zone Contract - OP,S33404,HELPING HANDS HOME CARE,Third Party Payments Dom Care Frm Independent Prov,53669,28/04/2016,7320484882,527.8,,
Expenditure - Over 500,2016 01,Worcestershire County Council,Adult Services & Health,AC-PROFIT,Block Zone Contract - OP,S33404,HELPING HANDS HOME CARE,Third Party Payments Dom Care Frm Independent Prov,53669,28/04/2016,7320484884,633.36,,
Expenditure - Over 500,2016 01,Worcestershire County Council,Adult Services & Health,AC-PROFIT,Block Zone Contract PD,S33402,HELPING HANDS HOME CARE,Third Party Payments Dom Care Frm Independent Prov,53669,28/04/2016,7320484889,1153.62,,
Expenditure - Over 500,2016 01,Worcestershire County Council,Adult Services & Health,AC-PROFIT,Domiciliary Block - OP,S33424,HELPING HANDS HOME CARE,Third Party Payments Dom Care Frm Independent Prov,53669,28/04/2016,7370064703,734.3,,
Expenditure - Over 500,2016 01,Worcestershire County Council,Adult Services & Health,AC-PROFIT,Domiciliary Spot - PD,S33412,HELPING HANDS HOME CARE,Third Party Payments Dom Care Frm Independent Prov,53669,29/04/2016,7320485215,1281.52,,
Expenditure - Over 500,2016 01,Worcestershire County Council,Adult Services & Health,AC-PROFIT,Domiciliary Spot - PD,S33412,HELPING HANDS HOME CARE,Third Party Payments Dom Care Frm Independent Prov,53669,29/04/2016,7320485216,3094.5,,
Expenditure - Over 500,2016 01,Worcestershire County Council,Adult Services & Health,AC-PROFIT,Domiciliary Spot - PD,S33412,HELPING HANDS HOME CARE,Third Party Payments Dom Care Frm Independent Prov,53669,29/04/2016,7320485217,1272.2,,
Expenditure - Over 500,2016 01,Worcestershire County Council,Adult Services & Health,AC-PROFIT,Domiciliary Spot - PD,S33412,HELPING HANDS HOME CARE,Third Party Payments Dom Care Frm Independent Prov,53669,29/04/2016,7320485218,1549.65,,
Expenditure - Over 500,2016 01,Worcestershire County Council,Adult Services & Health,AC-PROFIT,Domiciliary Spot - OP,S33414,HELPING HANDS HOME CARE,Third Party Payments Dom Care Frm Independent Prov,53669,04/04/2016,7320477729,557.4,,
Expenditure - Over 500,2016 01,Worcestershire County Council,Adult Services & Health,AC-PROFIT,Domiciliary Spot - OP,S33414,HELPING HANDS HOME CARE,Third Party Payments Dom Care Frm Independent Prov,53669,04/04/2016,7320477734,505,,
Expenditure - Over 500,2016 01,Worcestershire County Council,Adult Services & Health,AC-PROFIT,Domiciliary Spot - OP,S33414,HELPING HANDS HOME CARE,Third Party Payments Dom Care Frm Independent Prov,53669,04/04/2016,7320477735,825,,
Expenditure - Over 500,2016 01,Worcestershire County Council,Adult Services & Health,AC-PROFIT,Domiciliary Spot - OP,S33414,HELPING HANDS HOME CARE,Third Party Payments Dom Care Frm Independent Prov,53669,04/04/2016,7320477741,938,,
Expenditure - Over 500,2016 01,Worcestershire County Council,Adult Services & Health,AC-PROFIT,Domiciliary Spot - OP,S33414,HELPING HANDS HOME CARE,Third Party Payments Dom Care Frm Independent Prov,53669,04/04/2016,7320477742,630,,
Expenditure - Over 500,2016 01,Worcestershire County Council,Adult Services & Health,AC-PROFIT,Domiciliary Spot - OP,S33414,HELPING HANDS HOME CARE,Third Party Payments Dom Care Frm Independent Prov,53669,04/04/2016,7320477743,575.6,,
Expenditure - Over 500,2016 01,Worcestershire County Council,Adult Services & Health,AC-PROFIT,Domiciliary Spot - OP,S33414,HELPING HANDS HOME CARE,Third Party Payments Dom Care Frm Independent Prov,53669,04/04/2016,7320477745,518,,
Expenditure - Over 500,2016 01,Worcestershire County Council,Adult Services & Health,AC-PROFIT,Domiciliary Spot - OP,S33414,HELPING HANDS HOME CARE,Third Party Payments Dom Care Frm Independent Prov,53669,28/04/2016,7320484649,518,,
Expenditure - Over 500,2016 01,Worcestershire County Council,Adult Services & Health,AC-PROFIT,Domiciliary Spot - OP,S33414,HELPING HANDS HOME CARE,Third Party Payments Dom Care Frm Independent Prov,53669,28/04/2016,7320484650,518,,
Expenditure - Over 500,2016 01,Worcestershire County Council,Adult Services & Health,AC-PROFIT,Domiciliary Spot - OP,S33414,HELPING HANDS HOME CARE,Third Party Payments Dom Care Frm Independent Prov,53669,28/04/2016,7320484651,630,,
Expenditure - Over 500,2016 01,Worcestershire County Council,Adult Services & Health,AC-PROFIT,Domiciliary Spot - OP,S33414,HELPING HANDS HOME CARE,Third Party Payments Dom Care Frm Independent Prov,53669,28/04/2016,7320484653,915.5,,
Expenditure - Over 500,2016 01,Worcestershire County Council,Adult Services & Health,AC-PROFIT,Domiciliary Spot - PD,S33412,HELPING HANDS HOME CARE,Third Party Payments Dom Care Frm Independent Prov,53669,28/04/2016,7320484654,703.79,,
Expenditure - Over 500,2016 01,Worcestershire County Council,Adult Services & Health,AC-PROFIT,LD North Domiciliary,S33413,HELPING HANDS HOME CARE,Third Party Payments Dom Care Frm Independent Prov,53669,28/04/2016,7320484656,819,,
Expenditure - Over 500,2016 01,Worcestershire County Council,Children's Services,CH-PROFIT,Primary Home/School Transport,E10037,HOLLAND COACHES,PTG - Transport Tendered / Cont. Services,46021,04/04/2016,7190129294,2236.82,,
Expenditure - Over 500,2016 01,Worcestershire County Council,Children's Services,CH-PROFIT,Primary Home/School Transport,E10037,HOLLAND COACHES,PTG - Transport Tendered / Cont. Services,46021,04/04/2016,7190129295,1347.27,,
Expenditure - Over 500,2016 01,Worcestershire County Council,Children's Services,CH-PROFIT,Primary Home/School Transport,E10037,HOLLAND COACHES,PTG - Transport Tendered / Cont. Services,46021,04/04/2016,7190129343,863.77,,
Expenditure - Over 500,2016 01,Worcestershire County Council,Children's Services,CH-PROFIT,Primary Home/School Transport,E10037,HOLLAND COACHES,PTG - Transport Tendered / Cont. Services,46021,04/04/2016,7190129344,2590.77,,
Expenditure - Over 500,2016 01,Worcestershire County Council,Children's Services,CH-PROFIT,Short Breaks on framework,E31529,HOLLAND COACHES,PTG - Transport Tendered / Cont. Services,46021,14/04/2016,7190129695,2016,,
Expenditure - Over 500,2016 01,Worcestershire County Council,Children's Services,CH-PROFIT,Short Breaks on framework,E31529,HOLLAND COACHES,PTG - Adhoc Transport,46506,14/04/2016,7190129802,997.5,,
Expenditure - Over 500,2016 01,Worcestershire County Council,Adult Services & Health,AC-PROFIT,North Worcs Nursing LD (Wyre Forest),S35512,BARCHESTER HEALTHCARE HOMES LTD,Third Party Payments Purchase of Long Term Care,53667,18/04/2016,7310396810,3459.04,,
Expenditure - Over 500,2016 01,Worcestershire County Council,Adult Services & Health,AC-PROFIT,LT Nursing - OP,S35342,BARCHESTER HEALTHCARE HOMES LTD,Third Party Payments Purchase of Long Term Care,53667,18/04/2016,7310396956,2956.54,,
Expenditure - Over 500,2016 01,Worcestershire County Council,Adult Services & Health,AC-PROFIT,LT Nursing - OP,S35342,BARCHESTER HEALTHCARE HOMES LTD,Third Party Payments Purchase of Long Term Care,53667,18/04/2016,7310396970,1777.13,,
Expenditure - Over 500,2016 01,Worcestershire County Council,Adult Services & Health,AC-PROFIT,LT Nursing - OP,S35342,BARCHESTER HEALTHCARE HOMES LTD,Third Party Payments Purchase of Long Term Care,53667,18/04/2016,7310397024,3876,,
Expenditure - Over 500,2016 01,Worcestershire County Council,Adult Services & Health,AC-PROFIT,LT Nursing - OP,S35342,BARCHESTER HEALTHCARE HOMES LTD,Third Party Payments Purchase of Long Term Care,53667,18/04/2016,7310397026,11480,,
Expenditure - Over 500,2016 01,Worcestershire County Council,Adult Services & Health,AC-PROFIT,LT Nursing - OP,S35342,BARCHESTER HEALTHCARE HOMES LTD,Third Party Payments Purchase of Long Term Care,53667,18/04/2016,7310397050,1857.02,,
Expenditure - Over 500,2016 01,Worcestershire County Council,Adult Services & Health,AC-PROFIT,LT Nursing - OP,S35342,BARCHESTER HEALTHCARE HOMES LTD,Receipts Sales Long Term Residents,67047,18/04/2016,7310397052,3133.32,,
Expenditure - Over 500,2016 01,Worcestershire County Council,Adult Services & Health,AC-PROFIT,LT Nursing - OP,S35342,BARCHESTER HEALTHCARE HOMES LTD,Receipts Sales Long Term Residents,67047,18/04/2016,7310397180,4773.45,,
Expenditure - Over 500,2016 01,Worcestershire County Council,Adult Services & Health,AC-ERROR,Adults & Community Servs Error Suspense,ACSSER001,BARCHESTER HEALTHCARE HOMES LTD,Adult & Community Servs - Other,98254,18/04/2016,7310397204,560,,
Expenditure - Over 500,2016 01,Worcestershire County Council,Adult Services & Health,AC-PROFIT,LT Nursing - OP,S35342,BARCHESTER HEALTHCARE HOMES LTD,Receipts Sales Long Term Residents,67047,18/04/2016,7310397206,1751.03,,
Expenditure - Over 500,2016 01,Worcestershire County Council,Adult Services & Health,AC-PROFIT,LT Nursing - OP,S35342,BARCHESTER HEALTHCARE HOMES LTD,Third Party Payments Purchase of Long Term Care,53667,18/04/2016,7310397210,15451.28,,
Expenditure - Over 500,2016 01,Worcestershire County Council,Adult Services & Health,AC-PROFIT,South Worcester Residential LD,S35551,THE HESLEY GROUP LTD,Third Party Payments Purchase of Long Term Care,53667,18/04/2016,7310399652,23393.76,,
Expenditure - Over 500,2016 01,Worcestershire County Council,Adult Services & Health,AC-PROFIT,LT Nursing - OP,S35342,BARCHESTER HEALTHCARE HOMES LTD,Third Party Payments Purchase of Long Term Care,53667,18/04/2016,7310396770,2890.1,,
Expenditure - Over 500,2016 01,Worcestershire County Council,Adult Services & Health,AC-PROFIT,Nursing - MH,S35642,BARCHESTER HEALTHCARE HOMES LTD,Third Party Payments Purchase of Long Term Care,53667,18/04/2016,7310396782,2622.8,,
Expenditure - Over 500,2016 01,Worcestershire County Council,Adult Services & Health,AC-PROFIT,LT Nursing - OP,S35342,BARCHESTER HEALTHCARE HOMES LTD,Receipts Sales Long Term Residents,67047,18/04/2016,7310396798,2045.84,,
Expenditure - Over 500,2016 01,Worcestershire County Council,Adult Services & Health,AC-PROFIT,North Worcs Nursing LD (Wyre Forest),S35512,BARCHESTER HEALTHCARE HOMES LTD,Third Party Payments Purchase of Long Term Care,53667,18/04/2016,7310396804,2967.04,,
Expenditure - Over 500,2016 01,Worcestershire County Council,Adult Services & Health,AC-PROFIT,LT Residential - PD,S35441,HENSHAWS YORKSHIRE,Receipts Sales Long Term Residents,67047,18/04/2016,7310399272,2805.14,,
Expenditure - Over 500,2016 01,Worcestershire County Council,Children's Services,CH-PROFIT,Early Years - Other Providers,E21205,HENWICK PLAYGROUP,Third Party Pymts 4Yr Old Nursery Education Grant,53657,11/04/2016,7200025325,7287.28,,
Expenditure - Over 500,2016 01,Worcestershire County Council,Children's Services,CH-PROFIT,YOT - Hereford,E31310,HEREFORDSHIRE COUNCIL,Services Out Of School Activities,50060,07/04/2016,4101542693,3555.94,,
Expenditure - Over 500,2016 01,Worcestershire County Council,Children's Services,CH-PROFIT,YOT - Hereford,E31310,HEREFORDSHIRE COUNCIL,Services Out Of School Activities,50060,07/04/2016,4101542694,10790.08,,
Expenditure - Over 500,2016 01,Worcestershire County Council,Children's Services,CH-PROFIT,YOT - Hereford,E31310,HEREFORDSHIRE COUNCIL,Services Out Of School Activities,50060,07/04/2016,4101542695,4581.13,,
Expenditure - Over 500,2016 01,Worcestershire County Council,Children's Services,CH-PROFIT,YOT - Hereford,E31310,HEREFORDSHIRE COUNCIL,Services Out Of School Activities,50060,07/04/2016,4101542696,14717.3,,
Expenditure - Over 500,2016 01,Worcestershire County Council,Children's Services,CH-PROFIT,Secondary Home/School Transport,E10707,HEREFORDSHIRE COUNCIL,PTG - Public Transport Bus,47514,11/04/2016,4101542706,3218.84,,
Expenditure - Over 500,2016 01,Worcestershire County Council,Children's Services,CH-PROFIT,Pupil Premium Plus,E20843,HEREFORDSHIRE COUNCIL,Academy Funding Payments,51025,07/04/2016,3320007992,723.7,,
Expenditure - Over 500,2016 01,Worcestershire County Council,Children's Services,CH-PROFIT,Pupil Premium Plus,E20843,HEREFORDSHIRE COUNCIL,Academy Funding Payments,51025,07/04/2016,3320008067,1447.4,,
Expenditure - Over 500,2016 01,Worcestershire County Council,Children's Services,CH-PROFIT,Pupil Premium Plus,E20843,HEREFORDSHIRE COUNCIL,Academy Funding Payments,51025,07/04/2016,3320008068,723.7,,
Expenditure - Over 500,2016 01,Worcestershire County Council,Children's Services,CH-PROFIT,Pupil Premium Plus,E20843,HEREFORDSHIRE COUNCIL,Academy Funding Payments,51025,07/04/2016,3320008096,600,,
Expenditure - Over 500,2016 01,Worcestershire County Council,Children's Services,CH-PROFIT,Pupil Premium Plus,E20843,HEREFORDSHIRE COUNCIL,Academy Funding Payments,51025,07/04/2016,3320008163,600,,
Expenditure - Over 500,2016 01,Worcestershire County Council,Children's Services,CH-PROFIT,Pupil Premium Plus,E20843,HEREFORDSHIRE COUNCIL,Academy Funding Payments,51025,07/04/2016,3320008164,600,,
Expenditure - Over 500,2016 01,Worcestershire County Council,Resources,FS-PROFIT,Financing Transactions,F40233,HEREFORDSHIRE COUNCIL,Receipts Contributions From Local Authorities,68507,11/04/2016,3300650396,5111.51,,
Expenditure - Over 500,2016 01,Worcestershire County Council,Adult Services & Health,AC-PROFIT,Nursing - MH,S35642,HEREFORDSHIRE MIND,Third Party Payments Purchase of Long Term Care,53667,18/04/2016,7310399268,3815.9,,
Expenditure - Over 500,2016 01,Worcestershire County Council,Children's Services,CH-PROFIT,Early Years - Other Providers,E21205,HICKORY DICKORY DOCK DAY NURSERY LT,Third Party Pymts 4Yr Old Nursery Education Grant,53657,11/04/2016,7200025327,15667.65,,
Expenditure - Over 500,2016 01,Worcestershire County Council,Children's Services,CH-PROFIT,Short Breaks on framework,E31529,HOLLAND COACHES,PTG - Transport Tendered / Cont. Services,46021,14/04/2016,7190129680,2304,,
Expenditure - Over 500,2016 01,Worcestershire County Council,Children's Services,CH-PROFIT,Short Breaks on framework,E31529,HOLLAND COACHES,PTG - Transport Tendered / Cont. Services,46021,14/04/2016,7190129679,2592,,
Expenditure - Over 500,2016 01,Worcestershire County Council,Children's Services,CH-PROFIT,Special Home/School Transport,E10877,HOLLAND COACHES,PTG - Transport Tendered / Cont. Services,46021,14/04/2016,7190129683,1926,,
Expenditure - Over 500,2016 01,Worcestershire County Council,Children's Services,CH-PROFIT,Short Breaks on framework,E31529,HOLLAND COACHES,PTG - Transport Tendered / Cont. Services,46021,14/04/2016,7190129684,2196,,
Expenditure - Over 500,2016 01,Worcestershire County Council,Adult Services & Health,AC-PROFIT,LD Transport (PTG) North,S34844,HOLLAND COACHES,PTG - Transport Tendered / Cont. Services,46021,14/04/2016,7190129685,2580,,
Expenditure - Over 500,2016 01,Worcestershire County Council,Children's Services,CH-PROFIT,Short Breaks on framework,E31529,HOLLAND COACHES,PTG - Transport Tendered / Cont. Services,46021,14/04/2016,7190129693,3114,,
Expenditure - Over 500,2016 01,Worcestershire County Council,Children's Services,CH-PROFIT,Short Breaks on framework,E31529,HOLLAND COACHES,PTG - Transport Tendered / Cont. Services,46021,14/04/2016,7190129694,1961.82,,
Expenditure - Over 500,2016 01,Worcestershire County Council,"Business, Environment & Community",EN-DIR,Concessionary Fares Administration,V21015,HOLLAND COACHES,Third Party Pymnts Public Transport Operators,54005,21/04/2016,7190129995,1433.98,,
Expenditure - Over 500,2016 01,Worcestershire County Council,Adult Services & Health,AC-PROFIT,Equipment - Pooled Budgets,S31526,HSBC INVOICE FINANCE (UK) LTD,Equipment Adults SDD,49084,18/04/2016,4101544497,659.8,,
Expenditure - Over 500,2016 01,Worcestershire County Council,Children's Services,CH-PROFIT,Special Home/School Transport,E10877,I & I TRANSPORT LTD,PTG - Transport Tendered / Cont. Services,46021,04/04/2016,7190129212,3096,,
Expenditure - Over 500,2016 01,Worcestershire County Council,Adult Services & Health,AC-PROFIT,LD Transport (PTG) North,S34844,I & I TRANSPORT LTD,PTG - Adhoc Transport,46506,04/04/2016,7190129217,840,,
Expenditure - Over 500,2016 01,Worcestershire County Council,Children's Services,CH-PROFIT,Special Home/School Transport,E10877,I & I TRANSPORT LTD,PTG - Transport Tendered / Cont. Services,46021,04/04/2016,7190129227,1710,,
Expenditure - Over 500,2016 01,Worcestershire County Council,Adult Services & Health,AC-PROFIT,LD Transport (PTG) North,S34844,I & I TRANSPORT LTD,PTG - Transport Tendered / Cont. Services,46021,07/04/2016,7190129524,1955,,
Expenditure - Over 500,2016 01,Worcestershire County Council,Adult Services & Health,AC-PROFIT,LD Transport (PTG) North,S34844,I & I TRANSPORT LTD,PTG - Transport Tendered / Cont. Services,46021,25/04/2016,7190130030,1955,,
Expenditure - Procurement Card,2016 01,Worcestershire County Council,Children's Services,CH-PROFIT,Outreach support service,E31763,HOMEBASE LTD 352,Equipment & Furniture,49001,05/04/2016,4600117000,3.99,LUMBER/BUILD. SUPPLY STORES,5211
Expenditure - Procurement Card,2016 01,Worcestershire County Council,Adult Services & Health,AC-PROFIT,"Crofters Close Res.Home, Long Term",S31668,HOMEBASE LTD 299,Equipment & Furniture,49001,05/04/2016,4600117015,66.66,LUMBER/BUILD. SUPPLY STORES,5211
Expenditure - Procurement Card,2016 01,Worcestershire County Council,Children's Services,CH-PROFIT,Green Hill Lodge,E31761,HOMEBASE LTD 352,Equipment & Furniture,49001,13/04/2016,4600117522,37.48,LUMBER/BUILD. SUPPLY STORES,5211
Expenditure - Procurement Card,2016 01,Worcestershire County Council,Children's Services,CH-PROFIT,Green Hill Lodge,E31761,HOMEBASE LTD 352,Equipment & Furniture,49001,15/04/2016,4600117684,12.31,LUMBER/BUILD. SUPPLY STORES,5211
Expenditure - Procurement Card,2016 01,Worcestershire County Council,Children's Services,CH-PROFIT,126 Barnards Green Road,E31760,HOMEBASE LTD 352,Equipment,48601,21/04/2016,4600118403,4.99,LUMBER/BUILD. SUPPLY STORES,5211
Expenditure - Procurement Card,2016 01,Worcestershire County Council,Children's Services,CH-PROFIT,S17 Care Leavers Team,E36604,HOMEBASE LTD 299,Care Grants,51006,26/04/2016,4600118922,44.97,LUMBER/BUILD. SUPPLY STORES,5211
Expenditure - Procurement Card,2016 01,Worcestershire County Council,Children's Services,CH-PROFIT,Green Hill Lodge,E31761,HOMEBASE LTD 352,Equipment & Furniture,49001,28/04/2016,4600119178,5.83,LUMBER/BUILD. SUPPLY STORES,5211
Expenditure - Over 500,2016 01,Worcestershire County Council,"Business, Environment & Community",EN-DIR,Concessionary Fares Administration,V21015,JMP CONSULTANTS LTD,Professional Fees,50031,21/04/2016,4101544539,8312.5,,
Expenditure - Over 500,2016 01,Worcestershire County Council,"Business, Environment & Community",EN-DIR,Local Bus WCC Services,V21020,JOHNSONS COACH TRAVEL,Third Party Pymnts Other Hired & Contracted Servs,53986,04/04/2016,7190129096,4910,,
Expenditure - Over 500,2016 01,Worcestershire County Council,Children's Services,CH-PROFIT,Early Years - Other Providers,E21205,KEMERTON EARLY YEARS & FOREST SCHOO,Third Party Pymts 4Yr Old Nursery Education Grant,53657,11/04/2016,7200025346,9340.97,,
Expenditure - Procurement Card,2016 01,Worcestershire County Council,"Business, Environment & Community",EN-PROFIT,Pollution Control Overheads,V22200,HOMEBASE LTD 352,Equipment Tools & Small Equipment,49074,28/04/2016,4600119130,31.46,LUMBER/BUILD. SUPPLY STORES,5211
Expenditure - Over 500,2016 01,Worcestershire County Council,Adult Services & Health,AC-PROFIT,Family Literacy Language & Numeracy,S25069,HOMESTART,Services Lecturers Fees & Expenses,50037,07/04/2016,4101541499,935,,
Expenditure - Over 500,2016 01,Worcestershire County Council,"Business, Environment & Community",EN-PROFIT,Parish Lengthsman Scheme,V16101,HONEYBOURNE PARISH COUNCIL,Third Party Payments Private Contractors,53974,04/04/2016,4101541534,882.7,,
Expenditure - Over 500,2016 01,Worcestershire County Council,"Business, Environment & Community",EN-DIR,Concessionary Fares Administration,V21015,JOHNSONS COACH TRAVEL,Third Party Pymnts Public Transport Operators,54005,14/04/2016,7190129579,9694.79,,
Expenditure - Over 500,2016 01,Worcestershire County Council,"Business, Environment & Community",EN-DIR,Local Bus WCC Services,V21020,JOHNSONS COACH TRAVEL,Third Party Pymnts Other Hired & Contracted Servs,53986,04/04/2016,7190129099,2300,,
Expenditure - Over 500,2016 01,Worcestershire County Council,Adult Services & Health,AC-PROFIT,Equipment - Pooled Budgets,S31526,JAMES LECKEY DESIGN,Equip Children Physio,49094,05/04/2016,4101529893,1132,,
Expenditure - Over 500,2016 01,Worcestershire County Council,Adult Services & Health,AC-PROFIT,Equipment - Pooled Budgets,S31526,JAMES LECKEY DESIGN,Equip Children Physio,49094,07/04/2016,4101542807,1045,,
Expenditure - Over 500,2016 01,Worcestershire County Council,Adult Services & Health,AC-PROFIT,Equipment - Pooled Budgets,S31526,JCM SEATING SOLUTIONS LTD,Equipment Children SSD,49083,04/04/2016,4101540438,3087.74,,
Expenditure - Over 500,2016 01,Worcestershire County Council,Adult Services & Health,AC-PROFIT,Equipment - Pooled Budgets,S31526,KONICA MINOLTA BUSINESS SOLUTIONS,Equipment Children SSD,49083,28/04/2016,4101546514,887.88,,
Expenditure - Over 500,2016 01,Worcestershire County Council,Adult Services & Health,AC-PROFIT,Equipment - Pooled Budgets,S31526,JCM SEATING SOLUTIONS LTD,Equipment Children SSD,49083,07/04/2016,4101542623,2509.9,,
